Organisation Name,Organisation Code,Date Paid,Transaction Number,Amount,Supplier Name,Supplier ID,Supplier post code (first 4 digits),Directorate,Service Area,General Ledger code Description,BVACOP class,Revenue/ Capital Spend
Wiltshire, http://opendatacommunities.org/id/unitary-authority/wiltshire,24/10/2019,5107392840,2169,1st Choice Stairlifts ,113095,SN11,Wiltshire Council,Wiltshire Council,Property Maintenance,Premises Related,CAPITAL
Wiltshire, http://opendatacommunities.org/id/unitary-authority/wiltshire,16/10/2019,5107387869,2424.2,2 Care UK Ltd ,110002,BH7 ,Community Services,MH AOWA South Locali,Supported Living,Third Party Payments,REVENUE
Wiltshire, http://opendatacommunities.org/id/unitary-authority/wiltshire,16/10/2019,5107387870,2424.2,2 Care UK Ltd ,110002,BH7 ,Community Services,MH AOWA South Locali,Supported Living,Third Party Payments,REVENUE
Wiltshire, http://opendatacommunities.org/id/unitary-authority/wiltshire,16/10/2019,5107387871,2424.2,2 Care UK Ltd ,110002,BH7 ,Community Services,MH AOWA South Locali,Supported Living,Third Party Payments,REVENUE
Wiltshire, http://opendatacommunities.org/id/unitary-authority/wiltshire,16/10/2019,5107387872,2424.2,2 Care UK Ltd ,110002,BH7 ,Community Services,MH AOWA South Locali,Supported Living,Third Party Payments,REVENUE
Wiltshire, http://opendatacommunities.org/id/unitary-authority/wiltshire,16/10/2019,5107387873,2424.2,2 Care UK Ltd ,110002,BH7 ,Community Services,MH AOWA South Locali,Supported Living,Third Party Payments,REVENUE
Wiltshire, http://opendatacommunities.org/id/unitary-authority/wiltshire,09/10/2019,5107383250,1384.35,24-7 Staffing ,140662,SN15,Children & Education,Learning Resources,Agency Staff,Employee Related,REVENUE
Wiltshire, http://opendatacommunities.org/id/unitary-authority/wiltshire,17/10/2019,5107383805,271.18,24-7 Staffing ,140662,SN15,Community Services,Bradbury Hse Respite,Agency Staff,Employee Related,REVENUE
Wiltshire, http://opendatacommunities.org/id/unitary-authority/wiltshire,01/10/2019,5107385503,2955.18,24-7 Staffing ,140662,SN15,Community Services,MH AOWA South Locali,Adult Domiciliary Care,Third Party Payments,REVENUE
Wiltshire, http://opendatacommunities.org/id/unitary-authority/wiltshire,17/10/2019,5107386569,295.89,24-7 Staffing ,140662,SN15,Children & Education,Learning Resources,Agency Staff,Employee Related,REVENUE
Wiltshire, http://opendatacommunities.org/id/unitary-authority/wiltshire,17/10/2019,5107392319,278.06,24-7 Staffing ,140662,SN15,Community Services,Chippenham Respite,Agency Staff,Employee Related,REVENUE
Wiltshire, http://opendatacommunities.org/id/unitary-authority/wiltshire,30/10/2019,5107394661,2942.04,24-7 Staffing ,140662,SN15,Community Services,MH AOWA South Locali,Adult Domiciliary Care,Third Party Payments,REVENUE
Wiltshire, http://opendatacommunities.org/id/unitary-authority/wiltshire,14/10/2019,1902427220,810.77,2get2 Taxi Services Ltd ,101102,SP4 ,Neighbourhood & Planning,SEN Primary Transprt,Transport Contracts,Third Party Payments,REVENUE
Wiltshire, http://opendatacommunities.org/id/unitary-authority/wiltshire,14/10/2019,1902427220,1792.23,2get2 Taxi Services Ltd ,101102,SP4 ,Neighbourhood & Planning,SEN Secondary Tspt,Transport Contracts,Third Party Payments,REVENUE
Wiltshire, http://opendatacommunities.org/id/unitary-authority/wiltshire,14/10/2019,1902427221,1140,2get2 Taxi Services Ltd ,101102,SP4 ,Neighbourhood & Planning,SEN Primary Transprt,Transport Contracts,Third Party Payments,REVENUE
Wiltshire, http://opendatacommunities.org/id/unitary-authority/wiltshire,14/10/2019,1902427221,1140,2get2 Taxi Services Ltd ,101102,SP4 ,Neighbourhood & Planning,SEN Secondary Tspt,Transport Contracts,Third Party Payments,REVENUE
Wiltshire, http://opendatacommunities.org/id/unitary-authority/wiltshire,08/10/2019,1902425230,2940.95,4K Travel ,146614,SN2 ,Neighbourhood & Planning,Mainstream Secondary,Transport Contracts,Third Party Payments,REVENUE
Wiltshire, http://opendatacommunities.org/id/unitary-authority/wiltshire,08/10/2019,1902425232,264,4K Travel ,146614,SN2 ,Neighbourhood & Planning,Public Transport,Transport Contracts,Third Party Payments,REVENUE
Wiltshire, http://opendatacommunities.org/id/unitary-authority/wiltshire,08/10/2019,1902425234,531.8,4K Travel ,146614,SN2 ,Neighbourhood & Planning,SEN Primary Transprt,Transport Contracts,Third Party Payments,REVENUE
Wiltshire, http://opendatacommunities.org/id/unitary-authority/wiltshire,08/10/2019,1902425234,2071.2,4K Travel ,146614,SN2 ,Neighbourhood & Planning,SEN Secondary Tspt,Transport Contracts,Third Party Payments,REVENUE
Wiltshire, http://opendatacommunities.org/id/unitary-authority/wiltshire,08/10/2019,1902425235,3049.8,4K Travel ,146614,SN2 ,Neighbourhood & Planning,Mainstream Secondary,Transport Contracts,Third Party Payments,REVENUE
Wiltshire, http://opendatacommunities.org/id/unitary-authority/wiltshire,08/10/2019,1902425236,3233.5,4K Travel ,146614,SN2 ,Neighbourhood & Planning,Mainstream Secondary,Transport Contracts,Third Party Payments,REVENUE
Wiltshire, http://opendatacommunities.org/id/unitary-authority/wiltshire,08/10/2019,1902425237,3221.66,4K Travel ,146614,SN2 ,Neighbourhood & Planning,Mainstream Primary,Transport Contracts,Third Party Payments,REVENUE
Wiltshire, http://opendatacommunities.org/id/unitary-authority/wiltshire,08/10/2019,1902425238,2338.64,4K Travel ,146614,SN2 ,Neighbourhood & Planning,Mainstream Secondary,Transport Contracts,Third Party Payments,REVENUE
Wiltshire, http://opendatacommunities.org/id/unitary-authority/wiltshire,08/10/2019,1902425242,2261,4K Travel ,146614,SN2 ,Neighbourhood & Planning,SEN Secondary Tspt,Transport Contracts,Third Party Payments,REVENUE
Wiltshire, http://opendatacommunities.org/id/unitary-authority/wiltshire,08/10/2019,1902425244,538.64,4K Travel ,146614,SN2 ,Community Services,North Care Packages,Transport Contracts,Third Party Payments,REVENUE
Wiltshire, http://opendatacommunities.org/id/unitary-authority/wiltshire,08/10/2019,1902425244,2564.93,4K Travel ,146614,SN2 ,Community Services,CTPLD Placements,Transport Contracts,Third Party Payments,REVENUE
Wiltshire, http://opendatacommunities.org/id/unitary-authority/wiltshire,09/10/2019,1902425954,2730,4K Travel ,146614,SN2 ,Neighbourhood & Planning,Mainstream Secondary,Transport Contracts,Third Party Payments,REVENUE
Wiltshire, http://opendatacommunities.org/id/unitary-authority/wiltshire,09/10/2019,1902425955,4181.28,4K Travel ,146614,SN2 ,Neighbourhood & Planning,Mainstream Secondary,Transport Contracts,Third Party Payments,REVENUE
Wiltshire, http://opendatacommunities.org/id/unitary-authority/wiltshire,24/10/2019,1902436861,2256.75,4K Travel ,146614,SN2 ,Neighbourhood & Planning,Mainstream Primary,Transport Contracts,Third Party Payments,REVENUE
Wiltshire, http://opendatacommunities.org/id/unitary-authority/wiltshire,31/10/2019,1902440053,4269.46,4K Travel ,146614,SN2 ,Neighbourhood & Planning,Mainstream Secondary,Transport Contracts,Third Party Payments,REVENUE
Wiltshire, http://opendatacommunities.org/id/unitary-authority/wiltshire,01/10/2019,1902423188,1064.14,A & T Salisbury (Ltd) ,134373,SP1 ,Community Services,South Care Packages,Adult Domiciliary Care,Third Party Payments,REVENUE
Wiltshire, http://opendatacommunities.org/id/unitary-authority/wiltshire,01/10/2019,1902423190,562.08,A & T Salisbury (Ltd) ,134373,SP1 ,Community Services,South Care Packages,Adult Domiciliary Care Contribution,Income,REVENUE
Wiltshire, http://opendatacommunities.org/id/unitary-authority/wiltshire,01/10/2019,1902423192,625.52,A & T Salisbury (Ltd) ,134373,SP1 ,Community Services,South Care Packages,Adult Domiciliary Care,Third Party Payments,REVENUE
Wiltshire, http://opendatacommunities.org/id/unitary-authority/wiltshire,01/10/2019,1902423193,891.16,A & T Salisbury (Ltd) ,134373,SP1 ,Community Services,South Care Packages,Adult Domiciliary Care Contribution,Income,REVENUE
Wiltshire, http://opendatacommunities.org/id/unitary-authority/wiltshire,01/10/2019,1902423194,539.4,A & T Salisbury (Ltd) ,134373,SP1 ,Community Services,South Care Packages,Adult Domiciliary Care Contribution,Income,REVENUE
Wiltshire, http://opendatacommunities.org/id/unitary-authority/wiltshire,01/10/2019,1902423195,625.52,A & T Salisbury (Ltd) ,134373,SP1 ,Community Services,South Care Packages,Adult Domiciliary Care,Third Party Payments,REVENUE
Wiltshire, http://opendatacommunities.org/id/unitary-authority/wiltshire,10/10/2019,1902426202,824.14,A & T Salisbury (Ltd) ,134373,SP1 ,Community Services,South Care Packages,Adult Domiciliary Care Contribution,Income,REVENUE
Wiltshire, http://opendatacommunities.org/id/unitary-authority/wiltshire,10/10/2019,1902426837,1064.16,A & T Salisbury (Ltd) ,134373,SP1 ,Community Services,South Care Packages,Adult Domiciliary Care,Third Party Payments,REVENUE
Wiltshire, http://opendatacommunities.org/id/unitary-authority/wiltshire,10/10/2019,1902426838,562.08,A & T Salisbury (Ltd) ,134373,SP1 ,Community Services,South Care Packages,Adult Domiciliary Care Contribution,Income,REVENUE
Wiltshire, http://opendatacommunities.org/id/unitary-authority/wiltshire,10/10/2019,1902426839,938.28,A & T Salisbury (Ltd) ,134373,SP1 ,Community Services,South Care Packages,Adult Domiciliary Care,Third Party Payments,REVENUE
Wiltshire, http://opendatacommunities.org/id/unitary-authority/wiltshire,10/10/2019,1902426840,625.52,A & T Salisbury (Ltd) ,134373,SP1 ,Community Services,South Care Packages,Adult Domiciliary Care,Third Party Payments,REVENUE
Wiltshire, http://opendatacommunities.org/id/unitary-authority/wiltshire,10/10/2019,1902426841,539.4,A & T Salisbury (Ltd) ,134373,SP1 ,Community Services,South Care Packages,Adult Domiciliary Care Contribution,Income,REVENUE
Wiltshire, http://opendatacommunities.org/id/unitary-authority/wiltshire,10/10/2019,1902426842,625.52,A & T Salisbury (Ltd) ,134373,SP1 ,Community Services,South Care Packages,Adult Domiciliary Care,Third Party Payments,REVENUE
Wiltshire, http://opendatacommunities.org/id/unitary-authority/wiltshire,10/10/2019,1902413461,268.96,A D Young Technical Services Ltd ,131717,BS20,Neighbourhood & Planning,Transport Plan & DC,Equipment Maintenance,Supplies and Services,REVENUE
Wiltshire, http://opendatacommunities.org/id/unitary-authority/wiltshire,17/10/2019,1902430718,997.5,A G Minibuses Ltd ,100878,BA12,Neighbourhood & Planning,Mainstream Primary,Transport Contracts,Third Party Payments,REVENUE
Wiltshire, http://opendatacommunities.org/id/unitary-authority/wiltshire,17/10/2019,1902430718,3427.89,A G Minibuses Ltd ,100878,BA12,Neighbourhood & Planning,Public Transport,Transport Contracts,Third Party Payments,REVENUE
Wiltshire, http://opendatacommunities.org/id/unitary-authority/wiltshire,17/10/2019,1902430719,1583.33,A G Minibuses Ltd ,100878,BA12,Neighbourhood & Planning,Mainstream Secondary,Transport Contracts,Third Party Payments,REVENUE
Wiltshire, http://opendatacommunities.org/id/unitary-authority/wiltshire,17/10/2019,1902430719,3979.8,A G Minibuses Ltd ,100878,BA12,Neighbourhood & Planning,Public Transport,Transport Contracts,Third Party Payments,REVENUE
Wiltshire, http://opendatacommunities.org/id/unitary-authority/wiltshire,23/10/2019,1902436136,1907.56,A G Minibuses Ltd ,100878,BA12,Neighbourhood & Planning,Mainstream Primary,Transport Contracts,Third Party Payments,REVENUE
Wiltshire, http://opendatacommunities.org/id/unitary-authority/wiltshire,23/10/2019,1902436138,2185,A G Minibuses Ltd ,100878,BA12,Neighbourhood & Planning,SEN Primary Transprt,Transport Contracts,Third Party Payments,REVENUE
Wiltshire, http://opendatacommunities.org/id/unitary-authority/wiltshire,23/10/2019,1902436144,2736,A G Minibuses Ltd ,100878,BA12,Neighbourhood & Planning,SEN Secondary Tspt,Transport Contracts,Third Party Payments,REVENUE
Wiltshire, http://opendatacommunities.org/id/unitary-authority/wiltshire,23/10/2019,1902436145,1132.46,A G Minibuses Ltd ,100878,BA12,Neighbourhood & Planning,SEN Secondary Tspt,Transport Contracts,Third Party Payments,REVENUE
Wiltshire, http://opendatacommunities.org/id/unitary-authority/wiltshire,23/10/2019,1902436145,1321.2,A G Minibuses Ltd ,100878,BA12,Neighbourhood & Planning,SEN Primary Transprt,Transport Contracts,Third Party Payments,REVENUE
Wiltshire, http://opendatacommunities.org/id/unitary-authority/wiltshire,23/10/2019,1902436146,1414.64,A G Minibuses Ltd ,100878,BA12,Neighbourhood & Planning,SEN Secondary Tspt,Transport Contracts,Third Party Payments,REVENUE
Wiltshire, http://opendatacommunities.org/id/unitary-authority/wiltshire,23/10/2019,1902436146,1414.65,A G Minibuses Ltd ,100878,BA12,Neighbourhood & Planning,SEN Primary Transprt,Transport Contracts,Third Party Payments,REVENUE
Wiltshire, http://opendatacommunities.org/id/unitary-authority/wiltshire,23/10/2019,1902436150,342,A G Minibuses Ltd ,100878,BA12,Neighbourhood & Planning,SEN Primary Transprt,Transport Contracts,Third Party Payments,REVENUE
Wiltshire, http://opendatacommunities.org/id/unitary-authority/wiltshire,23/10/2019,1902436150,2052,A G Minibuses Ltd ,100878,BA12,Neighbourhood & Planning,SEN Secondary Tspt,Transport Contracts,Third Party Payments,REVENUE
Wiltshire, http://opendatacommunities.org/id/unitary-authority/wiltshire,23/10/2019,1902436151,2641,A G Minibuses Ltd ,100878,BA12,Neighbourhood & Planning,SEN Secondary Tspt,Transport Contracts,Third Party Payments,REVENUE
Wiltshire, http://opendatacommunities.org/id/unitary-authority/wiltshire,23/10/2019,1902436152,912.5,A G Minibuses Ltd ,100878,BA12,Neighbourhood & Planning,SEN Primary Transprt,Transport Contracts,Third Party Payments,REVENUE
Wiltshire, http://opendatacommunities.org/id/unitary-authority/wiltshire,23/10/2019,1902436152,2667.31,A G Minibuses Ltd ,100878,BA12,Neighbourhood & Planning,SEN Secondary Tspt,Transport Contracts,Third Party Payments,REVENUE
Wiltshire, http://opendatacommunities.org/id/unitary-authority/wiltshire,23/10/2019,1902436153,823.87,A G Minibuses Ltd ,100878,BA12,Neighbourhood & Planning,SEN Primary Transprt,Transport Contracts,Third Party Payments,REVENUE
Wiltshire, http://opendatacommunities.org/id/unitary-authority/wiltshire,23/10/2019,1902436153,1619.34,A G Minibuses Ltd ,100878,BA12,Neighbourhood & Planning,SEN Secondary Tspt,Transport Contracts,Third Party Payments,REVENUE
Wiltshire, http://opendatacommunities.org/id/unitary-authority/wiltshire,23/10/2019,1902436154,2885.34,A G Minibuses Ltd ,100878,BA12,Neighbourhood & Planning,SEN Secondary Tspt,Transport Contracts,Third Party Payments,REVENUE
Wiltshire, http://opendatacommunities.org/id/unitary-authority/wiltshire,23/10/2019,1902436155,487.35,A G Minibuses Ltd ,100878,BA12,Neighbourhood & Planning,SEN Primary Transprt,Transport Contracts,Third Party Payments,REVENUE
Wiltshire, http://opendatacommunities.org/id/unitary-authority/wiltshire,23/10/2019,1902436155,2257.2,A G Minibuses Ltd ,100878,BA12,Neighbourhood & Planning,SEN Secondary Tspt,Transport Contracts,Third Party Payments,REVENUE
Wiltshire, http://opendatacommunities.org/id/unitary-authority/wiltshire,23/10/2019,1902436157,2110.6,A G Minibuses Ltd ,100878,BA12,Community Services,CTPLD Placements,Transport Contracts,Third Party Payments,REVENUE
Wiltshire, http://opendatacommunities.org/id/unitary-authority/wiltshire,23/10/2019,1902436158,2786.68,A G Minibuses Ltd ,100878,BA12,Neighbourhood & Planning,SEN Secondary Tspt,Transport Contracts,Third Party Payments,REVENUE
Wiltshire, http://opendatacommunities.org/id/unitary-authority/wiltshire,23/10/2019,1902436159,660.16,A G Minibuses Ltd ,100878,BA12,Neighbourhood & Planning,SEN Secondary Tspt,Transport Contracts,Third Party Payments,REVENUE
Wiltshire, http://opendatacommunities.org/id/unitary-authority/wiltshire,23/10/2019,1902436159,660.16,A G Minibuses Ltd ,100878,BA12,Neighbourhood & Planning,SEN 16+ Transport,Transport Contracts,Third Party Payments,REVENUE
Wiltshire, http://opendatacommunities.org/id/unitary-authority/wiltshire,23/10/2019,1902436159,1320.3,A G Minibuses Ltd ,100878,BA12,Neighbourhood & Planning,SEN Primary Transprt,Transport Contracts,Third Party Payments,REVENUE
Wiltshire, http://opendatacommunities.org/id/unitary-authority/wiltshire,23/10/2019,1902436160,812.25,A G Minibuses Ltd ,100878,BA12,Neighbourhood & Planning,SEN Secondary Tspt,Transport Contracts,Third Party Payments,REVENUE
Wiltshire, http://opendatacommunities.org/id/unitary-authority/wiltshire,23/10/2019,1902436160,812.25,A G Minibuses Ltd ,100878,BA12,Neighbourhood & Planning,SEN 16+ Transport,Transport Contracts,Third Party Payments,REVENUE
Wiltshire, http://opendatacommunities.org/id/unitary-authority/wiltshire,23/10/2019,1902436160,1624.5,A G Minibuses Ltd ,100878,BA12,Neighbourhood & Planning,SEN Primary Transprt,Transport Contracts,Third Party Payments,REVENUE
Wiltshire, http://opendatacommunities.org/id/unitary-authority/wiltshire,23/10/2019,1902436161,2578.3,A G Minibuses Ltd ,100878,BA12,Neighbourhood & Planning,SEN Primary Transprt,Transport Contracts,Third Party Payments,REVENUE
Wiltshire, http://opendatacommunities.org/id/unitary-authority/wiltshire,23/10/2019,1902436162,2812,A G Minibuses Ltd ,100878,BA12,Neighbourhood & Planning,SEN Secondary Tspt,Transport Contracts,Third Party Payments,REVENUE
Wiltshire, http://opendatacommunities.org/id/unitary-authority/wiltshire,23/10/2019,1902436163,3114.1,A G Minibuses Ltd ,100878,BA12,Neighbourhood & Planning,SEN Secondary Tspt,Transport Contracts,Third Party Payments,REVENUE
Wiltshire, http://opendatacommunities.org/id/unitary-authority/wiltshire,28/10/2019,1902438194,348.43,A G Minibuses Ltd ,100878,BA12,Neighbourhood & Planning,SEN Primary Transprt,Transport Contracts,Third Party Payments,REVENUE
Wiltshire, http://opendatacommunities.org/id/unitary-authority/wiltshire,28/10/2019,1902438194,2090.57,A G Minibuses Ltd ,100878,BA12,Neighbourhood & Planning,SEN Secondary Tspt,Transport Contracts,Third Party Payments,REVENUE
Wiltshire, http://opendatacommunities.org/id/unitary-authority/wiltshire,30/10/2019,1902439547,479.83,A G Minibuses Ltd ,100878,BA12,Neighbourhood & Planning,SEN Primary Transprt,Transport Contracts,Third Party Payments,REVENUE
Wiltshire, http://opendatacommunities.org/id/unitary-authority/wiltshire,30/10/2019,1902439547,2399.17,A G Minibuses Ltd ,100878,BA12,Neighbourhood & Planning,SEN Secondary Tspt,Transport Contracts,Third Party Payments,REVENUE
Wiltshire, http://opendatacommunities.org/id/unitary-authority/wiltshire,04/10/2019,1902424551,1575,A1 Cab Company ,101233,SP4 ,Neighbourhood & Planning,SEN Primary Transprt,Transport Contracts,Third Party Payments,REVENUE
Wiltshire, http://opendatacommunities.org/id/unitary-authority/wiltshire,04/10/2019,1902424556,331.67,A1 Cab Company ,101233,SP4 ,Neighbourhood & Planning,SEN Secondary Tspt,Transport Contracts,Third Party Payments,REVENUE
Wiltshire, http://opendatacommunities.org/id/unitary-authority/wiltshire,04/10/2019,1902424556,1658.33,A1 Cab Company ,101233,SP4 ,Neighbourhood & Planning,Mainstream Secondary,Transport Contracts,Third Party Payments,REVENUE
Wiltshire, http://opendatacommunities.org/id/unitary-authority/wiltshire,29/10/2019,5107385525,50544,A2 Winchester Ltd ,101167,SO23,Neighbourhood & Planning,Hsg Strat & Enabling,Other Contracts,Third Party Payments,REVENUE
Wiltshire, http://opendatacommunities.org/id/unitary-authority/wiltshire,02/10/2019,1902423444,408,A2B Taxis (Dorset) ,143353,SP8 ,Community Services,CTPLD Placements,Transport Contracts,Third Party Payments,REVENUE
Wiltshire, http://opendatacommunities.org/id/unitary-authority/wiltshire,02/10/2019,1902423447,780,A2B Taxis (Dorset) ,143353,SP8 ,Community Services,West Care Packages,Transport Contracts,Third Party Payments,REVENUE
Wiltshire, http://opendatacommunities.org/id/unitary-authority/wiltshire,02/10/2019,1902423453,700,A2B Taxis (Dorset) ,143353,SP8 ,Neighbourhood & Planning,Mainstream Secondary,Transport Contracts,Third Party Payments,REVENUE
Wiltshire, http://opendatacommunities.org/id/unitary-authority/wiltshire,02/10/2019,1902423453,700,A2B Taxis (Dorset) ,143353,SP8 ,Neighbourhood & Planning,SEN Secondary Tspt,Transport Contracts,Third Party Payments,REVENUE
Wiltshire, http://opendatacommunities.org/id/unitary-authority/wiltshire,17/10/2019,1902430750,400,AAP Taxis and Private Hire Ltd ,143342,SN10,Neighbourhood & Planning,Mainstream Primary,Transport Contracts,Third Party Payments,REVENUE
Wiltshire, http://opendatacommunities.org/id/unitary-authority/wiltshire,17/10/2019,1902430757,806,AAP Taxis and Private Hire Ltd ,143342,SN10,Neighbourhood & Planning,SEN Primary Transprt,Transport Contracts,Third Party Payments,REVENUE
Wiltshire, http://opendatacommunities.org/id/unitary-authority/wiltshire,22/10/2019,1902431683,874.87,AAP Taxis and Private Hire Ltd ,143342,SN10,Neighbourhood & Planning,SEN Secondary Tspt,Transport Contracts,Third Party Payments,REVENUE
Wiltshire, http://opendatacommunities.org/id/unitary-authority/wiltshire,22/10/2019,1902431683,1333.13,AAP Taxis and Private Hire Ltd ,143342,SN10,Neighbourhood & Planning,SEN Primary Transprt,Transport Contracts,Third Party Payments,REVENUE
Wiltshire, http://opendatacommunities.org/id/unitary-authority/wiltshire,28/10/2019,1902438189,403.2,AAP Taxis and Private Hire Ltd ,143342,SN10,Neighbourhood & Planning,SEN Primary Transprt,Transport Contracts,Third Party Payments,REVENUE
Wiltshire, http://opendatacommunities.org/id/unitary-authority/wiltshire,17/10/2019,5107391123,1875,Aareon Uk Ltd ,113252,CV8 ,Wiltshire Council,Wiltshire Council,Property Maintenance,Premises Related,CAPITAL
Wiltshire, http://opendatacommunities.org/id/unitary-authority/wiltshire,17/10/2019,5107391125,1500,Aareon Uk Ltd ,113252,CV8 ,Wiltshire Council,Wiltshire Council,Property Maintenance,Premises Related,CAPITAL
Wiltshire, http://opendatacommunities.org/id/unitary-authority/wiltshire,17/10/2019,5107391126,750,Aareon Uk Ltd ,113252,CV8 ,Wiltshire Council,Wiltshire Council,Property Maintenance,Premises Related,CAPITAL
Wiltshire, http://opendatacommunities.org/id/unitary-authority/wiltshire,15/10/2019,1902429186,9891,AB Learning and Education ,125864,SN8 ,Children & Education,Free Enttlmnt 3 & 4y,Childcare Free Entitlement Early Years,Supplies and Services,REVENUE
Wiltshire, http://opendatacommunities.org/id/unitary-authority/wiltshire,15/10/2019,1902429187,279.3,AB Learning and Education ,125864,SN8 ,Children & Education,Free Entitlement 2 Y,Childcare Free Entitlement Early Years,Supplies and Services,REVENUE
Wiltshire, http://opendatacommunities.org/id/unitary-authority/wiltshire,04/10/2019,1902424497,2261,Abbey Taxis (Swindon) Ltd ,100920,SN2 ,Neighbourhood & Planning,SEN Primary Transprt,Transport Contracts,Third Party Payments,REVENUE
Wiltshire, http://opendatacommunities.org/id/unitary-authority/wiltshire,04/10/2019,1902424498,2376,Abbey Taxis (Swindon) Ltd ,100920,SN2 ,Neighbourhood & Planning,SEN Secondary Tspt,Transport Contracts,Third Party Payments,REVENUE
Wiltshire, http://opendatacommunities.org/id/unitary-authority/wiltshire,04/10/2019,1902424499,1046.84,Abbey Taxis (Swindon) Ltd ,100920,SN2 ,Community Services,CTPLD Placements,Transport Contracts,Third Party Payments,REVENUE
Wiltshire, http://opendatacommunities.org/id/unitary-authority/wiltshire,04/10/2019,1902424499,1099.16,Abbey Taxis (Swindon) Ltd ,100920,SN2 ,Neighbourhood & Planning,SEN Secondary Tspt,Transport Contracts,Third Party Payments,REVENUE
Wiltshire, http://opendatacommunities.org/id/unitary-authority/wiltshire,04/10/2019,1902424500,990,Abbey Taxis (Swindon) Ltd ,100920,SN2 ,Neighbourhood & Planning,SEN Secondary Tspt,Transport Contracts,Third Party Payments,REVENUE
Wiltshire, http://opendatacommunities.org/id/unitary-authority/wiltshire,04/10/2019,1902424501,496.45,Abbey Taxis (Swindon) Ltd ,100920,SN2 ,Neighbourhood & Planning,SEN Primary Transprt,Transport Contracts,Third Party Payments,REVENUE
Wiltshire, http://opendatacommunities.org/id/unitary-authority/wiltshire,04/10/2019,1902424501,3003.55,Abbey Taxis (Swindon) Ltd ,100920,SN2 ,Neighbourhood & Planning,SEN Secondary Tspt,Transport Contracts,Third Party Payments,REVENUE
Wiltshire, http://opendatacommunities.org/id/unitary-authority/wiltshire,04/10/2019,1902424502,428.57,Abbey Taxis (Swindon) Ltd ,100920,SN2 ,Neighbourhood & Planning,SEN Primary Transprt,Transport Contracts,Third Party Payments,REVENUE
Wiltshire, http://opendatacommunities.org/id/unitary-authority/wiltshire,04/10/2019,1902424502,2571.43,Abbey Taxis (Swindon) Ltd ,100920,SN2 ,Neighbourhood & Planning,SEN Secondary Tspt,Transport Contracts,Third Party Payments,REVENUE
Wiltshire, http://opendatacommunities.org/id/unitary-authority/wiltshire,04/10/2019,1902424503,2000,Abbey Taxis (Swindon) Ltd ,100920,SN2 ,Neighbourhood & Planning,SEN Secondary Tspt,Transport Contracts,Third Party Payments,REVENUE
Wiltshire, http://opendatacommunities.org/id/unitary-authority/wiltshire,04/10/2019,1902424504,1020.7,Abbey Taxis (Swindon) Ltd ,100920,SN2 ,Neighbourhood & Planning,SEN Secondary Tspt,Transport Contracts,Third Party Payments,REVENUE
Wiltshire, http://opendatacommunities.org/id/unitary-authority/wiltshire,04/10/2019,1902424504,1069.3,Abbey Taxis (Swindon) Ltd ,100920,SN2 ,Neighbourhood & Planning,SEN Primary Transprt,Transport Contracts,Third Party Payments,REVENUE
Wiltshire, http://opendatacommunities.org/id/unitary-authority/wiltshire,04/10/2019,1902424505,2014,Abbey Taxis (Swindon) Ltd ,100920,SN2 ,Neighbourhood & Planning,SEN Secondary Tspt,Transport Contracts,Third Party Payments,REVENUE
Wiltshire, http://opendatacommunities.org/id/unitary-authority/wiltshire,04/10/2019,1902424506,2700,Abbey Taxis (Swindon) Ltd ,100920,SN2 ,Neighbourhood & Planning,SEN Primary Transprt,Transport Contracts,Third Party Payments,REVENUE
Wiltshire, http://opendatacommunities.org/id/unitary-authority/wiltshire,04/10/2019,1902424507,421.15,Abbey Taxis (Swindon) Ltd ,100920,SN2 ,Neighbourhood & Planning,SEN Primary Transprt,Transport Contracts,Third Party Payments,REVENUE
Wiltshire, http://opendatacommunities.org/id/unitary-authority/wiltshire,04/10/2019,1902424507,2105.85,Abbey Taxis (Swindon) Ltd ,100920,SN2 ,Neighbourhood & Planning,SEN Secondary Tspt,Transport Contracts,Third Party Payments,REVENUE
Wiltshire, http://opendatacommunities.org/id/unitary-authority/wiltshire,04/10/2019,1902424508,517.35,Abbey Taxis (Swindon) Ltd ,100920,SN2 ,Neighbourhood & Planning,SEN Primary Transprt,Transport Contracts,Third Party Payments,REVENUE
Wiltshire, http://opendatacommunities.org/id/unitary-authority/wiltshire,04/10/2019,1902424508,2302.25,Abbey Taxis (Swindon) Ltd ,100920,SN2 ,Neighbourhood & Planning,SEN Secondary Tspt,Transport Contracts,Third Party Payments,REVENUE
Wiltshire, http://opendatacommunities.org/id/unitary-authority/wiltshire,04/10/2019,1902424509,2356,Abbey Taxis (Swindon) Ltd ,100920,SN2 ,Neighbourhood & Planning,SEN Secondary Tspt,Transport Contracts,Third Party Payments,REVENUE
Wiltshire, http://opendatacommunities.org/id/unitary-authority/wiltshire,04/10/2019,1902424510,1270.21,Abbey Taxis (Swindon) Ltd ,100920,SN2 ,Neighbourhood & Planning,SEN Secondary Tspt,Transport Contracts,Third Party Payments,REVENUE
Wiltshire, http://opendatacommunities.org/id/unitary-authority/wiltshire,04/10/2019,1902424510,1463.51,Abbey Taxis (Swindon) Ltd ,100920,SN2 ,Neighbourhood & Planning,SEN Primary Transprt,Transport Contracts,Third Party Payments,REVENUE
Wiltshire, http://opendatacommunities.org/id/unitary-authority/wiltshire,04/10/2019,1902424511,2660,Abbey Taxis (Swindon) Ltd ,100920,SN2 ,Neighbourhood & Planning,SEN Primary Transprt,Transport Contracts,Third Party Payments,REVENUE
Wiltshire, http://opendatacommunities.org/id/unitary-authority/wiltshire,04/10/2019,1902424512,800,Abbey Taxis (Swindon) Ltd ,100920,SN2 ,Neighbourhood & Planning,SEN Primary Transprt,Transport Contracts,Third Party Payments,REVENUE
Wiltshire, http://opendatacommunities.org/id/unitary-authority/wiltshire,04/10/2019,1902424512,1600,Abbey Taxis (Swindon) Ltd ,100920,SN2 ,Neighbourhood & Planning,SEN Secondary Tspt,Transport Contracts,Third Party Payments,REVENUE
Wiltshire, http://opendatacommunities.org/id/unitary-authority/wiltshire,04/10/2019,1902424513,2090,Abbey Taxis (Swindon) Ltd ,100920,SN2 ,Neighbourhood & Planning,SEN 16+ Transport,Transport Contracts,Third Party Payments,REVENUE
Wiltshire, http://opendatacommunities.org/id/unitary-authority/wiltshire,04/10/2019,1902424514,2960,Abbey Taxis (Swindon) Ltd ,100920,SN2 ,Neighbourhood & Planning,SEN Secondary Tspt,Transport Contracts,Third Party Payments,REVENUE
Wiltshire, http://opendatacommunities.org/id/unitary-authority/wiltshire,04/10/2019,1902424515,1989,Abbey Taxis (Swindon) Ltd ,100920,SN2 ,Neighbourhood & Planning,SEN 16+ Transport,Transport Contracts,Third Party Payments,REVENUE
Wiltshire, http://opendatacommunities.org/id/unitary-authority/wiltshire,04/10/2019,1902424519,1098,Abbey Taxis (Swindon) Ltd ,100920,SN2 ,Neighbourhood & Planning,Mainstream Secondary,Transport Contracts,Third Party Payments,REVENUE
Wiltshire, http://opendatacommunities.org/id/unitary-authority/wiltshire,04/10/2019,1902424521,533.33,Abbey Taxis (Swindon) Ltd ,100920,SN2 ,Neighbourhood & Planning,Mainstream Primary,Transport Contracts,Third Party Payments,REVENUE
Wiltshire, http://opendatacommunities.org/id/unitary-authority/wiltshire,04/10/2019,1902424521,2666.67,Abbey Taxis (Swindon) Ltd ,100920,SN2 ,Neighbourhood & Planning,SEN Primary Transprt,Transport Contracts,Third Party Payments,REVENUE
Wiltshire, http://opendatacommunities.org/id/unitary-authority/wiltshire,04/10/2019,1902424524,366.67,Abbey Taxis (Swindon) Ltd ,100920,SN2 ,Neighbourhood & Planning,SEN Secondary Tspt,Transport Contracts,Third Party Payments,REVENUE
Wiltshire, http://opendatacommunities.org/id/unitary-authority/wiltshire,04/10/2019,1902424524,1833.33,Abbey Taxis (Swindon) Ltd ,100920,SN2 ,Neighbourhood & Planning,Mainstream Secondary,Transport Contracts,Third Party Payments,REVENUE
Wiltshire, http://opendatacommunities.org/id/unitary-authority/wiltshire,04/10/2019,1902424526,560,Abbey Taxis (Swindon) Ltd ,100920,SN2 ,Neighbourhood & Planning,SEN 16+ Transport,Transport Contracts,Third Party Payments,REVENUE
Wiltshire, http://opendatacommunities.org/id/unitary-authority/wiltshire,04/10/2019,1902424528,2527,Abbey Taxis (Swindon) Ltd ,100920,SN2 ,Neighbourhood & Planning,SEN 16+ Transport,Transport Contracts,Third Party Payments,REVENUE
Wiltshire, http://opendatacommunities.org/id/unitary-authority/wiltshire,04/10/2019,1902424529,2800,Abbey Taxis (Swindon) Ltd ,100920,SN2 ,Neighbourhood & Planning,SEN 16+ Transport,Transport Contracts,Third Party Payments,REVENUE
Wiltshire, http://opendatacommunities.org/id/unitary-authority/wiltshire,08/10/2019,1902425285,3135,Abbey Taxis (Swindon) Ltd ,100920,SN2 ,Community Services,CTPLD Placements,Transport Contracts,Third Party Payments,REVENUE
Wiltshire, http://opendatacommunities.org/id/unitary-authority/wiltshire,10/10/2019,1902426575,1640,Abbey Taxis (Swindon) Ltd ,100920,SN2 ,Neighbourhood & Planning,SEN Primary Transprt,Transport Contracts,Third Party Payments,REVENUE
Wiltshire, http://opendatacommunities.org/id/unitary-authority/wiltshire,15/10/2019,1902428794,3127,Abbey Taxis (Swindon) Ltd ,100920,SN2 ,Neighbourhood & Planning,SEN Primary Transprt,Transport Contracts,Third Party Payments,REVENUE
Wiltshire, http://opendatacommunities.org/id/unitary-authority/wiltshire,23/10/2019,1902436134,560,Abbey Taxis (Swindon) Ltd ,100920,SN2 ,Neighbourhood & Planning,SEN Primary Transprt,Transport Contracts,Third Party Payments,REVENUE
Wiltshire, http://opendatacommunities.org/id/unitary-authority/wiltshire,23/10/2019,1902436134,560,Abbey Taxis (Swindon) Ltd ,100920,SN2 ,Neighbourhood & Planning,SEN Secondary Tspt,Transport Contracts,Third Party Payments,REVENUE
Wiltshire, http://opendatacommunities.org/id/unitary-authority/wiltshire,28/10/2019,1902438196,960,Abbey Taxis (Swindon) Ltd ,100920,SN2 ,Neighbourhood & Planning,SEN Secondary Tspt,Transport Contracts,Third Party Payments,REVENUE
Wiltshire, http://opendatacommunities.org/id/unitary-authority/wiltshire,15/10/2019,1902429328,7541.1,ABC Day Nursery 1027 ,110028,SN12,Children & Education,Free Enttlmnt 3 & 4y,Childcare Free Entitlement Early Years,Supplies and Services,REVENUE
Wiltshire, http://opendatacommunities.org/id/unitary-authority/wiltshire,15/10/2019,1902429329,2234.4,ABC Day Nursery 1027 ,110028,SN12,Children & Education,Free Entitlement 2 Y,Childcare Free Entitlement Early Years,Supplies and Services,REVENUE
Wiltshire, http://opendatacommunities.org/id/unitary-authority/wiltshire,15/10/2019,1902429419,9413,ABC Nursery ,143051,SN13,Children & Education,Free Enttlmnt 3 & 4y,Childcare Free Entitlement Early Years,Supplies and Services,REVENUE
Wiltshire, http://opendatacommunities.org/id/unitary-authority/wiltshire,15/10/2019,1902429420,3630.9,ABC Nursery ,143051,SN13,Children & Education,Free Entitlement 2 Y,Childcare Free Entitlement Early Years,Supplies and Services,REVENUE
Wiltshire, http://opendatacommunities.org/id/unitary-authority/wiltshire,16/10/2019,1902430050,8101.17,Abicare Services (CareMatch) ,148189,SP2 ,Community Services,ASC Community C&G,Adult Domiciliary Care Contribution,Income,REVENUE
Wiltshire, http://opendatacommunities.org/id/unitary-authority/wiltshire,21/10/2019,1902431249,6794.87,Abicare Services (CareMatch) ,148189,SP2 ,Community Services,ASC Community C&G,Adult Domiciliary Care Contribution,Income,REVENUE
Wiltshire, http://opendatacommunities.org/id/unitary-authority/wiltshire,23/10/2019,1902436207,8193.28,Abicare Services (CareMatch) ,148189,SP2 ,Community Services,ASC Community C&G,Adult Domiciliary Care Contribution,Income,REVENUE
Wiltshire, http://opendatacommunities.org/id/unitary-authority/wiltshire,08/10/2019,1902425229,900,Abicare Services Ltd (Shopping) ,147979,SP2 ,Community Services,Adult Care Gross Loa,Adult Domiciliary Care,Third Party Payments,REVENUE
Wiltshire, http://opendatacommunities.org/id/unitary-authority/wiltshire,01/10/2019,1902423060,1312.56,Abicare Services Ltd Homecare ,110031,SP2 ,Community Services,South Care Packages,Adult Domiciliary Care Contribution,Income,REVENUE
Wiltshire, http://opendatacommunities.org/id/unitary-authority/wiltshire,01/10/2019,1902423061,1678.36,Abicare Services Ltd Homecare ,110031,SP2 ,Community Services,CTPLD Placements,Adult Domiciliary Care Contribution,Income,REVENUE
Wiltshire, http://opendatacommunities.org/id/unitary-authority/wiltshire,10/10/2019,1902426863,2172.44,Abicare Services Ltd Homecare ,110031,SP2 ,Community Services,West Care Packages,Adult Domiciliary Care,Third Party Payments,REVENUE
Wiltshire, http://opendatacommunities.org/id/unitary-authority/wiltshire,10/10/2019,1902426867,616.48,Abicare Services Ltd Homecare ,110031,SP2 ,Community Services,West Care Packages,Adult Domiciliary Care Contribution,Income,REVENUE
Wiltshire, http://opendatacommunities.org/id/unitary-authority/wiltshire,10/10/2019,1902426868,1429.21,Abicare Services Ltd Homecare ,110031,SP2 ,Community Services,South Care Packages,Adult Domiciliary Care Contribution,Income,REVENUE
Wiltshire, http://opendatacommunities.org/id/unitary-authority/wiltshire,10/10/2019,1902426869,2705.64,Abicare Services Ltd Homecare ,110031,SP2 ,Community Services,South Care Packages,Adult Domiciliary Care,Third Party Payments,REVENUE
Wiltshire, http://opendatacommunities.org/id/unitary-authority/wiltshire,10/10/2019,1902426870,669.12,Abicare Services Ltd Homecare ,110031,SP2 ,Community Services,South Care Packages,Adult Domiciliary Care,Third Party Payments,REVENUE
Wiltshire, http://opendatacommunities.org/id/unitary-authority/wiltshire,10/10/2019,1902426871,422.44,Abicare Services Ltd Homecare ,110031,SP2 ,Community Services,South Care Packages,Adult Domiciliary Care Contribution,Income,REVENUE
Wiltshire, http://opendatacommunities.org/id/unitary-authority/wiltshire,10/10/2019,1902426872,2143.04,Abicare Services Ltd Homecare ,110031,SP2 ,Community Services,West Care Packages,Adult Domiciliary Care Contribution,Income,REVENUE
Wiltshire, http://opendatacommunities.org/id/unitary-authority/wiltshire,10/10/2019,1902426873,692.44,Abicare Services Ltd Homecare ,110031,SP2 ,Community Services,CTPLD Placements,Adult Domiciliary Care,Third Party Payments,REVENUE
Wiltshire, http://opendatacommunities.org/id/unitary-authority/wiltshire,10/10/2019,1902426874,1015.68,Abicare Services Ltd Homecare ,110031,SP2 ,Community Services,CTPLD Placements,Adult Domiciliary Care Contribution,Income,REVENUE
Wiltshire, http://opendatacommunities.org/id/unitary-authority/wiltshire,10/10/2019,1902426875,1246.3,Abicare Services Ltd Homecare ,110031,SP2 ,Community Services,South Care Packages,Adult Domiciliary Care,Third Party Payments,REVENUE
Wiltshire, http://opendatacommunities.org/id/unitary-authority/wiltshire,10/10/2019,1902426876,269.5,Abicare Services Ltd Homecare ,110031,SP2 ,Community Services,South Care Packages,Adult Domiciliary Care Contribution,Income,REVENUE
Wiltshire, http://opendatacommunities.org/id/unitary-authority/wiltshire,10/10/2019,1902426878,677.94,Abicare Services Ltd Homecare ,110031,SP2 ,Community Services,West Care Packages,Adult Domiciliary Care Contribution,Income,REVENUE
Wiltshire, http://opendatacommunities.org/id/unitary-authority/wiltshire,10/10/2019,1902426879,469.2,Abicare Services Ltd Homecare ,110031,SP2 ,Community Services,CTPLD Placements,Adult Domiciliary Care,Third Party Payments,REVENUE
Wiltshire, http://opendatacommunities.org/id/unitary-authority/wiltshire,10/10/2019,1902426881,1618.2,Abicare Services Ltd Homecare ,110031,SP2 ,Community Services,West Care Packages,Adult Domiciliary Care Contribution,Income,REVENUE
Wiltshire, http://opendatacommunities.org/id/unitary-authority/wiltshire,10/10/2019,1902426882,711.36,Abicare Services Ltd Homecare ,110031,SP2 ,Community Services,West Care Packages,Adult Domiciliary Care,Third Party Payments,REVENUE
Wiltshire, http://opendatacommunities.org/id/unitary-authority/wiltshire,10/10/2019,1902426883,937.04,Abicare Services Ltd Homecare ,110031,SP2 ,Community Services,MH OP South Locality,Adult Domiciliary Care,Third Party Payments,REVENUE
Wiltshire, http://opendatacommunities.org/id/unitary-authority/wiltshire,10/10/2019,1902426885,1684.16,Abicare Services Ltd Homecare ,110031,SP2 ,Community Services,South Care Packages,Adult Domiciliary Care Contribution,Income,REVENUE
Wiltshire, http://opendatacommunities.org/id/unitary-authority/wiltshire,10/10/2019,1902426886,502.51,Abicare Services Ltd Homecare ,110031,SP2 ,Community Services,South Care Packages,Adult Domiciliary Care Contribution,Income,REVENUE
Wiltshire, http://opendatacommunities.org/id/unitary-authority/wiltshire,10/10/2019,1902426887,1106.56,Abicare Services Ltd Homecare ,110031,SP2 ,Community Services,MH AOWA West Localit,Adult Domiciliary Care,Third Party Payments,REVENUE
Wiltshire, http://opendatacommunities.org/id/unitary-authority/wiltshire,10/10/2019,1902426888,916.12,Abicare Services Ltd Homecare ,110031,SP2 ,Community Services,West Care Packages,Adult Domiciliary Care Contribution,Income,REVENUE
Wiltshire, http://opendatacommunities.org/id/unitary-authority/wiltshire,10/10/2019,1902426889,988,Abicare Services Ltd Homecare ,110031,SP2 ,Community Services,MH AOWA West Localit,Adult Domiciliary Care,Third Party Payments,REVENUE
Wiltshire, http://opendatacommunities.org/id/unitary-authority/wiltshire,10/10/2019,1902426890,561.96,Abicare Services Ltd Homecare ,110031,SP2 ,Community Services,South Care Packages,Adult Domiciliary Care,Third Party Payments,REVENUE
Wiltshire, http://opendatacommunities.org/id/unitary-authority/wiltshire,10/10/2019,1902426892,385.08,Abicare Services Ltd Homecare ,110031,SP2 ,Community Services,West Care Packages,Adult Domiciliary Care Contribution,Income,REVENUE
Wiltshire, http://opendatacommunities.org/id/unitary-authority/wiltshire,10/10/2019,1902426893,672.2,Abicare Services Ltd Homecare ,110031,SP2 ,Community Services,South Care Packages,Adult Domiciliary Care,Third Party Payments,REVENUE
Wiltshire, http://opendatacommunities.org/id/unitary-authority/wiltshire,10/10/2019,1902426895,948.48,Abicare Services Ltd Homecare ,110031,SP2 ,Community Services,North Care Packages,Adult Domiciliary Care,Third Party Payments,REVENUE
Wiltshire, http://opendatacommunities.org/id/unitary-authority/wiltshire,10/10/2019,1902426896,452.76,Abicare Services Ltd Homecare ,110031,SP2 ,Community Services,South Care Packages,Adult Domiciliary Care,Third Party Payments,REVENUE
Wiltshire, http://opendatacommunities.org/id/unitary-authority/wiltshire,10/10/2019,1902426897,1395.4,Abicare Services Ltd Homecare ,110031,SP2 ,Community Services,South Care Packages,Adult Domiciliary Care Contribution,Income,REVENUE
Wiltshire, http://opendatacommunities.org/id/unitary-authority/wiltshire,10/10/2019,1902426898,1643.88,Abicare Services Ltd Homecare ,110031,SP2 ,Community Services,West Care Packages,Adult Domiciliary Care,Third Party Payments,REVENUE
Wiltshire, http://opendatacommunities.org/id/unitary-authority/wiltshire,10/10/2019,1902426900,316.16,Abicare Services Ltd Homecare ,110031,SP2 ,Community Services,West Care Packages,Adult Domiciliary Care,Third Party Payments,REVENUE
Wiltshire, http://opendatacommunities.org/id/unitary-authority/wiltshire,10/10/2019,1902426901,1472.12,Abicare Services Ltd Homecare ,110031,SP2 ,Community Services,West Care Packages,Adult Domiciliary Care,Third Party Payments,REVENUE
Wiltshire, http://opendatacommunities.org/id/unitary-authority/wiltshire,10/10/2019,1902426902,1161.02,Abicare Services Ltd Homecare ,110031,SP2 ,Community Services,CTPLD Placements,Adult Domiciliary Care Contribution,Income,REVENUE
Wiltshire, http://opendatacommunities.org/id/unitary-authority/wiltshire,10/10/2019,1902426904,2904.69,Abicare Services Ltd Homecare ,110031,SP2 ,Community Services,South Care Packages,Adult Domiciliary Care Contribution,Income,REVENUE
Wiltshire, http://opendatacommunities.org/id/unitary-authority/wiltshire,10/10/2019,1902426905,1116.36,Abicare Services Ltd Homecare ,110031,SP2 ,Community Services,South Care Packages,Adult Domiciliary Care,Third Party Payments,REVENUE
Wiltshire, http://opendatacommunities.org/id/unitary-authority/wiltshire,14/10/2019,1902427378,1624.82,Abicare Services Ltd Homecare ,110031,SP2 ,Community Services,CTPLD Placements,Adult Domiciliary Care Contribution,Income,REVENUE
Wiltshire, http://opendatacommunities.org/id/unitary-authority/wiltshire,14/10/2019,1902427399,428.74,Abicare Services Ltd Homecare ,110031,SP2 ,Community Services,West Care Packages,Adult Domiciliary Care Contribution,Income,REVENUE
Wiltshire, http://opendatacommunities.org/id/unitary-authority/wiltshire,01/10/2019,1902423062,715.56,Abicare Services Ltd Live in Care. ,113071,SP2 ,Community Services,West Care Packages,Adult Domiciliary Care Contribution,Income,REVENUE
Wiltshire, http://opendatacommunities.org/id/unitary-authority/wiltshire,10/10/2019,1902426860,3307.84,Abicare Services Ltd Live in Care. ,113071,SP2 ,Community Services,South Care Packages,Adult Domiciliary Care Contribution,Income,REVENUE
Wiltshire, http://opendatacommunities.org/id/unitary-authority/wiltshire,10/10/2019,1902426861,3557.44,Abicare Services Ltd Live in Care. ,113071,SP2 ,Community Services,South Care Packages,Adult Domiciliary Care Contribution,Income,REVENUE
Wiltshire, http://opendatacommunities.org/id/unitary-authority/wiltshire,10/10/2019,1902426862,3579.88,Abicare Services Ltd Live in Care. ,113071,SP2 ,Community Services,South Care Packages,Adult Domiciliary Care Contribution,Income,REVENUE
Wiltshire, http://opendatacommunities.org/id/unitary-authority/wiltshire,10/10/2019,1902426880,1413.72,Abicare Services Ltd Live in Care. ,113071,SP2 ,Community Services,West Care Packages,Adult Domiciliary Care - Live in Care,Third Party Payments,REVENUE
Wiltshire, http://opendatacommunities.org/id/unitary-authority/wiltshire,10/10/2019,1902426903,2489.76,Abicare Services Ltd Live in Care. ,113071,SP2 ,Community Services,West Care Packages,Adult Domiciliary Care - Live in Care,Third Party Payments,REVENUE
Wiltshire, http://opendatacommunities.org/id/unitary-authority/wiltshire,10/10/2019,1902426974,775.6,Abicare Services Ltd Live in Care. ,113071,SP2 ,Community Services,South Care Packages,Adult Domiciliary Care - Live in Care,Third Party Payments,REVENUE
Wiltshire, http://opendatacommunities.org/id/unitary-authority/wiltshire,10/10/2019,1902426975,3820.88,Abicare Services Ltd Live in Care. ,113071,SP2 ,Community Services,MH OP West Locality,Adult Domiciliary Care - Live in Care,Third Party Payments,REVENUE
Wiltshire, http://opendatacommunities.org/id/unitary-authority/wiltshire,10/10/2019,1902426976,3628.24,Abicare Services Ltd Live in Care. ,113071,SP2 ,Community Services,MH AOWA West Localit,Adult Domiciliary Care - Live in Care,Third Party Payments,REVENUE
Wiltshire, http://opendatacommunities.org/id/unitary-authority/wiltshire,10/10/2019,1902426977,3820.88,Abicare Services Ltd Live in Care. ,113071,SP2 ,Community Services,West Care Packages,Adult Domiciliary Care - Live in Care,Third Party Payments,REVENUE
Wiltshire, http://opendatacommunities.org/id/unitary-authority/wiltshire,10/10/2019,1902426978,3820.88,Abicare Services Ltd Live in Care. ,113071,SP2 ,Community Services,North Care Packages,Adult Domiciliary Care - Live in Care,Third Party Payments,REVENUE
Wiltshire, http://opendatacommunities.org/id/unitary-authority/wiltshire,10/10/2019,1902426979,567.74,Abicare Services Ltd Live in Care. ,113071,SP2 ,Community Services,West Care Packages,Adult Domiciliary Care Contribution,Income,REVENUE
Wiltshire, http://opendatacommunities.org/id/unitary-authority/wiltshire,10/10/2019,1902426980,3628.24,Abicare Services Ltd Live in Care. ,113071,SP2 ,Community Services,South Care Packages,Adult Domiciliary Care - Live in Care,Third Party Payments,REVENUE
Wiltshire, http://opendatacommunities.org/id/unitary-authority/wiltshire,10/10/2019,1902426981,1036.15,Abicare Services Ltd Live in Care. ,113071,SP2 ,Community Services,South Care Packages,Adult Domiciliary Care - Live in Care,Third Party Payments,REVENUE
Wiltshire, http://opendatacommunities.org/id/unitary-authority/wiltshire,10/10/2019,1902426982,3628.24,Abicare Services Ltd Live in Care. ,113071,SP2 ,Community Services,South Care Packages,Adult Domiciliary Care - Live in Care,Third Party Payments,REVENUE
Wiltshire, http://opendatacommunities.org/id/unitary-authority/wiltshire,10/10/2019,1902426983,1085.84,Abicare Services Ltd Live in Care. ,113071,SP2 ,Community Services,South Care Packages,Adult Domiciliary Care - Live in Care,Third Party Payments,REVENUE
Wiltshire, http://opendatacommunities.org/id/unitary-authority/wiltshire,10/10/2019,1902426984,3378.48,Abicare Services Ltd Live in Care. ,113071,SP2 ,Community Services,West Care Packages,Adult Domiciliary Care Contribution,Income,REVENUE
Wiltshire, http://opendatacommunities.org/id/unitary-authority/wiltshire,10/10/2019,1902426985,3934.68,Abicare Services Ltd Live in Care. ,113071,SP2 ,Community Services,South Care Packages,Adult Domiciliary Care Contribution,Income,REVENUE
Wiltshire, http://opendatacommunities.org/id/unitary-authority/wiltshire,14/10/2019,1902427397,3934.68,Abicare Services Ltd Live in Care. ,113071,SP2 ,Community Services,South Care Packages,Adult Domiciliary Care Contribution,Income,REVENUE
Wiltshire, http://opendatacommunities.org/id/unitary-authority/wiltshire,14/10/2019,1902427398,1299.86,Abicare Services Ltd Live in Care. ,113071,SP2 ,Community Services,South Care Packages,Adult Domiciliary Care - Live in Care,Third Party Payments,REVENUE
Wiltshire, http://opendatacommunities.org/id/unitary-authority/wiltshire,21/10/2019,1902431113,3820.88,Abicare Services Ltd Live in Care. ,113071,SP2 ,Community Services,West Care Packages,Adult Domiciliary Care,Third Party Payments,REVENUE
Wiltshire, http://opendatacommunities.org/id/unitary-authority/wiltshire,21/10/2019,1902431114,3820.88,Abicare Services Ltd Live in Care. ,113071,SP2 ,Community Services,West Care Packages,Adult Domiciliary Care,Third Party Payments,REVENUE
Wiltshire, http://opendatacommunities.org/id/unitary-authority/wiltshire,21/10/2019,1902431115,2977.04,Abicare Services Ltd Live in Care. ,113071,SP2 ,Community Services,West Care Packages,Adult Domiciliary Care Contribution,Income,REVENUE
Wiltshire, http://opendatacommunities.org/id/unitary-authority/wiltshire,21/10/2019,1902431116,2977.04,Abicare Services Ltd Live in Care. ,113071,SP2 ,Community Services,West Care Packages,Adult Domiciliary Care Contribution,Income,REVENUE
Wiltshire, http://opendatacommunities.org/id/unitary-authority/wiltshire,24/10/2019,1902436218,5694.74,ABLE ,101029,BA14,Community Services,MH AOWA West Localit,Transport - Mileage & Fuel,Transport Related,REVENUE
Wiltshire, http://opendatacommunities.org/id/unitary-authority/wiltshire,01/10/2019,5107385585,3353.76,ABLE ,101029,BA14,Community Services,MH Commissioned Cont,Grants Expenditure,Supplies and Services,REVENUE
Wiltshire, http://opendatacommunities.org/id/unitary-authority/wiltshire,16/10/2019,5107387879,443.44,ABLE ,101029,BA14,Community Services,MH AOWA N&E Locality,Supported Living,Third Party Payments,REVENUE
Wiltshire, http://opendatacommunities.org/id/unitary-authority/wiltshire,16/10/2019,5107391557,443.44,ABLE ,101029,BA14,Community Services,MH AOWA N&E Locality,Supported Living,Third Party Payments,REVENUE
Wiltshire, http://opendatacommunities.org/id/unitary-authority/wiltshire,16/10/2019,5107391587,443.44,ABLE ,101029,BA14,Community Services,MH AOWA N&E Locality,Supported Living,Third Party Payments,REVENUE
Wiltshire, http://opendatacommunities.org/id/unitary-authority/wiltshire,16/10/2019,5107391679,443.44,ABLE ,101029,BA14,Community Services,MH AOWA N&E Locality,Supported Living,Third Party Payments,REVENUE
Wiltshire, http://opendatacommunities.org/id/unitary-authority/wiltshire,30/10/2019,5107394545,3353.76,ABLE ,101029,BA14,Community Services,MH Commissioned Cont,Grants Expenditure,Supplies and Services,REVENUE
Wiltshire, http://opendatacommunities.org/id/unitary-authority/wiltshire,15/10/2019,1902428723,4247.8,ABLE ,110034,BA14,Community Services,MH AOWA West Localit,Transport - Mileage & Fuel,Transport Related,REVENUE
Wiltshire, http://opendatacommunities.org/id/unitary-authority/wiltshire,16/10/2019,5107387111,3120,ABLE ,110034,BA14,Community Services,MH OP West Locality,Adult Residential Placements - Spot Purchase,Third Party Payments,REVENUE
Wiltshire, http://opendatacommunities.org/id/unitary-authority/wiltshire,16/10/2019,5107387121,3555.4,ABLE ,110034,BA14,Community Services,MH AOWA West Localit,Adult Residential Placements - Spot Purchase,Third Party Payments,REVENUE
Wiltshire, http://opendatacommunities.org/id/unitary-authority/wiltshire,16/10/2019,5107390242,870.38,ABLE ,110034,BA14,Community Services,MH AOWA West Localit,Adult Residential Placements - Spot Purchase,Third Party Payments,REVENUE
Wiltshire, http://opendatacommunities.org/id/unitary-authority/wiltshire,16/10/2019,5107390558,4136.96,ABLE ,110034,BA14,Community Services,MH AOWA West Localit,Adult Residential Placements - Spot Purchase,Third Party Payments,REVENUE
Wiltshire, http://opendatacommunities.org/id/unitary-authority/wiltshire,17/10/2019,1902430124,740,Able Hands Together CIC ,144783,SP11,Community Services,CTPLD Placements,Adult Day Care Contracts,Third Party Payments,REVENUE
Wiltshire, http://opendatacommunities.org/id/unitary-authority/wiltshire,17/10/2019,1902430125,360,Able Hands Together CIC ,144783,SP11,Community Services,CTPLD Placements,Adult Day Care Contracts,Third Party Payments,REVENUE
Wiltshire, http://opendatacommunities.org/id/unitary-authority/wiltshire,17/10/2019,1902430126,405,Able Hands Together CIC ,144783,SP11,Community Services,CTPLD Placements,Adult Day Care Contracts,Third Party Payments,REVENUE
Wiltshire, http://opendatacommunities.org/id/unitary-authority/wiltshire,10/10/2019,1902426286,1407.09,Abney & Baker (Bath) Ltd ,146229,BA1 ,Community Services,West Care Packages,Adult Domiciliary Care,Third Party Payments,REVENUE
Wiltshire, http://opendatacommunities.org/id/unitary-authority/wiltshire,10/10/2019,1902426287,939.12,Abney & Baker (Bath) Ltd ,146229,BA1 ,Community Services,West Care Packages,Adult Domiciliary Care,Third Party Payments,REVENUE
Wiltshire, http://opendatacommunities.org/id/unitary-authority/wiltshire,10/10/2019,1902426288,451.34,Abney & Baker (Bath) Ltd ,146229,BA1 ,Community Services,North Care Packages,Adult Domiciliary Care,Third Party Payments,REVENUE
Wiltshire, http://opendatacommunities.org/id/unitary-authority/wiltshire,10/10/2019,1902426289,428,Abney & Baker (Bath) Ltd ,146229,BA1 ,Community Services,West Care Packages,Adult Domiciliary Care Contribution,Income,REVENUE
Wiltshire, http://opendatacommunities.org/id/unitary-authority/wiltshire,10/10/2019,1902426290,736.72,Abney & Baker (Bath) Ltd ,146229,BA1 ,Community Services,MH AOWA N&E Locality,Adult Domiciliary Care,Third Party Payments,REVENUE
Wiltshire, http://opendatacommunities.org/id/unitary-authority/wiltshire,14/10/2019,1902427244,1790.32,Abney & Baker (Bath) Ltd ,146229,BA1 ,Community Services,West Care Packages,Adult Domiciliary Care,Third Party Payments,REVENUE
Wiltshire, http://opendatacommunities.org/id/unitary-authority/wiltshire,14/10/2019,1902427245,384.75,Abney & Baker (Bath) Ltd ,146229,BA1 ,Community Services,West Care Packages,Adult Domiciliary Care,Third Party Payments,REVENUE
Wiltshire, http://opendatacommunities.org/id/unitary-authority/wiltshire,14/10/2019,1902427246,967.64,Abney & Baker (Bath) Ltd ,146229,BA1 ,Community Services,North Care Packages,Adult Domiciliary Care,Third Party Payments,REVENUE
Wiltshire, http://opendatacommunities.org/id/unitary-authority/wiltshire,14/10/2019,1902427247,1522.36,Abney & Baker (Bath) Ltd ,146229,BA1 ,Community Services,West Care Packages,Adult Domiciliary Care,Third Party Payments,REVENUE
Wiltshire, http://opendatacommunities.org/id/unitary-authority/wiltshire,14/10/2019,1902427249,351.23,Abney & Baker (Bath) Ltd ,146229,BA1 ,Community Services,West Care Packages,Adult Domiciliary Care Contribution,Income,REVENUE
Wiltshire, http://opendatacommunities.org/id/unitary-authority/wiltshire,14/10/2019,1902427250,850.05,Abney & Baker (Bath) Ltd ,146229,BA1 ,Community Services,West Care Packages,Adult Domiciliary Care,Third Party Payments,REVENUE
Wiltshire, http://opendatacommunities.org/id/unitary-authority/wiltshire,14/10/2019,1902427251,1947.76,Abney & Baker (Bath) Ltd ,146229,BA1 ,Community Services,West Care Packages,Adult Domiciliary Care Contribution,Income,REVENUE
Wiltshire, http://opendatacommunities.org/id/unitary-authority/wiltshire,14/10/2019,1902427252,480.85,Abney & Baker (Bath) Ltd ,146229,BA1 ,Community Services,West Care Packages,Adult Domiciliary Care,Third Party Payments,REVENUE
Wiltshire, http://opendatacommunities.org/id/unitary-authority/wiltshire,14/10/2019,1902427253,469.56,Abney & Baker (Bath) Ltd ,146229,BA1 ,Community Services,West Care Packages,Adult Domiciliary Care,Third Party Payments,REVENUE
Wiltshire, http://opendatacommunities.org/id/unitary-authority/wiltshire,14/10/2019,1902427254,546.7,Abney & Baker (Bath) Ltd ,146229,BA1 ,Community Services,North Care Packages,Adult Domiciliary Care,Third Party Payments,REVENUE
Wiltshire, http://opendatacommunities.org/id/unitary-authority/wiltshire,14/10/2019,1902427255,1056.48,Abney & Baker (Bath) Ltd ,146229,BA1 ,Community Services,West Care Packages,Adult Domiciliary Care Contribution,Income,REVENUE
Wiltshire, http://opendatacommunities.org/id/unitary-authority/wiltshire,14/10/2019,1902427256,287.41,Abney & Baker (Bath) Ltd ,146229,BA1 ,Community Services,West Care Packages,Adult Domiciliary Care,Third Party Payments,REVENUE
Wiltshire, http://opendatacommunities.org/id/unitary-authority/wiltshire,14/10/2019,1902427257,1810.13,Abney & Baker (Bath) Ltd ,146229,BA1 ,Community Services,West Care Packages,Adult Domiciliary Care Contribution,Income,REVENUE
Wiltshire, http://opendatacommunities.org/id/unitary-authority/wiltshire,14/10/2019,1902427258,434.27,Abney & Baker (Bath) Ltd ,146229,BA1 ,Community Services,West Care Packages,Adult Domiciliary Care,Third Party Payments,REVENUE
Wiltshire, http://opendatacommunities.org/id/unitary-authority/wiltshire,14/10/2019,1902427259,457.76,Abney & Baker (Bath) Ltd ,146229,BA1 ,Community Services,MH AOWA West Localit,Adult Domiciliary Care,Third Party Payments,REVENUE
Wiltshire, http://opendatacommunities.org/id/unitary-authority/wiltshire,14/10/2019,1902427260,2032.52,Abney & Baker (Bath) Ltd ,146229,BA1 ,Community Services,West Care Packages,Adult Domiciliary Care,Third Party Payments,REVENUE
Wiltshire, http://opendatacommunities.org/id/unitary-authority/wiltshire,14/10/2019,1902427261,885.02,Abney & Baker (Bath) Ltd ,146229,BA1 ,Community Services,CTPLD Placements,Adult Domiciliary Care,Third Party Payments,REVENUE
Wiltshire, http://opendatacommunities.org/id/unitary-authority/wiltshire,14/10/2019,1902427262,1721.8,Abney & Baker (Bath) Ltd ,146229,BA1 ,Community Services,West Care Packages,Adult Domiciliary Care,Third Party Payments,REVENUE
Wiltshire, http://opendatacommunities.org/id/unitary-authority/wiltshire,14/10/2019,1902427263,2373.56,Abney & Baker (Bath) Ltd ,146229,BA1 ,Community Services,West Care Packages,Adult Domiciliary Care,Third Party Payments,REVENUE
Wiltshire, http://opendatacommunities.org/id/unitary-authority/wiltshire,14/10/2019,1902427264,2032.52,Abney & Baker (Bath) Ltd ,146229,BA1 ,Community Services,North Care Packages,Adult Domiciliary Care,Third Party Payments,REVENUE
Wiltshire, http://opendatacommunities.org/id/unitary-authority/wiltshire,16/10/2019,5107390673,2367.36,Acacia London Residential Healthcar ,147333,KT6 ,Community Services,North Care Packages,Adult Care Nursing Placements - Spot,Third Party Payments,REVENUE
Wiltshire, http://opendatacommunities.org/id/unitary-authority/wiltshire,03/10/2019,5107386083,336,Academy21 Ltd ,136859,NP8 ,Children & Education,EOTAS Service,Educational Fees,Supplies and Services,REVENUE
Wiltshire, http://opendatacommunities.org/id/unitary-authority/wiltshire,03/10/2019,5107386084,336,Academy21 Ltd ,136859,NP8 ,Children & Education,EOTAS Service,Educational Fees,Supplies and Services,REVENUE
Wiltshire, http://opendatacommunities.org/id/unitary-authority/wiltshire,09/10/2019,5107386085,3116,Academy21 Ltd ,136859,NP8 ,Children & Education,EOTAS Service,Educational Fees,Supplies and Services,REVENUE
Wiltshire, http://opendatacommunities.org/id/unitary-authority/wiltshire,16/10/2019,5107388585,7775.04,Accomplish Group Limited ,112775,SA1 ,Community Services,CTPLD Placements,Adult Residential Placements - Spot Purchase,Third Party Payments,REVENUE
Wiltshire, http://opendatacommunities.org/id/unitary-authority/wiltshire,16/10/2019,5107388599,8266,Accomplish Group Limited ,112775,SA1 ,Community Services,CTPLD Placements,Adult Residential Placements - Spot Purchase,Third Party Payments,REVENUE
Wiltshire, http://opendatacommunities.org/id/unitary-authority/wiltshire,16/10/2019,5107388910,6172.68,Accomplish Group Limited ,112775,SA1 ,Community Services,CTPLD Placements,Adult Residential Placements - Spot Purchase,Third Party Payments,REVENUE
Wiltshire, http://opendatacommunities.org/id/unitary-authority/wiltshire,16/10/2019,5107390777,6740,Accomplish Group Limited ,112775,SA1 ,Community Services,MH AOWA N&E Locality,Adult Residential Placements - Spot Purchase,Third Party Payments,REVENUE
Wiltshire, http://opendatacommunities.org/id/unitary-authority/wiltshire,16/10/2019,5107391027,7440,Accomplish Group Limited ,112775,SA1 ,Community Services,North Care Packages,Adult Residential Placements - Spot Purchase,Third Party Payments,REVENUE
Wiltshire, http://opendatacommunities.org/id/unitary-authority/wiltshire,15/10/2019,1902428744,1995,Ace Cabs ,139613,SP4 ,Neighbourhood & Planning,SEN Secondary Tspt,Transport Contracts,Third Party Payments,REVENUE
Wiltshire, http://opendatacommunities.org/id/unitary-authority/wiltshire,15/10/2019,1902428756,807.5,Ace Cabs ,139613,SP4 ,Neighbourhood & Planning,SEN Secondary Tspt,Transport Contracts,Third Party Payments,REVENUE
Wiltshire, http://opendatacommunities.org/id/unitary-authority/wiltshire,15/10/2019,1902428756,2422.5,Ace Cabs ,139613,SP4 ,Neighbourhood & Planning,SEN Primary Transprt,Transport Contracts,Third Party Payments,REVENUE
Wiltshire, http://opendatacommunities.org/id/unitary-authority/wiltshire,15/10/2019,1902428757,1292.91,Ace Cabs ,139613,SP4 ,Neighbourhood & Planning,SEN Primary Transprt,Transport Contracts,Third Party Payments,REVENUE
Wiltshire, http://opendatacommunities.org/id/unitary-authority/wiltshire,10/10/2019,5107386656,380,Acer Tree Surgeons Ltd ,113296,BA13,Neighbourhood & Planning,Off Street Parking,Property Maintenance,Premises Related,REVENUE
Wiltshire, http://opendatacommunities.org/id/unitary-authority/wiltshire,15/10/2019,5107391151,540,Acer Tree Surgeons Ltd ,113296,BA13,Neighbourhood & Planning,Countryside,Grounds Maintenance,Premises Related,REVENUE
Wiltshire, http://opendatacommunities.org/id/unitary-authority/wiltshire,30/10/2019,5107394471,420,Acer Tree Surgeons Ltd ,113296,BA13,Neighbourhood & Planning,Rights of Way,Grounds Maintenance,Premises Related,REVENUE
Wiltshire, http://opendatacommunities.org/id/unitary-authority/wiltshire,01/10/2019,5107385618,2004.24,Achieve Together ,110312,KT22,Children & Education,0-25 extnl disabty p,Other Social & Welfare Costs,Third Party Payments,REVENUE
Wiltshire, http://opendatacommunities.org/id/unitary-authority/wiltshire,01/10/2019,5107385619,15504.56,Achieve Together ,110312,KT22,Children & Education,0-25 extnl disabty p,Other Social & Welfare Costs,Third Party Payments,REVENUE
Wiltshire, http://opendatacommunities.org/id/unitary-authority/wiltshire,01/10/2019,5107385620,15504.56,Achieve Together ,110312,KT22,Children & Education,0-25 extnl disabty p,Other Social & Welfare Costs,Third Party Payments,REVENUE
Wiltshire, http://opendatacommunities.org/id/unitary-authority/wiltshire,01/10/2019,5107385621,15504.56,Achieve Together ,110312,KT22,Children & Education,0-25 extnl disabty p,Other Social & Welfare Costs,Third Party Payments,REVENUE
Wiltshire, http://opendatacommunities.org/id/unitary-authority/wiltshire,01/10/2019,5107385622,15402.76,Achieve Together ,110312,KT22,Children & Education,0-25 extnl disabty p,Other Social & Welfare Costs,Third Party Payments,REVENUE
Wiltshire, http://opendatacommunities.org/id/unitary-authority/wiltshire,16/10/2019,5107387612,15672.44,Achieve Together ,110312,KT22,Community Services,CTPLD Placements,Adult Residential Placements - Spot Purchase,Third Party Payments,REVENUE
Wiltshire, http://opendatacommunities.org/id/unitary-authority/wiltshire,16/10/2019,5107387613,931.44,Achieve Together ,110312,KT22,Community Services,CTPLD Placements,Adult Residential Placements - Spot Purchase,Third Party Payments,REVENUE
Wiltshire, http://opendatacommunities.org/id/unitary-authority/wiltshire,16/10/2019,5107387776,11333.32,Achieve Together ,110312,KT22,Community Services,CTPLD Placements,Adult Residential Placements - Spot Purchase,Third Party Payments,REVENUE
Wiltshire, http://opendatacommunities.org/id/unitary-authority/wiltshire,16/10/2019,5107387778,12642.68,Achieve Together ,110312,KT22,Community Services,CTPLD Placements,Adult Residential Placements - Spot Purchase,Third Party Payments,REVENUE
Wiltshire, http://opendatacommunities.org/id/unitary-authority/wiltshire,16/10/2019,5107387820,12206.32,Achieve Together ,110312,KT22,Community Services,CTPLD Placements,Adult Residential Placements - Spot Purchase,Third Party Payments,REVENUE
Wiltshire, http://opendatacommunities.org/id/unitary-authority/wiltshire,11/10/2019,5107388472,15504.56,Achieve Together ,110312,KT22,Children & Education,0-25 extnl disabty p,Other Social & Welfare Costs,Third Party Payments,REVENUE
Wiltshire, http://opendatacommunities.org/id/unitary-authority/wiltshire,16/10/2019,5107388607,13137,Achieve Together ,110312,KT22,Community Services,CTPLD Placements,Adult Residential Placements - Spot Purchase,Third Party Payments,REVENUE
Wiltshire, http://opendatacommunities.org/id/unitary-authority/wiltshire,16/10/2019,5107388760,13469.24,Achieve Together ,110312,KT22,Community Services,CTPLD Placements,Adult Residential Placements - Spot Purchase,Third Party Payments,REVENUE
Wiltshire, http://opendatacommunities.org/id/unitary-authority/wiltshire,16/10/2019,5107388920,8673.68,Achieve Together ,110312,KT22,Community Services,CTPLD Placements,Adult Residential Placements - Spot Purchase,Third Party Payments,REVENUE
Wiltshire, http://opendatacommunities.org/id/unitary-authority/wiltshire,16/10/2019,5107389000,13844.96,Achieve Together ,110312,KT22,Community Services,CTPLD Placements,Adult Residential Placements - Spot Purchase,Third Party Payments,REVENUE
Wiltshire, http://opendatacommunities.org/id/unitary-authority/wiltshire,16/10/2019,5107389498,12985.56,Achieve Together ,110312,KT22,Community Services,CTPLD Placements,Adult Residential Placements - Spot Purchase,Third Party Payments,REVENUE
Wiltshire, http://opendatacommunities.org/id/unitary-authority/wiltshire,16/10/2019,5107389564,15316.24,Achieve Together ,110312,KT22,Community Services,CTPLD Placements,Adult Residential Placements - Spot Purchase,Third Party Payments,REVENUE
Wiltshire, http://opendatacommunities.org/id/unitary-authority/wiltshire,16/10/2019,5107389566,910.08,Achieve Together ,110312,KT22,Community Services,CTPLD Placements,Adult Residential Placements - Spot Purchase,Third Party Payments,REVENUE
Wiltshire, http://opendatacommunities.org/id/unitary-authority/wiltshire,16/10/2019,5107389647,14442.6,Achieve Together ,110312,KT22,Community Services,CTPLD Placements,Adult Residential Placements - Spot Purchase,Third Party Payments,REVENUE
Wiltshire, http://opendatacommunities.org/id/unitary-authority/wiltshire,16/10/2019,5107389649,13507.88,Achieve Together ,110312,KT22,Community Services,CTPLD Placements,Adult Residential Placements - Spot Purchase,Third Party Payments,REVENUE
Wiltshire, http://opendatacommunities.org/id/unitary-authority/wiltshire,16/10/2019,5107389651,16041.28,Achieve Together ,110312,KT22,Community Services,CTPLD Placements,Adult Residential Placements - Spot Purchase,Third Party Payments,REVENUE
Wiltshire, http://opendatacommunities.org/id/unitary-authority/wiltshire,16/10/2019,5107389653,8564.12,Achieve Together ,110312,KT22,Community Services,CTPLD Placements,Adult Residential Placements - Spot Purchase,Third Party Payments,REVENUE
Wiltshire, http://opendatacommunities.org/id/unitary-authority/wiltshire,16/10/2019,5107389666,13209,Achieve Together ,110312,KT22,Community Services,CTPLD Placements,Adult Residential Placements - Spot Purchase,Third Party Payments,REVENUE
Wiltshire, http://opendatacommunities.org/id/unitary-authority/wiltshire,16/10/2019,5107389668,12884.92,Achieve Together ,110312,KT22,Community Services,CTPLD Placements,Adult Residential Placements - Spot Purchase,Third Party Payments,REVENUE
Wiltshire, http://opendatacommunities.org/id/unitary-authority/wiltshire,16/10/2019,5107389674,11785.24,Achieve Together ,110312,KT22,Community Services,CTPLD Placements,Adult Residential Placements - Spot Purchase,Third Party Payments,REVENUE
Wiltshire, http://opendatacommunities.org/id/unitary-authority/wiltshire,16/10/2019,5107389676,700.08,Achieve Together ,110312,KT22,Community Services,CTPLD Placements,Adult Residential Placements - Spot Purchase,Third Party Payments,REVENUE
Wiltshire, http://opendatacommunities.org/id/unitary-authority/wiltshire,16/10/2019,5107390334,11832.16,Achieve Together ,110312,KT22,Community Services,CTPLD Placements,Adult Residential Placements - Spot Purchase,Third Party Payments,REVENUE
Wiltshire, http://opendatacommunities.org/id/unitary-authority/wiltshire,16/10/2019,5107390548,13418.6,Achieve Together ,110312,KT22,Community Services,CTPLD Placements,Adult Residential Placements - Spot Purchase,Third Party Payments,REVENUE
Wiltshire, http://opendatacommunities.org/id/unitary-authority/wiltshire,16/10/2019,5107391564,4118.32,Achieve Together ,110312,KT22,Community Services,MH AOWA West Localit,Supported Living,Third Party Payments,REVENUE
Wiltshire, http://opendatacommunities.org/id/unitary-authority/wiltshire,16/10/2019,5107391937,2096.96,Achieve Together ,110312,KT22,Community Services,West Care Packages,Supported Living,Third Party Payments,REVENUE
Wiltshire, http://opendatacommunities.org/id/unitary-authority/wiltshire,16/10/2019,5107391938,3669.76,Achieve Together ,110312,KT22,Community Services,West Care Packages,Supported Living,Third Party Payments,REVENUE
Wiltshire, http://opendatacommunities.org/id/unitary-authority/wiltshire,16/10/2019,5107391939,3669.76,Achieve Together ,110312,KT22,Community Services,West Care Packages,Supported Living,Third Party Payments,REVENUE
Wiltshire, http://opendatacommunities.org/id/unitary-authority/wiltshire,16/10/2019,5107391940,3669.76,Achieve Together ,110312,KT22,Community Services,West Care Packages,Supported Living,Third Party Payments,REVENUE
Wiltshire, http://opendatacommunities.org/id/unitary-authority/wiltshire,01/10/2019,5107385504,12650,Acorn Care & Education ,144613,BL2 ,Children & Education,IndepSpecialSchFees,Educational Fees,Supplies and Services,REVENUE
Wiltshire, http://opendatacommunities.org/id/unitary-authority/wiltshire,01/10/2019,5107385505,7500,Acorn Care & Education ,144613,BL2 ,Children & Education,IndepSpecialSchFees,Educational Fees,Supplies and Services,REVENUE
Wiltshire, http://opendatacommunities.org/id/unitary-authority/wiltshire,15/10/2019,1902429553,4726.75,Acorn Education Trust - New Close ,148417,BA12,Children & Education,Free Enttlmnt 3 & 4y,Childcare Free Entitlement Early Years,Supplies and Services,REVENUE
Wiltshire, http://opendatacommunities.org/id/unitary-authority/wiltshire,16/10/2019,5107387582,3788,Acorn Lodge ,131233,BH21,Community Services,South Care Packages,Adult Residential Placements - Spot Purchase,Third Party Payments,REVENUE
Wiltshire, http://opendatacommunities.org/id/unitary-authority/wiltshire,28/10/2019,5107392238,1657,Acorn Press Swindon Ltd ,147367,SN5 ,Neighbourhood & Planning,Swindon & Wilts LEP,Consultants Fees,Supplies and Services,REVENUE
Wiltshire, http://opendatacommunities.org/id/unitary-authority/wiltshire,08/10/2019,5107386360,1000,Action For Children ,147106,WD18,Children & Education,Pupil Premium LAC,Educational Fees,Supplies and Services,REVENUE
Wiltshire, http://opendatacommunities.org/id/unitary-authority/wiltshire,24/10/2019,1902436900,600,Action on Hearing Loss ,112215,N1 1,Community Services,North Care Packages,Supported Living,Third Party Payments,REVENUE
Wiltshire, http://opendatacommunities.org/id/unitary-authority/wiltshire,24/10/2019,1902436901,1188,Action on Hearing Loss ,112215,N1 1,Community Services,CTPLD Placements,Adult Domiciliary Care,Third Party Payments,REVENUE
Wiltshire, http://opendatacommunities.org/id/unitary-authority/wiltshire,24/10/2019,1902436902,1188,Action on Hearing Loss ,112215,N1 1,Community Services,CTPLD Placements,Adult Domiciliary Care,Third Party Payments,REVENUE
Wiltshire, http://opendatacommunities.org/id/unitary-authority/wiltshire,16/10/2019,5107388800,6403.36,Action on Hearing Loss ,112215,N1 1,Community Services,South Care Packages,Adult Residential Placements - Spot Purchase,Third Party Payments,REVENUE
Wiltshire, http://opendatacommunities.org/id/unitary-authority/wiltshire,16/10/2019,5107389026,3880.56,Action on Hearing Loss ,112215,N1 1,Community Services,North Care Packages,Adult Residential Placements - Spot Purchase,Third Party Payments,REVENUE
Wiltshire, http://opendatacommunities.org/id/unitary-authority/wiltshire,15/10/2019,5107390031,675,Action on Hearing Loss ,112215,N1 1,Community Services,Disabilities Comm Ct,Grants Expenditure,Supplies and Services,REVENUE
Wiltshire, http://opendatacommunities.org/id/unitary-authority/wiltshire,17/10/2019,5107384359,1676.18,Action on Hearing Loss ,120413,PE2 ,Community Services,Hearing & Vision,Client Aids and Adaptations,Third Party Payments,REVENUE
Wiltshire, http://opendatacommunities.org/id/unitary-authority/wiltshire,04/10/2019,5107383700,251.29,Adams Morey Ltd ,110053,SP2 ,Neighbourhood & Planning,Fleet,Vehicle Parts,Transport Related,REVENUE
Wiltshire, http://opendatacommunities.org/id/unitary-authority/wiltshire,03/10/2019,5107383704,270.5,Adams Morey Ltd ,110053,SP2 ,Neighbourhood & Planning,Fleet,Vehicle Parts,Transport Related,REVENUE
Wiltshire, http://opendatacommunities.org/id/unitary-authority/wiltshire,11/10/2019,5107383752,917.13,Adams Morey Ltd ,110053,SP2 ,Neighbourhood & Planning,Fleet,Vehicle Parts,Transport Related,REVENUE
Wiltshire, http://opendatacommunities.org/id/unitary-authority/wiltshire,30/10/2019,5107386624,453.75,Adams Morey Ltd ,110053,SP2 ,Neighbourhood & Planning,Fleet,Vehicle Parts,Transport Related,REVENUE
Wiltshire, http://opendatacommunities.org/id/unitary-authority/wiltshire,04/10/2019,1902424547,2030,Adrains Engineering Psv ,100848,SN15,Neighbourhood & Planning,Public Transport,Transport Contracts,Third Party Payments,REVENUE
Wiltshire, http://opendatacommunities.org/id/unitary-authority/wiltshire,17/10/2019,1902430721,3459.58,Adrains Engineering Psv ,100848,SN15,Neighbourhood & Planning,Mainstream Primary,Transport Contracts,Third Party Payments,REVENUE
Wiltshire, http://opendatacommunities.org/id/unitary-authority/wiltshire,17/10/2019,1902430723,3568.95,Adrains Engineering Psv ,100848,SN15,Neighbourhood & Planning,Mainstream Secondary,Transport Contracts,Third Party Payments,REVENUE
Wiltshire, http://opendatacommunities.org/id/unitary-authority/wiltshire,22/10/2019,1902431685,3205.69,Adrains Engineering Psv ,100848,SN15,Neighbourhood & Planning,Mainstream Secondary,Transport Contracts,Third Party Payments,REVENUE
Wiltshire, http://opendatacommunities.org/id/unitary-authority/wiltshire,30/10/2019,1902439558,3119.04,Adrains Engineering Psv ,100848,SN15,Neighbourhood & Planning,Mainstream Secondary,Transport Contracts,Third Party Payments,REVENUE
Wiltshire, http://opendatacommunities.org/id/unitary-authority/wiltshire,22/10/2019,1902431686,2835,Adrian Shephard Taxi Service ,146753,BA12,Neighbourhood & Planning,SEN Primary Transprt,Transport Contracts,Third Party Payments,REVENUE
Wiltshire, http://opendatacommunities.org/id/unitary-authority/wiltshire,14/10/2019,1902427229,1520,Adrian's Taxi ,138861,SN10,Neighbourhood & Planning,SEN Secondary Tspt,Transport Contracts,Third Party Payments,REVENUE
Wiltshire, http://opendatacommunities.org/id/unitary-authority/wiltshire,31/10/2019,5107394663,4118.23,Advanced Legal Solutions ,126510,SL3 ,Resources,Coroner,ICT - Support arrangements,Supplies and Services,REVENUE
Wiltshire, http://opendatacommunities.org/id/unitary-authority/wiltshire,14/10/2019,1902427228,2736,Ady Cars ,136208,SP11,Neighbourhood & Planning,SEN Secondary Tspt,Transport Contracts,Third Party Payments,REVENUE
Wiltshire, http://opendatacommunities.org/id/unitary-authority/wiltshire,08/10/2019,5107385958,3591,AECOM Ltd ,127871,SW19,Wiltshire Council,Wiltshire Council,Consultants Fees,Supplies and Services,CAPITAL
Wiltshire, http://opendatacommunities.org/id/unitary-authority/wiltshire,08/10/2019,5107386411,6840,AECOM Ltd ,127871,SW19,Wiltshire Council,Wiltshire Council,Consultants Fees,Supplies and Services,CAPITAL
Wiltshire, http://opendatacommunities.org/id/unitary-authority/wiltshire,08/10/2019,5107386414,2450,AECOM Ltd ,127871,SW19,Wiltshire Council,Wiltshire Council,Professional Fees,Supplies and Services,CAPITAL
Wiltshire, http://opendatacommunities.org/id/unitary-authority/wiltshire,16/10/2019,5107389292,2424.88,Aegis Residential Care Homes ,148420,BL1 ,Community Services,South Care Packages,Adult Residential Placements - Spot Purchase,Third Party Payments,REVENUE
Wiltshire, http://opendatacommunities.org/id/unitary-authority/wiltshire,14/10/2019,1902421234,7741,Age UK Wiltshire ,100129,SN10,Community Services,Area Board BOA,Area Board Grants,Supplies and Services,REVENUE
Wiltshire, http://opendatacommunities.org/id/unitary-authority/wiltshire,01/10/2019,1902422560,4340,AginCare Live In Care Services Ltd ,110071,DT5 ,Community Services,ASC Community C&G,Grants Expenditure,Supplies and Services,REVENUE
Wiltshire, http://opendatacommunities.org/id/unitary-authority/wiltshire,01/10/2019,1902422561,22400,AginCare Live In Care Services Ltd ,110071,DT5 ,Community Services,ASC Community C&G,Grants Expenditure,Supplies and Services,REVENUE
Wiltshire, http://opendatacommunities.org/id/unitary-authority/wiltshire,03/10/2019,1902424267,1751.32,AginCare Live In Care Services Ltd ,110071,DT5 ,Community Services,North Care Packages,Adult Domiciliary care - Live in contribution,Income,REVENUE
Wiltshire, http://opendatacommunities.org/id/unitary-authority/wiltshire,03/10/2019,1902424268,1538.8,AginCare Live In Care Services Ltd ,110071,DT5 ,Community Services,North Care Packages,Adult Domiciliary care - Live in contribution,Income,REVENUE
Wiltshire, http://opendatacommunities.org/id/unitary-authority/wiltshire,03/10/2019,1902424269,2024.82,AginCare Live In Care Services Ltd ,110071,DT5 ,Community Services,South Care Packages,Adult Domiciliary care - Live in contribution,Income,REVENUE
Wiltshire, http://opendatacommunities.org/id/unitary-authority/wiltshire,03/10/2019,1902424270,1577.98,AginCare Live In Care Services Ltd ,110071,DT5 ,Community Services,North Care Packages,Adult Domiciliary Care Contribution,Income,REVENUE
Wiltshire, http://opendatacommunities.org/id/unitary-authority/wiltshire,17/10/2019,1902427118,2067.52,AginCare Live In Care Services Ltd ,110071,DT5 ,Community Services,West Care Packages,Adult Domiciliary Care,Third Party Payments,REVENUE
Wiltshire, http://opendatacommunities.org/id/unitary-authority/wiltshire,15/10/2019,1902427585,872.28,Agincare Ltd ,110069,DT5 ,Community Services,Homefirst Plus,Adult Domiciliary Care,Third Party Payments,REVENUE
Wiltshire, http://opendatacommunities.org/id/unitary-authority/wiltshire,15/10/2019,1902427586,1408.94,Agincare Ltd ,110069,DT5 ,Community Services,Homefirst Plus,Adult Domiciliary Care,Third Party Payments,REVENUE
Wiltshire, http://opendatacommunities.org/id/unitary-authority/wiltshire,15/10/2019,1902427587,1397.37,Agincare Ltd ,110069,DT5 ,Community Services,Homefirst Plus,Adult Domiciliary Care,Third Party Payments,REVENUE
Wiltshire, http://opendatacommunities.org/id/unitary-authority/wiltshire,15/10/2019,1902427588,1696.91,Agincare Ltd ,110069,DT5 ,Community Services,Homefirst Plus,Adult Domiciliary Care,Third Party Payments,REVENUE
Wiltshire, http://opendatacommunities.org/id/unitary-authority/wiltshire,15/10/2019,1902427589,474.51,Agincare Ltd ,110069,DT5 ,Community Services,Homefirst Plus,Adult Domiciliary Care,Third Party Payments,REVENUE
Wiltshire, http://opendatacommunities.org/id/unitary-authority/wiltshire,15/10/2019,1902427590,334.54,Agincare Ltd ,110069,DT5 ,Community Services,Homefirst Plus,Adult Domiciliary Care,Third Party Payments,REVENUE
Wiltshire, http://opendatacommunities.org/id/unitary-authority/wiltshire,15/10/2019,1902427591,823.3,Agincare Ltd ,110069,DT5 ,Community Services,Homefirst Plus,Adult Domiciliary Care,Third Party Payments,REVENUE
Wiltshire, http://opendatacommunities.org/id/unitary-authority/wiltshire,15/10/2019,1902427592,729.64,Agincare Ltd ,110069,DT5 ,Community Services,Homefirst Plus,Adult Domiciliary Care,Third Party Payments,REVENUE
Wiltshire, http://opendatacommunities.org/id/unitary-authority/wiltshire,17/10/2019,1902430179,284.54,Agincare Ltd ,110069,DT5 ,Community Services,North Care Packages,Adult Domiciliary Care Contribution,Income,REVENUE
Wiltshire, http://opendatacommunities.org/id/unitary-authority/wiltshire,17/10/2019,1902430180,626.6,Agincare Ltd ,110069,DT5 ,Community Services,CTPLD Placements,Adult Domiciliary Care Contribution,Income,REVENUE
Wiltshire, http://opendatacommunities.org/id/unitary-authority/wiltshire,17/10/2019,1902430182,1052.84,Agincare Ltd ,110069,DT5 ,Community Services,North Care Packages,Adult Domiciliary Care,Third Party Payments,REVENUE
Wiltshire, http://opendatacommunities.org/id/unitary-authority/wiltshire,17/10/2019,1902430183,410.96,Agincare Ltd ,110069,DT5 ,Community Services,North Care Packages,Adult Domiciliary Care,Third Party Payments,REVENUE
Wiltshire, http://opendatacommunities.org/id/unitary-authority/wiltshire,17/10/2019,1902430185,360.71,Agincare Ltd ,110069,DT5 ,Community Services,North Care Packages,Adult Domiciliary Care,Third Party Payments,REVENUE
Wiltshire, http://opendatacommunities.org/id/unitary-authority/wiltshire,17/10/2019,1902430186,749.97,Agincare Ltd ,110069,DT5 ,Community Services,North Care Packages,Adult Domiciliary Care,Third Party Payments,REVENUE
Wiltshire, http://opendatacommunities.org/id/unitary-authority/wiltshire,17/10/2019,1902430187,1383.74,Agincare Ltd ,110069,DT5 ,Community Services,North Care Packages,Adult Domiciliary Care Contribution,Income,REVENUE
Wiltshire, http://opendatacommunities.org/id/unitary-authority/wiltshire,17/10/2019,1902430188,1125.72,Agincare Ltd ,110069,DT5 ,Community Services,MH AOWA N&E Locality,Adult Domiciliary Care,Third Party Payments,REVENUE
Wiltshire, http://opendatacommunities.org/id/unitary-authority/wiltshire,17/10/2019,1902430189,716.21,Agincare Ltd ,110069,DT5 ,Community Services,CTPLD Placements,Adult Domiciliary Care,Third Party Payments,REVENUE
Wiltshire, http://opendatacommunities.org/id/unitary-authority/wiltshire,17/10/2019,1902430190,425.49,Agincare Ltd ,110069,DT5 ,Community Services,North Care Packages,Adult Domiciliary Care,Third Party Payments,REVENUE
Wiltshire, http://opendatacommunities.org/id/unitary-authority/wiltshire,17/10/2019,1902430191,323.96,Agincare Ltd ,110069,DT5 ,Community Services,North Care Packages,Adult Domiciliary Care,Third Party Payments,REVENUE
Wiltshire, http://opendatacommunities.org/id/unitary-authority/wiltshire,17/10/2019,1902430192,308.48,Agincare Ltd ,110069,DT5 ,Community Services,MH AOWA N&E Locality,Adult Domiciliary Care,Third Party Payments,REVENUE
Wiltshire, http://opendatacommunities.org/id/unitary-authority/wiltshire,17/10/2019,1902430193,1173,Agincare Ltd ,110069,DT5 ,Community Services,CTPLD Placements,Adult Domiciliary Care,Third Party Payments,REVENUE
Wiltshire, http://opendatacommunities.org/id/unitary-authority/wiltshire,17/10/2019,1902430195,931.87,Agincare Ltd ,110069,DT5 ,Community Services,North Care Packages,Adult Domiciliary Care Contribution,Income,REVENUE
Wiltshire, http://opendatacommunities.org/id/unitary-authority/wiltshire,17/10/2019,1902430196,1279.16,Agincare Ltd ,110069,DT5 ,Community Services,North Care Packages,Adult Domiciliary Care Contribution,Income,REVENUE
Wiltshire, http://opendatacommunities.org/id/unitary-authority/wiltshire,17/10/2019,1902430197,662.1,Agincare Ltd ,110069,DT5 ,Community Services,CTPLD Placements,Adult Domiciliary Care Contribution,Income,REVENUE
Wiltshire, http://opendatacommunities.org/id/unitary-authority/wiltshire,17/10/2019,1902430200,713.4,Agincare Ltd ,110069,DT5 ,Community Services,MH AOWA N&E Locality,Adult Domiciliary Care,Third Party Payments,REVENUE
Wiltshire, http://opendatacommunities.org/id/unitary-authority/wiltshire,17/10/2019,1902430201,1036.27,Agincare Ltd ,110069,DT5 ,Community Services,West Care Packages,Adult Domiciliary Care,Third Party Payments,REVENUE
Wiltshire, http://opendatacommunities.org/id/unitary-authority/wiltshire,17/10/2019,1902430204,2835.28,Agincare Ltd ,110069,DT5 ,Community Services,North Care Packages,Adult Domiciliary Care,Third Party Payments,REVENUE
Wiltshire, http://opendatacommunities.org/id/unitary-authority/wiltshire,17/10/2019,1902430206,753.8,Agincare Ltd ,110069,DT5 ,Community Services,North Care Packages,Adult Domiciliary Care,Third Party Payments,REVENUE
Wiltshire, http://opendatacommunities.org/id/unitary-authority/wiltshire,17/10/2019,1902430209,1224.8,Agincare Ltd ,110069,DT5 ,Community Services,MH AOWA N&E Locality,Adult Domiciliary Care,Third Party Payments,REVENUE
Wiltshire, http://opendatacommunities.org/id/unitary-authority/wiltshire,17/10/2019,1902430210,480.75,Agincare Ltd ,110069,DT5 ,Community Services,West Care Packages,Adult Domiciliary Care,Third Party Payments,REVENUE
Wiltshire, http://opendatacommunities.org/id/unitary-authority/wiltshire,17/10/2019,1902430212,1305.17,Agincare Ltd ,110069,DT5 ,Community Services,MH AOWA N&E Locality,Adult Domiciliary Care,Third Party Payments,REVENUE
Wiltshire, http://opendatacommunities.org/id/unitary-authority/wiltshire,17/10/2019,1902430213,308.32,Agincare Ltd ,110069,DT5 ,Community Services,West Care Packages,Adult Domiciliary Care,Third Party Payments,REVENUE
Wiltshire, http://opendatacommunities.org/id/unitary-authority/wiltshire,17/10/2019,1902430214,835.95,Agincare Ltd ,110069,DT5 ,Community Services,North Care Packages,Adult Domiciliary Care,Third Party Payments,REVENUE
Wiltshire, http://opendatacommunities.org/id/unitary-authority/wiltshire,17/10/2019,1902430215,485.94,Agincare Ltd ,110069,DT5 ,Community Services,North Care Packages,Adult Domiciliary Care,Third Party Payments,REVENUE
Wiltshire, http://opendatacommunities.org/id/unitary-authority/wiltshire,17/10/2019,1902430216,765.37,Agincare Ltd ,110069,DT5 ,Community Services,North Care Packages,Adult Domiciliary Care,Third Party Payments,REVENUE
Wiltshire, http://opendatacommunities.org/id/unitary-authority/wiltshire,17/10/2019,1902430217,862.4,Agincare Ltd ,110069,DT5 ,Community Services,North Care Packages,Adult Domiciliary Care,Third Party Payments,REVENUE
Wiltshire, http://opendatacommunities.org/id/unitary-authority/wiltshire,24/10/2019,1902436686,7667.36,AGMP Ltd ,144639,W1T ,Neighbourhood & Planning,City Hall,City Hall Shows,Balance Sheet Accounts,REVENUE
Wiltshire, http://opendatacommunities.org/id/unitary-authority/wiltshire,08/10/2019,1902425231,1790,Akcess Ltd ,101402,SN2 ,Neighbourhood & Planning,Mainstream Primary,Transport Contracts,Third Party Payments,REVENUE
Wiltshire, http://opendatacommunities.org/id/unitary-authority/wiltshire,08/10/2019,1902425233,2945,Akcess Ltd ,101402,SN2 ,Neighbourhood & Planning,SEN Secondary Tspt,Transport Contracts,Third Party Payments,REVENUE
Wiltshire, http://opendatacommunities.org/id/unitary-authority/wiltshire,08/10/2019,1902425239,2177.12,Akcess Ltd ,101402,SN2 ,Neighbourhood & Planning,Mainstream Primary,Transport Contracts,Third Party Payments,REVENUE
Wiltshire, http://opendatacommunities.org/id/unitary-authority/wiltshire,08/10/2019,1902425240,2666.67,Akcess Ltd ,101402,SN2 ,Neighbourhood & Planning,Mainstream Secondary,Transport Contracts,Third Party Payments,REVENUE
Wiltshire, http://opendatacommunities.org/id/unitary-authority/wiltshire,08/10/2019,1902425241,1691,Akcess Ltd ,101402,SN2 ,Neighbourhood & Planning,Mainstream Primary,Transport Contracts,Third Party Payments,REVENUE
Wiltshire, http://opendatacommunities.org/id/unitary-authority/wiltshire,08/10/2019,1902425243,1775.96,Akcess Ltd ,101402,SN2 ,Neighbourhood & Planning,Mainstream Primary,Transport Contracts,Third Party Payments,REVENUE
Wiltshire, http://opendatacommunities.org/id/unitary-authority/wiltshire,08/10/2019,1902425245,2375,Akcess Ltd ,101402,SN2 ,Neighbourhood & Planning,SEN Secondary Tspt,Transport Contracts,Third Party Payments,REVENUE
Wiltshire, http://opendatacommunities.org/id/unitary-authority/wiltshire,08/10/2019,1902425246,612.75,Akcess Ltd ,101402,SN2 ,Neighbourhood & Planning,SEN Secondary Tspt,Transport Contracts,Third Party Payments,REVENUE
Wiltshire, http://opendatacommunities.org/id/unitary-authority/wiltshire,08/10/2019,1902425246,1838.25,Akcess Ltd ,101402,SN2 ,Neighbourhood & Planning,SEN 16+ Transport,Transport Contracts,Third Party Payments,REVENUE
Wiltshire, http://opendatacommunities.org/id/unitary-authority/wiltshire,24/10/2019,1902436856,880,Akcess Ltd ,101402,SN2 ,Neighbourhood & Planning,Mainstream Secondary,Transport Contracts,Third Party Payments,REVENUE
Wiltshire, http://opendatacommunities.org/id/unitary-authority/wiltshire,30/10/2019,1902439546,620.67,Akcess Ltd ,101402,SN2 ,Neighbourhood & Planning,Mainstream 16+ Sec,Transport Contracts,Third Party Payments,REVENUE
Wiltshire, http://opendatacommunities.org/id/unitary-authority/wiltshire,30/10/2019,1902439546,2744.04,Akcess Ltd ,101402,SN2 ,Neighbourhood & Planning,SEN Secondary Tspt,Transport Contracts,Third Party Payments,REVENUE
Wiltshire, http://opendatacommunities.org/id/unitary-authority/wiltshire,30/10/2019,1902439556,1013.48,Akcess Ltd ,101402,SN2 ,Community Services,West Care Packages,Transport Contracts,Third Party Payments,REVENUE
Wiltshire, http://opendatacommunities.org/id/unitary-authority/wiltshire,30/10/2019,1902439556,2094.52,Akcess Ltd ,101402,SN2 ,Community Services,CTPLD Placements,Transport Contracts,Third Party Payments,REVENUE
Wiltshire, http://opendatacommunities.org/id/unitary-authority/wiltshire,31/10/2019,1902440054,2087.12,Akcess Ltd ,101402,SN2 ,Neighbourhood & Planning,Mainstream Primary,Transport Contracts,Third Party Payments,REVENUE
Wiltshire, http://opendatacommunities.org/id/unitary-authority/wiltshire,31/10/2019,1902440055,12948,Akcess Ltd ,101402,SN2 ,Neighbourhood & Planning,SEN Secondary Tspt,Transport Contracts,Third Party Payments,REVENUE
Wiltshire, http://opendatacommunities.org/id/unitary-authority/wiltshire,31/10/2019,1902440056,12948,Akcess Ltd ,101402,SN2 ,Neighbourhood & Planning,SEN Secondary Tspt,Transport Contracts,Third Party Payments,REVENUE
Wiltshire, http://opendatacommunities.org/id/unitary-authority/wiltshire,03/10/2019,1902424317,520,Alabare Christian Care Centre ,100837,SP2 ,Community Services,CTPLD Placements,Adult Day Care Contracts,Third Party Payments,REVENUE
Wiltshire, http://opendatacommunities.org/id/unitary-authority/wiltshire,03/10/2019,1902424320,680,Alabare Christian Care Centre ,100837,SP2 ,Community Services,South Care Packages,Adult Day Care Contracts,Third Party Payments,REVENUE
Wiltshire, http://opendatacommunities.org/id/unitary-authority/wiltshire,03/10/2019,1902424323,520,Alabare Christian Care Centre ,100837,SP2 ,Community Services,MH AOWA South Locali,Adult Day Care Contracts,Third Party Payments,REVENUE
Wiltshire, http://opendatacommunities.org/id/unitary-authority/wiltshire,03/10/2019,1902424324,360,Alabare Christian Care Centre ,100837,SP2 ,Community Services,CTPLD Placements,Adult Day Care Contracts,Third Party Payments,REVENUE
Wiltshire, http://opendatacommunities.org/id/unitary-authority/wiltshire,03/10/2019,1902424325,360,Alabare Christian Care Centre ,100837,SP2 ,Community Services,MH AOWA N&E Locality,Adult Day Care Contracts,Third Party Payments,REVENUE
Wiltshire, http://opendatacommunities.org/id/unitary-authority/wiltshire,03/10/2019,1902424327,360,Alabare Christian Care Centre ,100837,SP2 ,Community Services,MH AOWA South Locali,Adult Day Care Contracts,Third Party Payments,REVENUE
Wiltshire, http://opendatacommunities.org/id/unitary-authority/wiltshire,03/10/2019,1902424335,360,Alabare Christian Care Centre ,100837,SP2 ,Community Services,CTPLD Placements,Adult Day Care Contracts,Third Party Payments,REVENUE
Wiltshire, http://opendatacommunities.org/id/unitary-authority/wiltshire,03/10/2019,1902424336,520,Alabare Christian Care Centre ,100837,SP2 ,Community Services,MH AOWA South Locali,Adult Day Care Contracts,Third Party Payments,REVENUE
Wiltshire, http://opendatacommunities.org/id/unitary-authority/wiltshire,07/10/2019,1902424949,320,Alabare Christian Care Centre ,100837,SP2 ,Community Services,CTPLD Placements,Adult Day Care Contracts,Third Party Payments,REVENUE
Wiltshire, http://opendatacommunities.org/id/unitary-authority/wiltshire,07/10/2019,1902424950,320,Alabare Christian Care Centre ,100837,SP2 ,Community Services,CTPLD Placements,Adult Day Care Contracts,Third Party Payments,REVENUE
Wiltshire, http://opendatacommunities.org/id/unitary-authority/wiltshire,07/10/2019,1902424952,360,Alabare Christian Care Centre ,100837,SP2 ,Community Services,CTPLD Placements,Adult Day Care Contracts,Third Party Payments,REVENUE
Wiltshire, http://opendatacommunities.org/id/unitary-authority/wiltshire,07/10/2019,1902424953,680,Alabare Christian Care Centre ,100837,SP2 ,Community Services,CTPLD Placements,Adult Day Care Contracts,Third Party Payments,REVENUE
Wiltshire, http://opendatacommunities.org/id/unitary-authority/wiltshire,07/10/2019,1902424954,360,Alabare Christian Care Centre ,100837,SP2 ,Community Services,CTPLD Placements,Adult Day Care Contracts,Third Party Payments,REVENUE
Wiltshire, http://opendatacommunities.org/id/unitary-authority/wiltshire,07/10/2019,1902424955,360,Alabare Christian Care Centre ,100837,SP2 ,Community Services,CTPLD Placements,Adult Day Care Contracts,Third Party Payments,REVENUE
Wiltshire, http://opendatacommunities.org/id/unitary-authority/wiltshire,07/10/2019,1902424956,520,Alabare Christian Care Centre ,100837,SP2 ,Community Services,CTPLD Placements,Adult Day Care Contracts,Third Party Payments,REVENUE
Wiltshire, http://opendatacommunities.org/id/unitary-authority/wiltshire,07/10/2019,1902424961,480,Alabare Christian Care Centre ,100837,SP2 ,Community Services,CTPLD Placements,Adult Day Care Contracts,Third Party Payments,REVENUE
Wiltshire, http://opendatacommunities.org/id/unitary-authority/wiltshire,07/10/2019,1902424962,480,Alabare Christian Care Centre ,100837,SP2 ,Community Services,CTPLD Placements,Adult Day Care Contracts,Third Party Payments,REVENUE
Wiltshire, http://opendatacommunities.org/id/unitary-authority/wiltshire,07/10/2019,1902424963,320,Alabare Christian Care Centre ,100837,SP2 ,Community Services,CTPLD Placements,Adult Day Care Contracts,Third Party Payments,REVENUE
Wiltshire, http://opendatacommunities.org/id/unitary-authority/wiltshire,07/10/2019,1902424964,320,Alabare Christian Care Centre ,100837,SP2 ,Community Services,CTPLD Placements,Adult Day Care Contracts,Third Party Payments,REVENUE
Wiltshire, http://opendatacommunities.org/id/unitary-authority/wiltshire,07/10/2019,1902425007,520,Alabare Christian Care Centre ,100837,SP2 ,Community Services,CTPLD Placements,Adult Day Care Contracts,Third Party Payments,REVENUE
Wiltshire, http://opendatacommunities.org/id/unitary-authority/wiltshire,07/10/2019,1902425008,560,Alabare Christian Care Centre ,100837,SP2 ,Community Services,CTPLD Placements,Adult Day Care Contracts,Third Party Payments,REVENUE
Wiltshire, http://opendatacommunities.org/id/unitary-authority/wiltshire,07/10/2019,1902425009,320,Alabare Christian Care Centre ,100837,SP2 ,Community Services,CTPLD Placements,Adult Day Care Contracts,Third Party Payments,REVENUE
Wiltshire, http://opendatacommunities.org/id/unitary-authority/wiltshire,07/10/2019,1902425010,360,Alabare Christian Care Centre ,100837,SP2 ,Community Services,CTPLD Placements,Adult Day Care Contracts,Third Party Payments,REVENUE
Wiltshire, http://opendatacommunities.org/id/unitary-authority/wiltshire,07/10/2019,1902425011,360,Alabare Christian Care Centre ,100837,SP2 ,Community Services,CTPLD Placements,Adult Day Care Contracts,Third Party Payments,REVENUE
Wiltshire, http://opendatacommunities.org/id/unitary-authority/wiltshire,07/10/2019,1902425012,360,Alabare Christian Care Centre ,100837,SP2 ,Community Services,CTPLD Placements,Adult Day Care Contracts,Third Party Payments,REVENUE
Wiltshire, http://opendatacommunities.org/id/unitary-authority/wiltshire,07/10/2019,1902425013,320,Alabare Christian Care Centre ,100837,SP2 ,Community Services,CTPLD Placements,Adult Day Care Contracts,Third Party Payments,REVENUE
Wiltshire, http://opendatacommunities.org/id/unitary-authority/wiltshire,14/10/2019,1902427410,480,Alabare Christian Care Centre ,100837,SP2 ,Community Services,South Care Packages,Adult Day Care - Spot Income Contribution,Income,REVENUE
Wiltshire, http://opendatacommunities.org/id/unitary-authority/wiltshire,14/10/2019,1902427411,400,Alabare Christian Care Centre ,100837,SP2 ,Community Services,CTPLD Placements,Adult Day Care - Spot Income Contribution,Income,REVENUE
Wiltshire, http://opendatacommunities.org/id/unitary-authority/wiltshire,14/10/2019,1902427413,560,Alabare Christian Care Centre ,100837,SP2 ,Community Services,South Care Packages,Adult Day Care - Spot Income Contribution,Income,REVENUE
Wiltshire, http://opendatacommunities.org/id/unitary-authority/wiltshire,14/10/2019,1902427414,460,Alabare Christian Care Centre ,100837,SP2 ,Community Services,CTPLD Placements,Adult Day Care - Spot Income Contribution,Income,REVENUE
Wiltshire, http://opendatacommunities.org/id/unitary-authority/wiltshire,01/10/2019,5107385522,145099.76,Alabare Christian Care Centre ,100837,SP2 ,Neighbourhood & Planning,Hsg Strat & Enabling,Other Contracts,Third Party Payments,REVENUE
Wiltshire, http://opendatacommunities.org/id/unitary-authority/wiltshire,01/10/2019,5107385523,38613.12,Alabare Christian Care Centre ,100837,SP2 ,Neighbourhood & Planning,Hsg Strat & Enabling,Other Contracts,Third Party Payments,REVENUE
Wiltshire, http://opendatacommunities.org/id/unitary-authority/wiltshire,09/10/2019,5107386591,5478.77,Alabare Christian Care Centre ,100837,SP2 ,Community Services,CTPLD Placements,Supported Living,Third Party Payments,REVENUE
Wiltshire, http://opendatacommunities.org/id/unitary-authority/wiltshire,09/10/2019,5107386593,1494.21,Alabare Christian Care Centre ,100837,SP2 ,Community Services,CTPLD Placements,Supported Living,Third Party Payments,REVENUE
Wiltshire, http://opendatacommunities.org/id/unitary-authority/wiltshire,16/10/2019,5107387864,964.88,Alabare Christian Care Centre ,100837,SP2 ,Community Services,CTPLD Placements,Supported Living,Third Party Payments,REVENUE
Wiltshire, http://opendatacommunities.org/id/unitary-authority/wiltshire,23/10/2019,5107387866,552.56,Alabare Christian Care Centre ,100837,SP2 ,Community Services,CTPLD Placements,Supported Living,Third Party Payments,REVENUE
Wiltshire, http://opendatacommunities.org/id/unitary-authority/wiltshire,23/10/2019,5107387868,1390.04,Alabare Christian Care Centre ,100837,SP2 ,Community Services,CTPLD Placements,Supported Living,Third Party Payments,REVENUE
Wiltshire, http://opendatacommunities.org/id/unitary-authority/wiltshire,16/10/2019,5107387874,1694.28,Alabare Christian Care Centre ,100837,SP2 ,Community Services,South Care Packages,Supported Living,Third Party Payments,REVENUE
Wiltshire, http://opendatacommunities.org/id/unitary-authority/wiltshire,16/10/2019,5107387875,2858.16,Alabare Christian Care Centre ,100837,SP2 ,Community Services,CTPLD Placements,Supported Living,Third Party Payments,REVENUE
Wiltshire, http://opendatacommunities.org/id/unitary-authority/wiltshire,16/10/2019,5107387881,2022.16,Alabare Christian Care Centre ,100837,SP2 ,Community Services,CTPLD Placements,Supported Living,Third Party Payments,REVENUE
Wiltshire, http://opendatacommunities.org/id/unitary-authority/wiltshire,16/10/2019,5107389033,659.16,Alabare Christian Care Centre ,100837,SP2 ,Community Services,South Care Packages,Supported Living,Third Party Payments,REVENUE
Wiltshire, http://opendatacommunities.org/id/unitary-authority/wiltshire,16/10/2019,5107389037,854.44,Alabare Christian Care Centre ,100837,SP2 ,Community Services,CTPLD Placements,Supported Living,Third Party Payments,REVENUE
Wiltshire, http://opendatacommunities.org/id/unitary-authority/wiltshire,16/10/2019,5107389045,613.92,Alabare Christian Care Centre ,100837,SP2 ,Community Services,CTPLD Placements,Supported Living,Third Party Payments,REVENUE
Wiltshire, http://opendatacommunities.org/id/unitary-authority/wiltshire,16/10/2019,5107389048,405.96,Alabare Christian Care Centre ,100837,SP2 ,Community Services,CTPLD Placements,Supported Living,Third Party Payments,REVENUE
Wiltshire, http://opendatacommunities.org/id/unitary-authority/wiltshire,16/10/2019,5107389070,3394.92,Alabare Christian Care Centre ,100837,SP2 ,Community Services,CTPLD Placements,Supported Living,Third Party Payments,REVENUE
Wiltshire, http://opendatacommunities.org/id/unitary-authority/wiltshire,16/10/2019,5107389078,3661.2,Alabare Christian Care Centre ,100837,SP2 ,Community Services,CTPLD Placements,Supported Living,Third Party Payments,REVENUE
Wiltshire, http://opendatacommunities.org/id/unitary-authority/wiltshire,16/10/2019,5107389082,1910.32,Alabare Christian Care Centre ,100837,SP2 ,Community Services,CTPLD Placements,Supported Living,Third Party Payments,REVENUE
Wiltshire, http://opendatacommunities.org/id/unitary-authority/wiltshire,16/10/2019,5107389084,2612.08,Alabare Christian Care Centre ,100837,SP2 ,Community Services,CTPLD Placements,Supported Living,Third Party Payments,REVENUE
Wiltshire, http://opendatacommunities.org/id/unitary-authority/wiltshire,16/10/2019,5107389092,2087.2,Alabare Christian Care Centre ,100837,SP2 ,Community Services,CTPLD Placements,Supported Living,Third Party Payments,REVENUE
Wiltshire, http://opendatacommunities.org/id/unitary-authority/wiltshire,16/10/2019,5107389094,3191.16,Alabare Christian Care Centre ,100837,SP2 ,Community Services,CTPLD Placements,Supported Living,Third Party Payments,REVENUE
Wiltshire, http://opendatacommunities.org/id/unitary-authority/wiltshire,16/10/2019,5107389095,2212.96,Alabare Christian Care Centre ,100837,SP2 ,Community Services,CTPLD Placements,Supported Living,Third Party Payments,REVENUE
Wiltshire, http://opendatacommunities.org/id/unitary-authority/wiltshire,16/10/2019,5107389096,3451.92,Alabare Christian Care Centre ,100837,SP2 ,Community Services,CTPLD Placements,Supported Living,Third Party Payments,REVENUE
Wiltshire, http://opendatacommunities.org/id/unitary-authority/wiltshire,16/10/2019,5107389100,4127.28,Alabare Christian Care Centre ,100837,SP2 ,Community Services,CTPLD Placements,Supported Living,Third Party Payments,REVENUE
Wiltshire, http://opendatacommunities.org/id/unitary-authority/wiltshire,16/10/2019,5107389105,8131.36,Alabare Christian Care Centre ,100837,SP2 ,Community Services,CTPLD Placements,Supported Living,Third Party Payments,REVENUE
Wiltshire, http://opendatacommunities.org/id/unitary-authority/wiltshire,16/10/2019,5107389111,2052.64,Alabare Christian Care Centre ,100837,SP2 ,Community Services,CTPLD Placements,Supported Living,Third Party Payments,REVENUE
Wiltshire, http://opendatacommunities.org/id/unitary-authority/wiltshire,16/10/2019,5107389113,365.4,Alabare Christian Care Centre ,100837,SP2 ,Community Services,MH AOWA South Locali,Supported Living,Third Party Payments,REVENUE
Wiltshire, http://opendatacommunities.org/id/unitary-authority/wiltshire,16/10/2019,5107389116,475.04,Alabare Christian Care Centre ,100837,SP2 ,Community Services,MH AOWA South Locali,Supported Living,Third Party Payments,REVENUE
Wiltshire, http://opendatacommunities.org/id/unitary-authority/wiltshire,16/10/2019,5107389117,1434.24,Alabare Christian Care Centre ,100837,SP2 ,Community Services,CTPLD Placements,Supported Living,Third Party Payments,REVENUE
Wiltshire, http://opendatacommunities.org/id/unitary-authority/wiltshire,16/10/2019,5107389120,720,Alabare Christian Care Centre ,100837,SP2 ,Community Services,MH AOWA South Locali,Supported Living,Third Party Payments,REVENUE
Wiltshire, http://opendatacommunities.org/id/unitary-authority/wiltshire,16/10/2019,5107389121,3347.92,Alabare Christian Care Centre ,100837,SP2 ,Community Services,CTPLD Placements,Supported Living,Third Party Payments,REVENUE
Wiltshire, http://opendatacommunities.org/id/unitary-authority/wiltshire,16/10/2019,5107389123,3277.48,Alabare Christian Care Centre ,100837,SP2 ,Community Services,CTPLD Placements,Supported Living,Third Party Payments,REVENUE
Wiltshire, http://opendatacommunities.org/id/unitary-authority/wiltshire,16/10/2019,5107389127,3855.2,Alabare Christian Care Centre ,100837,SP2 ,Community Services,CTPLD Placements,Supported Living,Third Party Payments,REVENUE
Wiltshire, http://opendatacommunities.org/id/unitary-authority/wiltshire,16/10/2019,5107389130,2413.76,Alabare Christian Care Centre ,100837,SP2 ,Community Services,CTPLD Placements,Supported Living,Third Party Payments,REVENUE
Wiltshire, http://opendatacommunities.org/id/unitary-authority/wiltshire,16/10/2019,5107389210,360,Alabare Christian Care Centre ,100837,SP2 ,Community Services,MH AOWA South Locali,Supported Living,Third Party Payments,REVENUE
Wiltshire, http://opendatacommunities.org/id/unitary-authority/wiltshire,16/10/2019,5107389211,584.64,Alabare Christian Care Centre ,100837,SP2 ,Community Services,MH AOWA South Locali,Supported Living,Third Party Payments,REVENUE
Wiltshire, http://opendatacommunities.org/id/unitary-authority/wiltshire,16/10/2019,5107389315,1729.32,Alabare Christian Care Centre ,100837,SP2 ,Community Services,CTPLD Placements,Supported Living,Third Party Payments,REVENUE
Wiltshire, http://opendatacommunities.org/id/unitary-authority/wiltshire,16/10/2019,5107389389,2407.84,Alabare Christian Care Centre ,100837,SP2 ,Community Services,CTPLD Placements,Supported Living,Third Party Payments,REVENUE
Wiltshire, http://opendatacommunities.org/id/unitary-authority/wiltshire,16/10/2019,5107389391,1870.08,Alabare Christian Care Centre ,100837,SP2 ,Community Services,CTPLD Placements,Supported Living,Third Party Payments,REVENUE
Wiltshire, http://opendatacommunities.org/id/unitary-authority/wiltshire,16/10/2019,5107392082,1697.35,Alabare Christian Care Centre ,100837,SP2 ,Children & Education,16-25 Supp & Accom,Childrens Agency Placement,Third Party Payments,REVENUE
Wiltshire, http://opendatacommunities.org/id/unitary-authority/wiltshire,16/10/2019,5107392083,4734.34,Alabare Christian Care Centre ,100837,SP2 ,Children & Education,16-25 Supp & Accom,Childrens Agency Placement,Third Party Payments,REVENUE
Wiltshire, http://opendatacommunities.org/id/unitary-authority/wiltshire,16/10/2019,5107392084,1046.69,Alabare Christian Care Centre ,100837,SP2 ,Children & Education,16-25 Supp & Accom,Childrens Agency Placement,Third Party Payments,REVENUE
Wiltshire, http://opendatacommunities.org/id/unitary-authority/wiltshire,16/10/2019,5107392085,4179.68,Alabare Christian Care Centre ,100837,SP2 ,Children & Education,16-25 Supp & Accom,Childrens Agency Placement,Third Party Payments,REVENUE
Wiltshire, http://opendatacommunities.org/id/unitary-authority/wiltshire,16/10/2019,5107392086,1240.71,Alabare Christian Care Centre ,100837,SP2 ,Children & Education,16-25 Supp & Accom,Childrens Agency Placement,Third Party Payments,REVENUE
Wiltshire, http://opendatacommunities.org/id/unitary-authority/wiltshire,16/10/2019,5107392087,4112.98,Alabare Christian Care Centre ,100837,SP2 ,Children & Education,UASC Under 18 Years,Childrens Agency Placement,Third Party Payments,REVENUE
Wiltshire, http://opendatacommunities.org/id/unitary-authority/wiltshire,16/10/2019,5107392088,445.12,Alabare Christian Care Centre ,100837,SP2 ,Children & Education,16-25 Supp & Accom,Childrens Agency Placement,Third Party Payments,REVENUE
Wiltshire, http://opendatacommunities.org/id/unitary-authority/wiltshire,16/10/2019,5107392090,334.13,Alabare Christian Care Centre ,100837,SP2 ,Children & Education,16-25 Supp & Accom,Childrens Agency Placement,Third Party Payments,REVENUE
Wiltshire, http://opendatacommunities.org/id/unitary-authority/wiltshire,16/10/2019,5107392092,4359.88,Alabare Christian Care Centre ,100837,SP2 ,Children & Education,16-25 Supp & Accom,Childrens Agency Placement,Third Party Payments,REVENUE
Wiltshire, http://opendatacommunities.org/id/unitary-authority/wiltshire,16/10/2019,5107392094,4112.98,Alabare Christian Care Centre ,100837,SP2 ,Children & Education,UASC Under 18 Years,Childrens Agency Placement,Third Party Payments,REVENUE
Wiltshire, http://opendatacommunities.org/id/unitary-authority/wiltshire,16/10/2019,5107392095,4085.04,Alabare Christian Care Centre ,100837,SP2 ,Children & Education,16-25 Supp & Accom,Childrens Agency Placement,Third Party Payments,REVENUE
Wiltshire, http://opendatacommunities.org/id/unitary-authority/wiltshire,16/10/2019,5107392096,2277.66,Alabare Christian Care Centre ,100837,SP2 ,Children & Education,16-25 Supp & Accom,Childrens Agency Placement,Third Party Payments,REVENUE
Wiltshire, http://opendatacommunities.org/id/unitary-authority/wiltshire,16/10/2019,5107392097,2310.89,Alabare Christian Care Centre ,100837,SP2 ,Children & Education,16-25 Supp & Accom,Childrens Agency Placement,Third Party Payments,REVENUE
Wiltshire, http://opendatacommunities.org/id/unitary-authority/wiltshire,16/10/2019,5107392098,4249.24,Alabare Christian Care Centre ,100837,SP2 ,Children & Education,16-25 Supp & Accom,Childrens Agency Placement,Third Party Payments,REVENUE
Wiltshire, http://opendatacommunities.org/id/unitary-authority/wiltshire,21/10/2019,5107392366,690.17,Alabare Christian Care Centre ,100837,SP2 ,Community Services,CTPLD Placements,Supported Living,Third Party Payments,REVENUE
Wiltshire, http://opendatacommunities.org/id/unitary-authority/wiltshire,22/10/2019,5107392628,3976.24,Alabare Christian Care Centre ,100837,SP2 ,Children & Education,0-25 extnl disabty p,Other Social & Welfare Costs,Third Party Payments,REVENUE
Wiltshire, http://opendatacommunities.org/id/unitary-authority/wiltshire,31/10/2019,5107394738,362.56,Alabare Christian Care Centre ,100837,SP2 ,Community Services,CTPLD Placements,Supported Living,Third Party Payments,REVENUE
Wiltshire, http://opendatacommunities.org/id/unitary-authority/wiltshire,31/10/2019,5107394739,362.56,Alabare Christian Care Centre ,100837,SP2 ,Community Services,CTPLD Placements,Supported Living,Third Party Payments,REVENUE
Wiltshire, http://opendatacommunities.org/id/unitary-authority/wiltshire,31/10/2019,5107394742,2032,Alabare Christian Care Centre ,100837,SP2 ,Community Services,CTPLD Placements,Supported Living,Third Party Payments,REVENUE
Wiltshire, http://opendatacommunities.org/id/unitary-authority/wiltshire,14/10/2019,1902427236,3540.8,Albare Christian Care Centres ,113386,SP2 ,Community Services,MH AOWA South Locali,Adult Domiciliary Care,Third Party Payments,REVENUE
Wiltshire, http://opendatacommunities.org/id/unitary-authority/wiltshire,14/10/2019,1902427237,3540.8,Albare Christian Care Centres ,113386,SP2 ,Community Services,MH AOWA South Locali,Adult Domiciliary Care,Third Party Payments,REVENUE
Wiltshire, http://opendatacommunities.org/id/unitary-authority/wiltshire,14/10/2019,1902427238,3540.8,Albare Christian Care Centres ,113386,SP2 ,Community Services,MH AOWA South Locali,Adult Domiciliary Care,Third Party Payments,REVENUE
Wiltshire, http://opendatacommunities.org/id/unitary-authority/wiltshire,14/10/2019,1902427239,3540.8,Albare Christian Care Centres ,113386,SP2 ,Community Services,MH AOWA South Locali,Adult Domiciliary Care,Third Party Payments,REVENUE
Wiltshire, http://opendatacommunities.org/id/unitary-authority/wiltshire,14/10/2019,1902427240,3540.8,Albare Christian Care Centres ,113386,SP2 ,Community Services,MH AOWA South Locali,Adult Domiciliary Care,Third Party Payments,REVENUE
Wiltshire, http://opendatacommunities.org/id/unitary-authority/wiltshire,14/10/2019,1902427241,3540.8,Albare Christian Care Centres ,113386,SP2 ,Community Services,MH AOWA South Locali,Adult Domiciliary Care,Third Party Payments,REVENUE
Wiltshire, http://opendatacommunities.org/id/unitary-authority/wiltshire,16/10/2019,5107387015,3000,Aldbourne Nursing Home ,110090,SN8 ,Community Services,Home Loans,Adult Care Loans,Capital charges and Expenditure,REVENUE
Wiltshire, http://opendatacommunities.org/id/unitary-authority/wiltshire,10/10/2019,1902426115,655,Alder King ,100899,BS8 ,Resources,Market Sales,Professional Fees,Supplies and Services,REVENUE
Wiltshire, http://opendatacommunities.org/id/unitary-authority/wiltshire,31/10/2019,1902439730,3150,Alder King ,100899,BS8 ,Resources,Market Sales,Professional Fees,Supplies and Services,REVENUE
Wiltshire, http://opendatacommunities.org/id/unitary-authority/wiltshire,01/10/2019,5107380542,448,Alere Toxicology Plc ,131373,OX14,Children & Education,Supp & Safe West 1,Other Social & Welfare Costs,Third Party Payments,REVENUE
Wiltshire, http://opendatacommunities.org/id/unitary-authority/wiltshire,17/10/2019,5107385952,613,Alere Toxicology Plc ,131373,OX14,Children & Education,Supp & Safe West 2,Other Social & Welfare Costs,Third Party Payments,REVENUE
Wiltshire, http://opendatacommunities.org/id/unitary-authority/wiltshire,07/10/2019,5107385953,399,Alere Toxicology Plc ,131373,OX14,Children & Education,Supp & Safe West 1,Other Social & Welfare Costs,Third Party Payments,REVENUE
Wiltshire, http://opendatacommunities.org/id/unitary-authority/wiltshire,07/10/2019,5107385954,497,Alere Toxicology Plc ,131373,OX14,Children & Education,Supp & Safe West 1,Other Social & Welfare Costs,Third Party Payments,REVENUE
Wiltshire, http://opendatacommunities.org/id/unitary-authority/wiltshire,03/10/2019,5107385955,613,Alere Toxicology Plc ,131373,OX14,Children & Education,Supp & Safe North,Other Social & Welfare Costs,Third Party Payments,REVENUE
Wiltshire, http://opendatacommunities.org/id/unitary-authority/wiltshire,09/10/2019,5107386558,360,Alere Toxicology Plc ,131373,OX14,Children & Education,HQ Social Care,Witness / Jurors' / Justice's Expenses,Supplies and Services,REVENUE
Wiltshire, http://opendatacommunities.org/id/unitary-authority/wiltshire,22/10/2019,5107392552,619,Alere Toxicology Plc ,131373,OX14,Children & Education,Supp & Safe West 1,Other Social & Welfare Costs,Third Party Payments,REVENUE
Wiltshire, http://opendatacommunities.org/id/unitary-authority/wiltshire,22/10/2019,5107392553,538,Alere Toxicology Plc ,131373,OX14,Children & Education,Supp & Safe West 1,Other Social & Welfare Costs,Third Party Payments,REVENUE
Wiltshire, http://opendatacommunities.org/id/unitary-authority/wiltshire,16/10/2019,5107390569,3400,Alexandra Care Centre ,147242,BH8 ,Community Services,MH AOWA N&E Locality,Adult Residential Placements - Spot Purchase,Third Party Payments,REVENUE
Wiltshire, http://opendatacommunities.org/id/unitary-authority/wiltshire,16/10/2019,5107387160,6237.48,Alexandra Homes (Bristol) Ltd ,131787,BS15,Community Services,MH AOWA West Localit,Adult Residential Placements - Spot Purchase,Third Party Payments,REVENUE
Wiltshire, http://opendatacommunities.org/id/unitary-authority/wiltshire,01/10/2019,1902423176,1214.61,Alina Homecare - Disabilty Support ,139903,BH12,Community Services,South Care Packages,Adult Domiciliary Care,Third Party Payments,REVENUE
Wiltshire, http://opendatacommunities.org/id/unitary-authority/wiltshire,01/10/2019,1902423177,877.8,Alina Homecare - Disabilty Support ,139903,BH12,Community Services,South Care Packages,Adult Domiciliary Care,Third Party Payments,REVENUE
Wiltshire, http://opendatacommunities.org/id/unitary-authority/wiltshire,01/10/2019,1902423178,473.76,Alina Homecare - Disabilty Support ,139903,BH12,Community Services,South Care Packages,Adult Domiciliary Care,Third Party Payments,REVENUE
Wiltshire, http://opendatacommunities.org/id/unitary-authority/wiltshire,01/10/2019,1902423179,580.62,Alina Homecare - Disabilty Support ,139903,BH12,Community Services,South Care Packages,Adult Domiciliary Care Contribution,Income,REVENUE
Wiltshire, http://opendatacommunities.org/id/unitary-authority/wiltshire,03/10/2019,1902424271,517.66,Alina Homecare - Disabilty Support ,139903,BH12,Community Services,CTPLD Placements,Adult Domiciliary Care,Third Party Payments,REVENUE
Wiltshire, http://opendatacommunities.org/id/unitary-authority/wiltshire,03/10/2019,1902424273,300.89,Alina Homecare - Disabilty Support ,139903,BH12,Community Services,West Care Packages,Adult Domiciliary Care,Third Party Payments,REVENUE
Wiltshire, http://opendatacommunities.org/id/unitary-authority/wiltshire,03/10/2019,1902424274,1971.09,Alina Homecare - Disabilty Support ,139903,BH12,Community Services,West Care Packages,Adult Domiciliary Care,Third Party Payments,REVENUE
Wiltshire, http://opendatacommunities.org/id/unitary-authority/wiltshire,03/10/2019,1902424275,441.49,Alina Homecare - Disabilty Support ,139903,BH12,Community Services,West Care Packages,Adult Domiciliary Care,Third Party Payments,REVENUE
Wiltshire, http://opendatacommunities.org/id/unitary-authority/wiltshire,03/10/2019,1902424276,1668.59,Alina Homecare - Disabilty Support ,139903,BH12,Community Services,West Care Packages,Adult Domiciliary Care,Third Party Payments,REVENUE
Wiltshire, http://opendatacommunities.org/id/unitary-authority/wiltshire,03/10/2019,1902424277,609.72,Alina Homecare - Disabilty Support ,139903,BH12,Community Services,West Care Packages,Adult Domiciliary Care,Third Party Payments,REVENUE
Wiltshire, http://opendatacommunities.org/id/unitary-authority/wiltshire,03/10/2019,1902424278,627,Alina Homecare - Disabilty Support ,139903,BH12,Community Services,West Care Packages,Adult Domiciliary Care,Third Party Payments,REVENUE
Wiltshire, http://opendatacommunities.org/id/unitary-authority/wiltshire,03/10/2019,1902424279,416.28,Alina Homecare - Disabilty Support ,139903,BH12,Community Services,West Care Packages,Adult Domiciliary Care Contribution,Income,REVENUE
Wiltshire, http://opendatacommunities.org/id/unitary-authority/wiltshire,04/10/2019,1902424745,715.56,Alina Homecare - Disabilty Support ,139903,BH12,Community Services,MH OP West Locality,Adult Domiciliary Care,Third Party Payments,REVENUE
Wiltshire, http://opendatacommunities.org/id/unitary-authority/wiltshire,04/10/2019,1902424747,4127.16,Alina Homecare - Disabilty Support ,139903,BH12,Community Services,CTPLD Placements,Supported Living Contribution,Income,REVENUE
Wiltshire, http://opendatacommunities.org/id/unitary-authority/wiltshire,04/10/2019,1902424748,595.14,Alina Homecare - Disabilty Support ,139903,BH12,Community Services,West Care Packages,Adult Domiciliary Care,Third Party Payments,REVENUE
Wiltshire, http://opendatacommunities.org/id/unitary-authority/wiltshire,04/10/2019,1902424749,874.84,Alina Homecare - Disabilty Support ,139903,BH12,Community Services,CTPLD Placements,Adult Domiciliary Care Contribution,Income,REVENUE
Wiltshire, http://opendatacommunities.org/id/unitary-authority/wiltshire,04/10/2019,1902424750,318.56,Alina Homecare - Disabilty Support ,139903,BH12,Community Services,CTPLD Placements,Adult Domiciliary Care Contribution,Income,REVENUE
Wiltshire, http://opendatacommunities.org/id/unitary-authority/wiltshire,04/10/2019,1902424752,304.58,Alina Homecare - Disabilty Support ,139903,BH12,Community Services,CTPLD Placements,Adult Domiciliary Care Contribution,Income,REVENUE
Wiltshire, http://opendatacommunities.org/id/unitary-authority/wiltshire,04/10/2019,1902424753,1181.25,Alina Homecare - Disabilty Support ,139903,BH12,Community Services,West Care Packages,Adult Domiciliary Care Contribution,Income,REVENUE
Wiltshire, http://opendatacommunities.org/id/unitary-authority/wiltshire,04/10/2019,1902424754,10371.42,Alina Homecare - Disabilty Support ,139903,BH12,Community Services,CTPLD Placements,Supported Living Contribution,Income,REVENUE
Wiltshire, http://opendatacommunities.org/id/unitary-authority/wiltshire,04/10/2019,1902424755,371.15,Alina Homecare - Disabilty Support ,139903,BH12,Community Services,CTPLD Placements,Adult Domiciliary Care Contribution,Income,REVENUE
Wiltshire, http://opendatacommunities.org/id/unitary-authority/wiltshire,04/10/2019,1902424756,588.77,Alina Homecare - Disabilty Support ,139903,BH12,Community Services,South Care Packages,Adult Domiciliary Care Contribution,Income,REVENUE
Wiltshire, http://opendatacommunities.org/id/unitary-authority/wiltshire,04/10/2019,1902424757,308.61,Alina Homecare - Disabilty Support ,139903,BH12,Community Services,CTPLD Placements,Adult Domiciliary Care,Third Party Payments,REVENUE
Wiltshire, http://opendatacommunities.org/id/unitary-authority/wiltshire,11/10/2019,1902427117,1443.55,Alina Homecare - Disabilty Support ,139903,BH12,Community Services,CTPLD Placements,Adult Domiciliary Care,Third Party Payments,REVENUE
Wiltshire, http://opendatacommunities.org/id/unitary-authority/wiltshire,14/10/2019,1902427506,610.08,Alina Homecare - Disabilty Support ,139903,BH12,Community Services,West Care Packages,Adult Domiciliary Care,Third Party Payments,REVENUE
Wiltshire, http://opendatacommunities.org/id/unitary-authority/wiltshire,15/10/2019,1902427582,338.4,Alina Homecare - Disabilty Support ,139903,BH12,Community Services,Homefirst Plus,Adult Domiciliary Care,Third Party Payments,REVENUE
Wiltshire, http://opendatacommunities.org/id/unitary-authority/wiltshire,17/10/2019,1902430123,473.76,Alina Homecare - Disabilty Support ,139903,BH12,Community Services,South Care Packages,Adult Domiciliary Care,Third Party Payments,REVENUE
Wiltshire, http://opendatacommunities.org/id/unitary-authority/wiltshire,29/10/2019,1902438781,457.94,Alina Homecare - Disabilty Support ,139903,BH12,Community Services,North Care Packages,Adult Domiciliary Care,Third Party Payments,REVENUE
Wiltshire, http://opendatacommunities.org/id/unitary-authority/wiltshire,29/10/2019,1902438782,725.44,Alina Homecare - Disabilty Support ,139903,BH12,Community Services,South Care Packages,Adult Domiciliary Care Contribution,Income,REVENUE
Wiltshire, http://opendatacommunities.org/id/unitary-authority/wiltshire,29/10/2019,1902438783,885.77,Alina Homecare - Disabilty Support ,139903,BH12,Community Services,South Care Packages,Adult Domiciliary Care,Third Party Payments,REVENUE
Wiltshire, http://opendatacommunities.org/id/unitary-authority/wiltshire,29/10/2019,1902438784,622.22,Alina Homecare - Disabilty Support ,139903,BH12,Community Services,CTPLD Placements,Adult Domiciliary Care,Third Party Payments,REVENUE
Wiltshire, http://opendatacommunities.org/id/unitary-authority/wiltshire,29/10/2019,1902438785,579.14,Alina Homecare - Disabilty Support ,139903,BH12,Community Services,South Care Packages,Adult Domiciliary Care Contribution,Income,REVENUE
Wiltshire, http://opendatacommunities.org/id/unitary-authority/wiltshire,29/10/2019,1902438788,853.92,Alina Homecare - Disabilty Support ,139903,BH12,Community Services,South Care Packages,Adult Domiciliary Care,Third Party Payments,REVENUE
Wiltshire, http://opendatacommunities.org/id/unitary-authority/wiltshire,29/10/2019,1902438789,1071.66,Alina Homecare - Disabilty Support ,139903,BH12,Community Services,South Care Packages,Adult Domiciliary Care Contribution,Income,REVENUE
Wiltshire, http://opendatacommunities.org/id/unitary-authority/wiltshire,29/10/2019,1902438790,1621.14,Alina Homecare - Disabilty Support ,139903,BH12,Community Services,South Care Packages,Adult Domiciliary Care,Third Party Payments,REVENUE
Wiltshire, http://opendatacommunities.org/id/unitary-authority/wiltshire,04/10/2019,5107386140,5785.44,Alina Homecare - Disabilty Support ,139903,BH12,Community Services,CTPLD Placements,Supported Living,Third Party Payments,REVENUE
Wiltshire, http://opendatacommunities.org/id/unitary-authority/wiltshire,04/10/2019,5107386141,5785.44,Alina Homecare - Disabilty Support ,139903,BH12,Community Services,CTPLD Placements,Supported Living,Third Party Payments,REVENUE
Wiltshire, http://opendatacommunities.org/id/unitary-authority/wiltshire,04/10/2019,5107386142,1446.36,Alina Homecare - Disabilty Support ,139903,BH12,Community Services,CTPLD Placements,Supported Living,Third Party Payments,REVENUE
Wiltshire, http://opendatacommunities.org/id/unitary-authority/wiltshire,04/10/2019,5107386143,6124.92,Alina Homecare - Disabilty Support ,139903,BH12,Community Services,CTPLD Placements,Supported Living,Third Party Payments,REVENUE
Wiltshire, http://opendatacommunities.org/id/unitary-authority/wiltshire,04/10/2019,5107386144,6124.92,Alina Homecare - Disabilty Support ,139903,BH12,Community Services,CTPLD Placements,Supported Living,Third Party Payments,REVENUE
Wiltshire, http://opendatacommunities.org/id/unitary-authority/wiltshire,04/10/2019,5107386145,1531.23,Alina Homecare - Disabilty Support ,139903,BH12,Community Services,CTPLD Placements,Supported Living,Third Party Payments,REVENUE
Wiltshire, http://opendatacommunities.org/id/unitary-authority/wiltshire,04/10/2019,5107386146,2874.52,Alina Homecare - Disabilty Support ,139903,BH12,Community Services,CTPLD Placements,Supported Living,Third Party Payments,REVENUE
Wiltshire, http://opendatacommunities.org/id/unitary-authority/wiltshire,04/10/2019,5107386147,2874.52,Alina Homecare - Disabilty Support ,139903,BH12,Community Services,CTPLD Placements,Supported Living,Third Party Payments,REVENUE
Wiltshire, http://opendatacommunities.org/id/unitary-authority/wiltshire,04/10/2019,5107386148,718.63,Alina Homecare - Disabilty Support ,139903,BH12,Community Services,CTPLD Placements,Supported Living,Third Party Payments,REVENUE
Wiltshire, http://opendatacommunities.org/id/unitary-authority/wiltshire,04/10/2019,5107386149,910.72,Alina Homecare - Disabilty Support ,139903,BH12,Community Services,CTPLD Placements,Supported Living,Third Party Payments,REVENUE
Wiltshire, http://opendatacommunities.org/id/unitary-authority/wiltshire,04/10/2019,5107386150,910.72,Alina Homecare - Disabilty Support ,139903,BH12,Community Services,CTPLD Placements,Supported Living,Third Party Payments,REVENUE
Wiltshire, http://opendatacommunities.org/id/unitary-authority/wiltshire,04/10/2019,5107386152,5059.72,Alina Homecare - Disabilty Support ,139903,BH12,Community Services,CTPLD Placements,Supported Living,Third Party Payments,REVENUE
Wiltshire, http://opendatacommunities.org/id/unitary-authority/wiltshire,04/10/2019,5107386153,5059.72,Alina Homecare - Disabilty Support ,139903,BH12,Community Services,CTPLD Placements,Supported Living,Third Party Payments,REVENUE
Wiltshire, http://opendatacommunities.org/id/unitary-authority/wiltshire,04/10/2019,5107386154,1264.93,Alina Homecare - Disabilty Support ,139903,BH12,Community Services,CTPLD Placements,Supported Living,Third Party Payments,REVENUE
Wiltshire, http://opendatacommunities.org/id/unitary-authority/wiltshire,04/10/2019,5107386155,5425.64,Alina Homecare - Disabilty Support ,139903,BH12,Community Services,CTPLD Placements,Supported Living,Third Party Payments,REVENUE
Wiltshire, http://opendatacommunities.org/id/unitary-authority/wiltshire,04/10/2019,5107386156,5425.64,Alina Homecare - Disabilty Support ,139903,BH12,Community Services,CTPLD Placements,Supported Living,Third Party Payments,REVENUE
Wiltshire, http://opendatacommunities.org/id/unitary-authority/wiltshire,04/10/2019,5107386157,1356.41,Alina Homecare - Disabilty Support ,139903,BH12,Community Services,CTPLD Placements,Supported Living,Third Party Payments,REVENUE
Wiltshire, http://opendatacommunities.org/id/unitary-authority/wiltshire,04/10/2019,5107386158,6722.6,Alina Homecare - Disabilty Support ,139903,BH12,Community Services,CTPLD Placements,Supported Living,Third Party Payments,REVENUE
Wiltshire, http://opendatacommunities.org/id/unitary-authority/wiltshire,04/10/2019,5107386159,6722.6,Alina Homecare - Disabilty Support ,139903,BH12,Community Services,CTPLD Placements,Supported Living,Third Party Payments,REVENUE
Wiltshire, http://opendatacommunities.org/id/unitary-authority/wiltshire,04/10/2019,5107386160,1680.65,Alina Homecare - Disabilty Support ,139903,BH12,Community Services,CTPLD Placements,Supported Living,Third Party Payments,REVENUE
Wiltshire, http://opendatacommunities.org/id/unitary-authority/wiltshire,04/10/2019,5107386161,6437.16,Alina Homecare - Disabilty Support ,139903,BH12,Community Services,CTPLD Placements,Supported Living,Third Party Payments,REVENUE
Wiltshire, http://opendatacommunities.org/id/unitary-authority/wiltshire,04/10/2019,5107386162,6437.16,Alina Homecare - Disabilty Support ,139903,BH12,Community Services,CTPLD Placements,Supported Living,Third Party Payments,REVENUE
Wiltshire, http://opendatacommunities.org/id/unitary-authority/wiltshire,04/10/2019,5107386163,1609.29,Alina Homecare - Disabilty Support ,139903,BH12,Community Services,CTPLD Placements,Supported Living,Third Party Payments,REVENUE
Wiltshire, http://opendatacommunities.org/id/unitary-authority/wiltshire,04/10/2019,5107386164,2790.2,Alina Homecare - Disabilty Support ,139903,BH12,Community Services,CTPLD Placements,Supported Living,Third Party Payments,REVENUE
Wiltshire, http://opendatacommunities.org/id/unitary-authority/wiltshire,04/10/2019,5107386165,2790.2,Alina Homecare - Disabilty Support ,139903,BH12,Community Services,CTPLD Placements,Supported Living,Third Party Payments,REVENUE
Wiltshire, http://opendatacommunities.org/id/unitary-authority/wiltshire,04/10/2019,5107386166,697.55,Alina Homecare - Disabilty Support ,139903,BH12,Community Services,CTPLD Placements,Supported Living,Third Party Payments,REVENUE
Wiltshire, http://opendatacommunities.org/id/unitary-authority/wiltshire,15/10/2019,5107391072,5013.55,All the other Lucy's (ATOL) ,148945,SW18,Children & Education,0-25 extnl disabty p,Other Social & Welfare Costs,Third Party Payments,REVENUE
Wiltshire, http://opendatacommunities.org/id/unitary-authority/wiltshire,16/10/2019,5107387046,3599.72,Alliance Home Care ,110986,SN15,Community Services,MH OP N&E Locality,Adult Residential Placements - Spot Purchase,Third Party Payments,REVENUE
Wiltshire, http://opendatacommunities.org/id/unitary-authority/wiltshire,16/10/2019,5107388214,3601.96,Alliance Home Care ,110986,SN15,Community Services,MH AOWA N&E Locality,Adult Residential Placements - Spot Purchase,Third Party Payments,REVENUE
Wiltshire, http://opendatacommunities.org/id/unitary-authority/wiltshire,16/10/2019,5107388622,3346.28,Alliance Home Care ,110986,SN15,Community Services,MH AOWA N&E Locality,Adult Residential Placements - Spot Purchase,Third Party Payments,REVENUE
Wiltshire, http://opendatacommunities.org/id/unitary-authority/wiltshire,16/10/2019,5107389269,3827.52,Alliance Home Care ,110986,SN15,Community Services,MH AOWA N&E Locality,Adult Residential Placements - Spot Purchase,Third Party Payments,REVENUE
Wiltshire, http://opendatacommunities.org/id/unitary-authority/wiltshire,16/10/2019,5107389832,3600,Alliance Home Care ,110986,SN15,Community Services,MH OP N&E Locality,Adult Residential Placements - Spot Purchase,Third Party Payments,REVENUE
Wiltshire, http://opendatacommunities.org/id/unitary-authority/wiltshire,16/10/2019,5107390078,3818,Alliance Home Care ,110986,SN15,Community Services,MH AOWA N&E Locality,Adult Residential Placements - Spot Purchase,Third Party Payments,REVENUE
Wiltshire, http://opendatacommunities.org/id/unitary-authority/wiltshire,16/10/2019,5107390218,3764.28,Alliance Home Care ,110986,SN15,Community Services,MH AOWA N&E Locality,Adult Residential Placements - Spot Purchase,Third Party Payments,REVENUE
Wiltshire, http://opendatacommunities.org/id/unitary-authority/wiltshire,16/10/2019,5107390238,3215.16,Alliance Home Care ,110986,SN15,Community Services,MH AOWA N&E Locality,Adult Residential Placements - Spot Purchase,Third Party Payments,REVENUE
Wiltshire, http://opendatacommunities.org/id/unitary-authority/wiltshire,16/10/2019,5107390732,3601.96,Alliance Home Care ,110986,SN15,Community Services,Adult Care Gross Loa,Adult Care Loans,Capital charges and Expenditure,REVENUE
Wiltshire, http://opendatacommunities.org/id/unitary-authority/wiltshire,15/10/2019,1902429061,6251.4,Allsorts Pre-school Nursery ,113437,SN4 ,Children & Education,Free Enttlmnt 3 & 4y,Childcare Free Entitlement Early Years,Supplies and Services,REVENUE
Wiltshire, http://opendatacommunities.org/id/unitary-authority/wiltshire,15/10/2019,1902429062,1117.2,Allsorts Pre-school Nursery ,113437,SN4 ,Children & Education,Free Entitlement 2 Y,Childcare Free Entitlement Early Years,Supplies and Services,REVENUE
Wiltshire, http://opendatacommunities.org/id/unitary-authority/wiltshire,01/10/2019,1902422519,753.13,Alltogether Care LLP ,143884,DT4 ,Community Services,South Care Packages,Adult Domiciliary Care,Third Party Payments,REVENUE
Wiltshire, http://opendatacommunities.org/id/unitary-authority/wiltshire,28/10/2019,1902438385,497.28,Alltogether Care LLP ,143884,DT4 ,Community Services,South Care Packages,Adult Domiciliary Care,Third Party Payments,REVENUE
Wiltshire, http://opendatacommunities.org/id/unitary-authority/wiltshire,28/10/2019,1902438386,813.49,Alltogether Care LLP ,143884,DT4 ,Community Services,South Care Packages,Adult Domiciliary Care,Third Party Payments,REVENUE
Wiltshire, http://opendatacommunities.org/id/unitary-authority/wiltshire,28/10/2019,1902438387,1626.92,Alltogether Care LLP ,143884,DT4 ,Community Services,South Care Packages,Adult Domiciliary Care,Third Party Payments,REVENUE
Wiltshire, http://opendatacommunities.org/id/unitary-authority/wiltshire,28/10/2019,1902438389,497.28,Alltogether Care LLP ,143884,DT4 ,Community Services,South Care Packages,Adult Domiciliary Care,Third Party Payments,REVENUE
Wiltshire, http://opendatacommunities.org/id/unitary-authority/wiltshire,28/10/2019,1902438390,1179.43,Alltogether Care LLP ,143884,DT4 ,Community Services,South Care Packages,Adult Domiciliary Care,Third Party Payments,REVENUE
Wiltshire, http://opendatacommunities.org/id/unitary-authority/wiltshire,28/10/2019,1902438391,1790.32,Alltogether Care LLP ,143884,DT4 ,Community Services,South Care Packages,Adult Domiciliary Care,Third Party Payments,REVENUE
Wiltshire, http://opendatacommunities.org/id/unitary-authority/wiltshire,28/10/2019,1902438409,1463.56,Alltogether Care LLP ,143884,DT4 ,Community Services,South Care Packages,Adult Domiciliary Care,Third Party Payments,REVENUE
Wiltshire, http://opendatacommunities.org/id/unitary-authority/wiltshire,08/10/2019,5107383252,368.85,Alpha Chemicals ,138904,SO31,Neighbourhood & Planning,Devizes,Cleaning Materials - Buildings,Premises Related,REVENUE
Wiltshire, http://opendatacommunities.org/id/unitary-authority/wiltshire,16/10/2019,5107391156,422.65,Alpha Chemicals ,138904,SO31,Neighbourhood & Planning,Five Rivers,Cleaning Materials - Buildings,Premises Related,REVENUE
Wiltshire, http://opendatacommunities.org/id/unitary-authority/wiltshire,16/10/2019,5107391158,447.1,Alpha Chemicals ,138904,SO31,Neighbourhood & Planning,Five Rivers,Cleaning Materials - Buildings,Premises Related,REVENUE
Wiltshire, http://opendatacommunities.org/id/unitary-authority/wiltshire,16/10/2019,5107391159,316.6,Alpha Chemicals ,138904,SO31,Neighbourhood & Planning,Five Rivers,Cleaning Materials - Buildings,Premises Related,REVENUE
Wiltshire, http://opendatacommunities.org/id/unitary-authority/wiltshire,07/10/2019,5107383249,405.6,Alpha Personnel Ltd ,110119,SP1 ,Children & Education,Learning Resources,Agency Staff,Employee Related,REVENUE
Wiltshire, http://opendatacommunities.org/id/unitary-authority/wiltshire,02/10/2019,5107383019,426,Alpha Plus Training  and  Translati Ltd,110120,TA4 ,Children & Education,UASC Under 18 Years,Professional Fees,Supplies and Services,REVENUE
Wiltshire, http://opendatacommunities.org/id/unitary-authority/wiltshire,10/10/2019,5107383181,378.92,Alpha Plus Training  and  Translati Ltd,110120,TA4 ,Children & Education,UASC Under 18 Years,Professional Fees,Supplies and Services,REVENUE
Wiltshire, http://opendatacommunities.org/id/unitary-authority/wiltshire,10/10/2019,5107384292,281.6,Alpha Plus Training  and  Translati Ltd,110120,TA4 ,Children & Education,HQ Social Care,Other Social & Welfare Costs,Third Party Payments,REVENUE
Wiltshire, http://opendatacommunities.org/id/unitary-authority/wiltshire,02/10/2019,5107384307,280.7,Alpha Plus Training  and  Translati Ltd,110120,TA4 ,Children & Education,UASC Under 18 Years,Professional Fees,Supplies and Services,REVENUE
Wiltshire, http://opendatacommunities.org/id/unitary-authority/wiltshire,02/10/2019,5107384311,737.7,Alpha Plus Training  and  Translati Ltd,110120,TA4 ,Children & Education,UASC Under 18 Years,Professional Fees,Supplies and Services,REVENUE
Wiltshire, http://opendatacommunities.org/id/unitary-authority/wiltshire,02/10/2019,5107384318,294,Alpha Plus Training  and  Translati Ltd,110120,TA4 ,Children & Education,UASC Over 18 Years,Professional Fees,Supplies and Services,REVENUE
Wiltshire, http://opendatacommunities.org/id/unitary-authority/wiltshire,22/10/2019,5107385492,271.35,Alpha Plus Training  and  Translati Ltd,110120,TA4 ,Children & Education,UASC Under 18 Years,Professional Fees,Supplies and Services,REVENUE
Wiltshire, http://opendatacommunities.org/id/unitary-authority/wiltshire,22/10/2019,5107385493,289.28,Alpha Plus Training  and  Translati Ltd,110120,TA4 ,Children & Education,UASC Under 18 Years,Professional Fees,Supplies and Services,REVENUE
Wiltshire, http://opendatacommunities.org/id/unitary-authority/wiltshire,22/10/2019,5107385497,255.8,Alpha Plus Training  and  Translati Ltd,110120,TA4 ,Children & Education,UASC Under 18 Years,Professional Fees,Supplies and Services,REVENUE
Wiltshire, http://opendatacommunities.org/id/unitary-authority/wiltshire,22/10/2019,5107385498,255.8,Alpha Plus Training  and  Translati Ltd,110120,TA4 ,Children & Education,UASC Under 18 Years,Professional Fees,Supplies and Services,REVENUE
Wiltshire, http://opendatacommunities.org/id/unitary-authority/wiltshire,11/10/2019,5107385964,375.32,Alpha Plus Training  and  Translati Ltd,110120,TA4 ,Children & Education,Supp & Safe North,Professional Fees,Supplies and Services,REVENUE
Wiltshire, http://opendatacommunities.org/id/unitary-authority/wiltshire,15/10/2019,5107385966,292.7,Alpha Plus Training  and  Translati Ltd,110120,TA4 ,Children & Education,HQ Social Care,Professional Fees,Supplies and Services,REVENUE
Wiltshire, http://opendatacommunities.org/id/unitary-authority/wiltshire,08/10/2019,5107386489,786.39,Alpha Plus Training  and  Translati Ltd,110120,TA4 ,Children & Education,HQ Social Care,Professional Fees,Supplies and Services,REVENUE
Wiltshire, http://opendatacommunities.org/id/unitary-authority/wiltshire,15/10/2019,5107390040,250.2,Alpha Plus Training  and  Translati Ltd,110120,TA4 ,Children & Education,HQ Social Care,Other Social & Welfare Costs,Third Party Payments,REVENUE
Wiltshire, http://opendatacommunities.org/id/unitary-authority/wiltshire,22/10/2019,5107392676,1897,Alpha Plus Training  and  Translati Ltd,110120,TA4 ,Children & Education,HQ Social Care,Professional Fees,Supplies and Services,REVENUE
Wiltshire, http://opendatacommunities.org/id/unitary-authority/wiltshire,23/10/2019,5107392802,511.6,Alpha Plus Training  and  Translati Ltd,110120,TA4 ,Children & Education,UASC Under 18 Years,Professional Fees,Supplies and Services,REVENUE
Wiltshire, http://opendatacommunities.org/id/unitary-authority/wiltshire,08/10/2019,1902425266,512,Alpha Taxis ,100124,BA14,Neighbourhood & Planning,SEN Secondary Tspt,Transport Contracts,Third Party Payments,REVENUE
Wiltshire, http://opendatacommunities.org/id/unitary-authority/wiltshire,08/10/2019,1902425267,1056,Alpha Taxis ,100124,BA14,Community Services,CTPLD Placements,Transport Contracts,Third Party Payments,REVENUE
Wiltshire, http://opendatacommunities.org/id/unitary-authority/wiltshire,08/10/2019,1902425275,1898,Alpha Taxis ,100124,BA14,Neighbourhood & Planning,SEN 16+ Transport,Transport Contracts,Third Party Payments,REVENUE
Wiltshire, http://opendatacommunities.org/id/unitary-authority/wiltshire,08/10/2019,1902425276,2040,Alpha Taxis ,100124,BA14,Neighbourhood & Planning,SEN Secondary Tspt,Transport Contracts,Third Party Payments,REVENUE
Wiltshire, http://opendatacommunities.org/id/unitary-authority/wiltshire,08/10/2019,1902425277,900,Alpha Taxis ,100124,BA14,Neighbourhood & Planning,SEN Secondary Tspt,Transport Contracts,Third Party Payments,REVENUE
Wiltshire, http://opendatacommunities.org/id/unitary-authority/wiltshire,08/10/2019,1902425279,1591.2,Alpha Taxis ,100124,BA14,Neighbourhood & Planning,SEN Primary Transprt,Transport Contracts,Third Party Payments,REVENUE
Wiltshire, http://opendatacommunities.org/id/unitary-authority/wiltshire,08/10/2019,1902425280,547.2,Alpha Taxis ,100124,BA14,Neighbourhood & Planning,SEN Secondary Tspt,Transport Contracts,Third Party Payments,REVENUE
Wiltshire, http://opendatacommunities.org/id/unitary-authority/wiltshire,08/10/2019,1902425280,820.8,Alpha Taxis ,100124,BA14,Neighbourhood & Planning,SEN Primary Transprt,Transport Contracts,Third Party Payments,REVENUE
Wiltshire, http://opendatacommunities.org/id/unitary-authority/wiltshire,08/10/2019,1902425282,1680,Alpha Taxis ,100124,BA14,Neighbourhood & Planning,SEN Primary Transprt,Transport Contracts,Third Party Payments,REVENUE
Wiltshire, http://opendatacommunities.org/id/unitary-authority/wiltshire,08/10/2019,1902425283,684,Alpha Taxis ,100124,BA14,Neighbourhood & Planning,SEN Secondary Tspt,Transport Contracts,Third Party Payments,REVENUE
Wiltshire, http://opendatacommunities.org/id/unitary-authority/wiltshire,08/10/2019,1902425284,652.8,Alpha Taxis ,100124,BA14,Neighbourhood & Planning,Mainstream Secondary,Transport Contracts,Third Party Payments,REVENUE
Wiltshire, http://opendatacommunities.org/id/unitary-authority/wiltshire,08/10/2019,1902425286,848,Alpha Taxis ,100124,BA14,Community Services,CTPLD Placements,Transport Contracts,Third Party Payments,REVENUE
Wiltshire, http://opendatacommunities.org/id/unitary-authority/wiltshire,08/10/2019,1902425287,1170,Alpha Taxis ,100124,BA14,Neighbourhood & Planning,SEN Primary Transprt,Transport Contracts,Third Party Payments,REVENUE
Wiltshire, http://opendatacommunities.org/id/unitary-authority/wiltshire,08/10/2019,1902425288,456,Alpha Taxis ,100124,BA14,Neighbourhood & Planning,Mainstream Primary,Transport Contracts,Third Party Payments,REVENUE
Wiltshire, http://opendatacommunities.org/id/unitary-authority/wiltshire,08/10/2019,1902425290,884,Alpha Taxis ,100124,BA14,Neighbourhood & Planning,SEN Primary Transprt,Transport Contracts,Third Party Payments,REVENUE
Wiltshire, http://opendatacommunities.org/id/unitary-authority/wiltshire,08/10/2019,1902425291,315,Alpha Taxis ,100124,BA14,Community Services,West Care Packages,Transport Contracts,Third Party Payments,REVENUE
Wiltshire, http://opendatacommunities.org/id/unitary-authority/wiltshire,08/10/2019,1902425292,758.4,Alpha Taxis ,100124,BA14,Children & Education,CIC Team South,Transport Contracts,Third Party Payments,REVENUE
Wiltshire, http://opendatacommunities.org/id/unitary-authority/wiltshire,16/10/2019,1902430059,1576.6,Alpha Taxis ,100124,BA14,Neighbourhood & Planning,SEN Primary Transprt,Transport Contracts,Third Party Payments,REVENUE
Wiltshire, http://opendatacommunities.org/id/unitary-authority/wiltshire,16/10/2019,1902430080,2160,Alpha Taxis ,100124,BA14,Neighbourhood & Planning,SEN Primary Transprt,Transport Contracts,Third Party Payments,REVENUE
Wiltshire, http://opendatacommunities.org/id/unitary-authority/wiltshire,24/10/2019,1902436860,320.3,Alpha Taxis ,100124,BA14,Community Services,CTPLD Placements,Transport Contracts,Third Party Payments,REVENUE
Wiltshire, http://opendatacommunities.org/id/unitary-authority/wiltshire,24/10/2019,1902436865,1033.2,Alpha Taxis ,100124,BA14,Neighbourhood & Planning,SEN Secondary Tspt,Transport Contracts,Third Party Payments,REVENUE
Wiltshire, http://opendatacommunities.org/id/unitary-authority/wiltshire,30/10/2019,1902439554,651,Alpha Taxis ,100124,BA14,Neighbourhood & Planning,SEN 16+ Transport,Transport Contracts,Third Party Payments,REVENUE
Wiltshire, http://opendatacommunities.org/id/unitary-authority/wiltshire,30/10/2019,1902439557,390.2,Alpha Taxis ,100124,BA14,Neighbourhood & Planning,SEN Secondary Tspt,Transport Contracts,Third Party Payments,REVENUE
Wiltshire, http://opendatacommunities.org/id/unitary-authority/wiltshire,30/10/2019,1902439557,586.6,Alpha Taxis ,100124,BA14,Community Services,CTPLD Placements,Transport Contracts,Third Party Payments,REVENUE
Wiltshire, http://opendatacommunities.org/id/unitary-authority/wiltshire,29/10/2019,1902439326,1710,Alpha Taxis (Tidworth) ,137541,SP9 ,Neighbourhood & Planning,SEN Secondary Tspt,Transport Contracts,Third Party Payments,REVENUE
Wiltshire, http://opendatacommunities.org/id/unitary-authority/wiltshire,10/10/2019,1902415189,120195.49,Alun Griffiths Contractors Ltd ,110123,NP7 ,Wiltshire Council,Wiltshire Council,Materials,Supplies and Services,CAPITAL
Wiltshire, http://opendatacommunities.org/id/unitary-authority/wiltshire,02/10/2019,1902423584,336,Alzheimers Support ,110127,BA14,Community Services,West Care Packages,Adult Day Care Contracts,Third Party Payments,REVENUE
Wiltshire, http://opendatacommunities.org/id/unitary-authority/wiltshire,15/10/2019,5107386497,10042.25,Alzheimers Support ,110127,BA14,Community Services,ASC Community C&G,Grants Expenditure,Supplies and Services,REVENUE
Wiltshire, http://opendatacommunities.org/id/unitary-authority/wiltshire,15/10/2019,5107386499,22318.33,Alzheimers Support ,110127,BA14,Community Services,ASC Community C&G,Grants Expenditure,Supplies and Services,REVENUE
Wiltshire, http://opendatacommunities.org/id/unitary-authority/wiltshire,10/10/2019,1902426609,324,Alzheimers Support ,113451,BA14,Community Services,West Care Packages,Adult Domiciliary Care,Third Party Payments,REVENUE
Wiltshire, http://opendatacommunities.org/id/unitary-authority/wiltshire,09/10/2019,5107386509,260,Amberhawk Training Limited ,148217,LS18,Neighbourhood & Planning,Partnerships & Gov,Staff Training - General,Employee Related,REVENUE
Wiltshire, http://opendatacommunities.org/id/unitary-authority/wiltshire,14/10/2019,5107389363,13347.67,Amberleigh Care Ltd ,147648,TF2 ,Children & Education,Ext Placement & IFA,Childrens Agency Placement,Third Party Payments,REVENUE
Wiltshire, http://opendatacommunities.org/id/unitary-authority/wiltshire,14/10/2019,5107389364,3348,Amberleigh Care Ltd ,147648,TF2 ,Children & Education,IndepSpecialSchFees,Childrens Agency Placement,Third Party Payments,REVENUE
Wiltshire, http://opendatacommunities.org/id/unitary-authority/wiltshire,16/10/2019,5107389777,465.9,Ambleside Residential Home ,149031,GL51,Community Services,West Care Packages,Adult Residential Placements - Spot Purchase,Third Party Payments,REVENUE
Wiltshire, http://opendatacommunities.org/id/unitary-authority/wiltshire,01/10/2019,5107385613,3429,Amicus Foster Care Limited ,126050,BS2 ,Children & Education,Ext Placement & IFA,Childrens Agency Placement,Third Party Payments,REVENUE
Wiltshire, http://opendatacommunities.org/id/unitary-authority/wiltshire,03/10/2019,5107386037,3543.3,Amicus Foster Care Limited ,126050,BS2 ,Children & Education,Ext Placement & IFA,Childrens Agency Placement,Third Party Payments,REVENUE
Wiltshire, http://opendatacommunities.org/id/unitary-authority/wiltshire,16/10/2019,5107391835,3543.3,Amicus Foster Care Limited ,126050,BS2 ,Children & Education,Ext Placement & IFA,Childrens Agency Placement,Third Party Payments,REVENUE
Wiltshire, http://opendatacommunities.org/id/unitary-authority/wiltshire,16/10/2019,5107391836,3543.3,Amicus Foster Care Limited ,126050,BS2 ,Children & Education,Ext Placement & IFA,Childrens Agency Placement,Third Party Payments,REVENUE
Wiltshire, http://opendatacommunities.org/id/unitary-authority/wiltshire,16/10/2019,5107391839,3543.3,Amicus Foster Care Limited ,126050,BS2 ,Children & Education,Ext Placement & IFA,Childrens Agency Placement,Third Party Payments,REVENUE
Wiltshire, http://opendatacommunities.org/id/unitary-authority/wiltshire,16/10/2019,5107391842,3624.21,Amicus Foster Care Limited ,126050,BS2 ,Children & Education,Ext Placement & IFA,Childrens Agency Placement,Third Party Payments,REVENUE
Wiltshire, http://opendatacommunities.org/id/unitary-authority/wiltshire,16/10/2019,5107391843,4581.49,Amicus Foster Care Limited ,126050,BS2 ,Children & Education,Ext Placement & IFA,Childrens Agency Placement,Third Party Payments,REVENUE
Wiltshire, http://opendatacommunities.org/id/unitary-authority/wiltshire,16/10/2019,5107391844,3841.21,Amicus Foster Care Limited ,126050,BS2 ,Children & Education,Ext Placement & IFA,Childrens Agency Placement,Third Party Payments,REVENUE
Wiltshire, http://opendatacommunities.org/id/unitary-authority/wiltshire,16/10/2019,5107391930,3543.3,Amicus Foster Care Limited ,126050,BS2 ,Children & Education,Ext Placement & IFA,Childrens Agency Placement,Third Party Payments,REVENUE
Wiltshire, http://opendatacommunities.org/id/unitary-authority/wiltshire,16/10/2019,5107391931,3543.3,Amicus Foster Care Limited ,126050,BS2 ,Children & Education,Ext Placement & IFA,Childrens Agency Placement,Third Party Payments,REVENUE
Wiltshire, http://opendatacommunities.org/id/unitary-authority/wiltshire,16/10/2019,5107391932,3429,Amicus Foster Care Limited ,126050,BS2 ,Children & Education,Ext Placement & IFA,Childrens Agency Placement,Third Party Payments,REVENUE
Wiltshire, http://opendatacommunities.org/id/unitary-authority/wiltshire,16/10/2019,5107391933,3543.3,Amicus Foster Care Limited ,126050,BS2 ,Children & Education,Ext Placement & IFA,Childrens Agency Placement,Third Party Payments,REVENUE
Wiltshire, http://opendatacommunities.org/id/unitary-authority/wiltshire,25/10/2019,5107393332,522.3,Amicus Foster Care Limited ,126050,BS2 ,Children & Education,CIC Team South,Childrens Agency Placement,Third Party Payments,REVENUE
Wiltshire, http://opendatacommunities.org/id/unitary-authority/wiltshire,14/10/2019,1902427532,513,Amicus Homecare Limited ,144149,BA2 ,Community Services,MH AOWA West Localit,Adult Domiciliary Care,Third Party Payments,REVENUE
Wiltshire, http://opendatacommunities.org/id/unitary-authority/wiltshire,14/10/2019,1902427534,1061,Amicus Homecare Limited ,144149,BA2 ,Community Services,West Care Packages,Adult Domiciliary Care,Third Party Payments,REVENUE
Wiltshire, http://opendatacommunities.org/id/unitary-authority/wiltshire,14/10/2019,1902427535,1995.2,Amicus Homecare Limited ,144149,BA2 ,Community Services,West Care Packages,Adult Domiciliary Care Contribution,Income,REVENUE
Wiltshire, http://opendatacommunities.org/id/unitary-authority/wiltshire,14/10/2019,1902427536,1121.68,Amicus Homecare Limited ,144149,BA2 ,Community Services,MH OP West Locality,Adult Domiciliary Care Contribution,Income,REVENUE
Wiltshire, http://opendatacommunities.org/id/unitary-authority/wiltshire,14/10/2019,1902427537,297,Amicus Homecare Limited ,144149,BA2 ,Community Services,West Care Packages,Adult Domiciliary Care,Third Party Payments,REVENUE
Wiltshire, http://opendatacommunities.org/id/unitary-authority/wiltshire,01/10/2019,1902420133,1111.64,AMP Clean Energy ,144036,EX20,Neighbourhood & Planning,Biomass Prog Schools,Other Fuels,Premises Related,REVENUE
Wiltshire, http://opendatacommunities.org/id/unitary-authority/wiltshire,14/10/2019,1902423652,1576.8,AMP Clean Energy ,144036,EX20,Neighbourhood & Planning,Biomass Prog Schools,Other Fuels,Premises Related,REVENUE
Wiltshire, http://opendatacommunities.org/id/unitary-authority/wiltshire,14/10/2019,1902423653,1971,AMP Clean Energy ,144036,EX20,Neighbourhood & Planning,Biomass Prog Schools,Other Fuels,Premises Related,REVENUE
Wiltshire, http://opendatacommunities.org/id/unitary-authority/wiltshire,10/10/2019,1902426116,1178.66,AMP Clean Energy ,144036,EX20,Neighbourhood & Planning,Biomass Prog Schools,Other Fuels,Premises Related,REVENUE
Wiltshire, http://opendatacommunities.org/id/unitary-authority/wiltshire,10/10/2019,1902426117,2010.42,AMP Clean Energy ,144036,EX20,Neighbourhood & Planning,Biomass Prog Schools,Other Fuels,Premises Related,REVENUE
Wiltshire, http://opendatacommunities.org/id/unitary-authority/wiltshire,17/10/2019,1902426118,1576.8,AMP Clean Energy ,144036,EX20,Neighbourhood & Planning,Biomass Prog Schools,Other Fuels,Premises Related,REVENUE
Wiltshire, http://opendatacommunities.org/id/unitary-authority/wiltshire,17/10/2019,1902426119,788.4,AMP Clean Energy ,144036,EX20,Neighbourhood & Planning,Biomass Prog Schools,Other Fuels,Premises Related,REVENUE
Wiltshire, http://opendatacommunities.org/id/unitary-authority/wiltshire,17/10/2019,1902426120,630.72,AMP Clean Energy ,144036,EX20,Neighbourhood & Planning,Biomass Prog Schools,Other Fuels,Premises Related,REVENUE
Wiltshire, http://opendatacommunities.org/id/unitary-authority/wiltshire,24/10/2019,1902430304,890.89,AMP Clean Energy ,144036,EX20,Neighbourhood & Planning,Biomass Prog Schools,Other Fuels,Premises Related,REVENUE
Wiltshire, http://opendatacommunities.org/id/unitary-authority/wiltshire,29/10/2019,1902436279,1572.86,AMP Clean Energy ,144036,EX20,Neighbourhood & Planning,Biomass Prog Schools,Other Fuels,Premises Related,REVENUE
Wiltshire, http://opendatacommunities.org/id/unitary-authority/wiltshire,29/10/2019,1902436280,1775.87,AMP Clean Energy ,144036,EX20,Neighbourhood & Planning,Biomass Prog Schools,Other Fuels,Premises Related,REVENUE
Wiltshire, http://opendatacommunities.org/id/unitary-authority/wiltshire,31/10/2019,1902436281,1777.84,AMP Clean Energy ,144036,EX20,Neighbourhood & Planning,Biomass Prog Schools,Other Fuels,Premises Related,REVENUE
Wiltshire, http://opendatacommunities.org/id/unitary-authority/wiltshire,11/10/2019,5107387537,2744.64,AMS Care Wiltshire ,130764,SN4 ,Community Services,Placement Block Cont,Adult Care Nursing Placements- Block Contract,Third Party Payments,REVENUE
Wiltshire, http://opendatacommunities.org/id/unitary-authority/wiltshire,16/10/2019,5107387549,2744.64,AMS Care Wiltshire ,130764,SN4 ,Community Services,Placement Block Cont,Adult Care Nursing Placements- Block Contract,Third Party Payments,REVENUE
Wiltshire, http://opendatacommunities.org/id/unitary-authority/wiltshire,16/10/2019,5107387584,2744.64,AMS Care Wiltshire ,130764,SN4 ,Community Services,Placement Block Cont,Adult Care Nursing Placements- Block Contract,Third Party Payments,REVENUE
Wiltshire, http://opendatacommunities.org/id/unitary-authority/wiltshire,16/10/2019,5107387641,2744.64,AMS Care Wiltshire ,130764,SN4 ,Community Services,Placement Block Cont,Adult Care Nursing Placements- Block Contract,Third Party Payments,REVENUE
Wiltshire, http://opendatacommunities.org/id/unitary-authority/wiltshire,16/10/2019,5107387711,2744.64,AMS Care Wiltshire ,130764,SN4 ,Community Services,Placement Block Cont,Adult Care Nursing Placements- Block Contract,Third Party Payments,REVENUE
Wiltshire, http://opendatacommunities.org/id/unitary-authority/wiltshire,16/10/2019,5107388597,2744.64,AMS Care Wiltshire ,130764,SN4 ,Community Services,Placement Block Cont,Adult Care Nursing Placements- Block Contract,Third Party Payments,REVENUE
Wiltshire, http://opendatacommunities.org/id/unitary-authority/wiltshire,16/10/2019,5107388670,2744.64,AMS Care Wiltshire ,130764,SN4 ,Community Services,Placement Block Cont,Adult Care Nursing Placements- Block Contract,Third Party Payments,REVENUE
Wiltshire, http://opendatacommunities.org/id/unitary-authority/wiltshire,16/10/2019,5107388926,2525.28,AMS Care Wiltshire ,130764,SN4 ,Community Services,Placement Block Cont,Adult Care Nursing Placements- Block Contract,Third Party Payments,REVENUE
Wiltshire, http://opendatacommunities.org/id/unitary-authority/wiltshire,16/10/2019,5107389224,2525.28,AMS Care Wiltshire ,130764,SN4 ,Community Services,Placement Block Cont,Adult Care Nursing Placements- Block Contract,Third Party Payments,REVENUE
Wiltshire, http://opendatacommunities.org/id/unitary-authority/wiltshire,16/10/2019,5107389287,2744.64,AMS Care Wiltshire ,130764,SN4 ,Community Services,Placement Block Cont,Adult Care Nursing Placements- Block Contract,Third Party Payments,REVENUE
Wiltshire, http://opendatacommunities.org/id/unitary-authority/wiltshire,16/10/2019,5107389295,2744.64,AMS Care Wiltshire ,130764,SN4 ,Community Services,Placement Block Cont,Adult Care Nursing Placements- Block Contract,Third Party Payments,REVENUE
Wiltshire, http://opendatacommunities.org/id/unitary-authority/wiltshire,16/10/2019,5107389317,2744.64,AMS Care Wiltshire ,130764,SN4 ,Community Services,Placement Block Cont,Adult Care Nursing Placements- Block Contract,Third Party Payments,REVENUE
Wiltshire, http://opendatacommunities.org/id/unitary-authority/wiltshire,16/10/2019,5107389326,2744.64,AMS Care Wiltshire ,130764,SN4 ,Community Services,Placement Block Cont,Adult Care Nursing Placements- Block Contract,Third Party Payments,REVENUE
Wiltshire, http://opendatacommunities.org/id/unitary-authority/wiltshire,16/10/2019,5107389327,2744.64,AMS Care Wiltshire ,130764,SN4 ,Community Services,Placement Block Cont,Adult Care Nursing Placements- Block Contract,Third Party Payments,REVENUE
Wiltshire, http://opendatacommunities.org/id/unitary-authority/wiltshire,16/10/2019,5107389347,2744.64,AMS Care Wiltshire ,130764,SN4 ,Community Services,Placement Block Cont,Adult Care Nursing Placements- Block Contract,Third Party Payments,REVENUE
Wiltshire, http://opendatacommunities.org/id/unitary-authority/wiltshire,16/10/2019,5107389784,2525.28,AMS Care Wiltshire ,130764,SN4 ,Community Services,Placement Block Cont,Adult Care Nursing Placements- Block Contract,Third Party Payments,REVENUE
Wiltshire, http://opendatacommunities.org/id/unitary-authority/wiltshire,16/10/2019,5107389823,2744.64,AMS Care Wiltshire ,130764,SN4 ,Community Services,Placement Block Cont,Adult Care Nursing Placements- Block Contract,Third Party Payments,REVENUE
Wiltshire, http://opendatacommunities.org/id/unitary-authority/wiltshire,16/10/2019,5107389854,2525.28,AMS Care Wiltshire ,130764,SN4 ,Community Services,Placement Block Cont,Adult Care Nursing Placements- Block Contract,Third Party Payments,REVENUE
Wiltshire, http://opendatacommunities.org/id/unitary-authority/wiltshire,16/10/2019,5107389886,2744.64,AMS Care Wiltshire ,130764,SN4 ,Community Services,Placement Block Cont,Adult Care Nursing Placements- Block Contract,Third Party Payments,REVENUE
Wiltshire, http://opendatacommunities.org/id/unitary-authority/wiltshire,16/10/2019,5107390355,2603,AMS Care Wiltshire ,130764,SN4 ,Community Services,Adult Care Gross Loa,Adult Care Loans,Capital charges and Expenditure,REVENUE
Wiltshire, http://opendatacommunities.org/id/unitary-authority/wiltshire,16/10/2019,5107390472,2744.64,AMS Care Wiltshire ,130764,SN4 ,Community Services,Placement Block Cont,Adult Care Nursing Placements- Block Contract,Third Party Payments,REVENUE
Wiltshire, http://opendatacommunities.org/id/unitary-authority/wiltshire,16/10/2019,5107390490,2744.64,AMS Care Wiltshire ,130764,SN4 ,Community Services,Placement Block Cont,Adult Care Nursing Placements- Block Contract,Third Party Payments,REVENUE
Wiltshire, http://opendatacommunities.org/id/unitary-authority/wiltshire,16/10/2019,5107390508,2744.64,AMS Care Wiltshire ,130764,SN4 ,Community Services,Placement Block Cont,Adult Care Nursing Placements- Block Contract,Third Party Payments,REVENUE
Wiltshire, http://opendatacommunities.org/id/unitary-authority/wiltshire,16/10/2019,5107390546,2744.64,AMS Care Wiltshire ,130764,SN4 ,Community Services,Placement Block Cont,Adult Care Nursing Placements- Block Contract,Third Party Payments,REVENUE
Wiltshire, http://opendatacommunities.org/id/unitary-authority/wiltshire,16/10/2019,5107390592,2525.28,AMS Care Wiltshire ,130764,SN4 ,Community Services,Placement Block Cont,Adult Care Nursing Placements- Block Contract,Third Party Payments,REVENUE
Wiltshire, http://opendatacommunities.org/id/unitary-authority/wiltshire,16/10/2019,5107390612,2744.64,AMS Care Wiltshire ,130764,SN4 ,Community Services,Placement Block Cont,Adult Care Nursing Placements- Block Contract,Third Party Payments,REVENUE
Wiltshire, http://opendatacommunities.org/id/unitary-authority/wiltshire,16/10/2019,5107390700,2744.64,AMS Care Wiltshire ,130764,SN4 ,Community Services,Placement Block Cont,Adult Care Nursing Placements- Block Contract,Third Party Payments,REVENUE
Wiltshire, http://opendatacommunities.org/id/unitary-authority/wiltshire,16/10/2019,5107390703,2525.28,AMS Care Wiltshire ,130764,SN4 ,Community Services,Placement Block Cont,Adult Care Nursing Placements- Block Contract,Third Party Payments,REVENUE
Wiltshire, http://opendatacommunities.org/id/unitary-authority/wiltshire,16/10/2019,5107390741,2744.64,AMS Care Wiltshire ,130764,SN4 ,Community Services,Placement Block Cont,Adult Care Nursing Placements- Block Contract,Third Party Payments,REVENUE
Wiltshire, http://opendatacommunities.org/id/unitary-authority/wiltshire,16/10/2019,5107390779,3312.96,AMS Care Wiltshire ,130764,SN4 ,Community Services,North Care Packages,Adult Residential Placements - Spot Purchase,Third Party Payments,REVENUE
Wiltshire, http://opendatacommunities.org/id/unitary-authority/wiltshire,16/10/2019,5107390955,2744.64,AMS Care Wiltshire ,130764,SN4 ,Community Services,Adult Care Gross Loa,Adult Care Nursing Placements - Spot,Third Party Payments,REVENUE
Wiltshire, http://opendatacommunities.org/id/unitary-authority/wiltshire,16/10/2019,5107390956,2744.64,AMS Care Wiltshire ,130764,SN4 ,Community Services,Placement Block Cont,Adult Care Nursing Placements- Block Contract,Third Party Payments,REVENUE
Wiltshire, http://opendatacommunities.org/id/unitary-authority/wiltshire,16/10/2019,5107390991,2744.64,AMS Care Wiltshire ,130764,SN4 ,Community Services,North Care Packages,Adult Care Nursing Placements - Spot,Third Party Payments,REVENUE
Wiltshire, http://opendatacommunities.org/id/unitary-authority/wiltshire,16/10/2019,5107391004,2525.28,AMS Care Wiltshire ,130764,SN4 ,Community Services,North Care Packages,Adult Care Nursing Placements - Spot,Third Party Payments,REVENUE
Wiltshire, http://opendatacommunities.org/id/unitary-authority/wiltshire,16/10/2019,5107391005,2525.28,AMS Care Wiltshire ,130764,SN4 ,Community Services,North Care Packages,Adult Care Nursing Placements - Spot,Third Party Payments,REVENUE
Wiltshire, http://opendatacommunities.org/id/unitary-authority/wiltshire,16/10/2019,5107391011,2744.64,AMS Care Wiltshire ,130764,SN4 ,Community Services,Placement Block Cont,Adult Care Nursing Placements- Block Contract,Third Party Payments,REVENUE
Wiltshire, http://opendatacommunities.org/id/unitary-authority/wiltshire,16/10/2019,5107391276,18019.4,AMS Care Wiltshire ,130764,SN4 ,Community Services,BCF-Intermediate Cr,Adult Care Nursing Placements- Block Contract,Third Party Payments,REVENUE
Wiltshire, http://opendatacommunities.org/id/unitary-authority/wiltshire,16/10/2019,5107391959,1960.4,AMS Care Wiltshire ,130764,SN4 ,Community Services,North Care Packages,Adult Care Nursing Placements - Spot,Third Party Payments,REVENUE
Wiltshire, http://opendatacommunities.org/id/unitary-authority/wiltshire,16/10/2019,5107392041,1274.26,AMS Care Wiltshire ,130764,SN4 ,Community Services,Placement Block Cont,Adult Care Nursing Placements- Block Contract,Third Party Payments,REVENUE
Wiltshire, http://opendatacommunities.org/id/unitary-authority/wiltshire,16/10/2019,5107392100,1274.26,AMS Care Wiltshire ,130764,SN4 ,Community Services,Placement Block Cont,Adult Care Nursing Placements- Block Contract,Third Party Payments,REVENUE
Wiltshire, http://opendatacommunities.org/id/unitary-authority/wiltshire,02/10/2019,1902413893,542.88,Andover Fire and Security Ltd ,147308,SP10,Neighbourhood & Planning,Porton Science Park,Property Maintenance,Premises Related,REVENUE
Wiltshire, http://opendatacommunities.org/id/unitary-authority/wiltshire,16/10/2019,5107390625,6000,Andover Nursing Home ,110142,SP10,Community Services,MH AOWA South Locali,Adult Care Nursing Placements - Spot,Third Party Payments,REVENUE
Wiltshire, http://opendatacommunities.org/id/unitary-authority/wiltshire,10/10/2019,1902426576,592.48,Andy Taxis Limited ,100874,SP4 ,Neighbourhood & Planning,Mainstream Secondary,Transport Contracts,Third Party Payments,REVENUE
Wiltshire, http://opendatacommunities.org/id/unitary-authority/wiltshire,10/10/2019,1902426576,1017.52,Andy Taxis Limited ,100874,SP4 ,Neighbourhood & Planning,Mainstream 16+ Sec,Transport Contracts,Third Party Payments,REVENUE
Wiltshire, http://opendatacommunities.org/id/unitary-authority/wiltshire,04/10/2019,1902424518,1111.11,Andybus  and  Coach Ltd ,100132,SN16,Neighbourhood & Planning,Mainstream Primary,Transport Contracts,Third Party Payments,REVENUE
Wiltshire, http://opendatacommunities.org/id/unitary-authority/wiltshire,04/10/2019,1902424518,18171.56,Andybus  and  Coach Ltd ,100132,SN16,Neighbourhood & Planning,Mainstream Secondary,Transport Contracts,Third Party Payments,REVENUE
Wiltshire, http://opendatacommunities.org/id/unitary-authority/wiltshire,04/10/2019,1902424525,3083.34,Andybus  and  Coach Ltd ,100132,SN16,Neighbourhood & Planning,Mainstream Secondary,Transport Contracts,Third Party Payments,REVENUE
Wiltshire, http://opendatacommunities.org/id/unitary-authority/wiltshire,17/10/2019,5107392277,771.87,ANGEL HOTEL CHIPPENHAM ,110150,SN15,Neighbourhood & Planning,Swindon & Wilts LEP,Conference Fees,Supplies and Services,REVENUE
Wiltshire, http://opendatacommunities.org/id/unitary-authority/wiltshire,18/10/2019,1902426099,510,Any Body can Cook ,125066,BA12,Neighbourhood & Planning,Sports & Physical Ac,Other Sporting Activities,Supplies and Services,REVENUE
Wiltshire, http://opendatacommunities.org/id/unitary-authority/wiltshire,15/10/2019,5107390001,1170,APA Consultants Ltd ,113361,SN10,Neighbourhood & Planning,Dev Management,Consultants Fees,Supplies and Services,REVENUE
Wiltshire, http://opendatacommunities.org/id/unitary-authority/wiltshire,15/10/2019,5107390004,1560,APA Consultants Ltd ,113361,SN10,Neighbourhood & Planning,Dev Management,Consultants Fees,Supplies and Services,REVENUE
Wiltshire, http://opendatacommunities.org/id/unitary-authority/wiltshire,10/10/2019,1902426906,1465.52,Apex Prime Care Ltd ,148170,SO40,Community Services,West Care Packages,Adult Domiciliary Care Contribution,Income,REVENUE
Wiltshire, http://opendatacommunities.org/id/unitary-authority/wiltshire,10/10/2019,1902426907,2898.51,Apex Prime Care Ltd ,148170,SO40,Community Services,West Care Packages,Adult Domiciliary Care Contribution,Income,REVENUE
Wiltshire, http://opendatacommunities.org/id/unitary-authority/wiltshire,10/10/2019,1902426908,1541.38,Apex Prime Care Ltd ,148170,SO40,Community Services,West Care Packages,Adult Domiciliary Care Contribution,Income,REVENUE
Wiltshire, http://opendatacommunities.org/id/unitary-authority/wiltshire,10/10/2019,1902426910,352.8,Apex Prime Care Ltd ,148170,SO40,Community Services,West Care Packages,Adult Domiciliary Care,Third Party Payments,REVENUE
Wiltshire, http://opendatacommunities.org/id/unitary-authority/wiltshire,10/10/2019,1902426911,309.75,Apex Prime Care Ltd ,148170,SO40,Community Services,West Care Packages,Adult Domiciliary Care,Third Party Payments,REVENUE
Wiltshire, http://opendatacommunities.org/id/unitary-authority/wiltshire,10/10/2019,1902426912,514.5,Apex Prime Care Ltd ,148170,SO40,Community Services,South Care Packages,Adult Domiciliary Care,Third Party Payments,REVENUE
Wiltshire, http://opendatacommunities.org/id/unitary-authority/wiltshire,10/10/2019,1902426913,1455.3,Apex Prime Care Ltd ,148170,SO40,Community Services,West Care Packages,Adult Domiciliary Care,Third Party Payments,REVENUE
Wiltshire, http://opendatacommunities.org/id/unitary-authority/wiltshire,22/10/2019,1902431595,358.52,Apex Prime Care Ltd ,148170,SO40,Community Services,West Care Packages,Adult Domiciliary Care Contribution,Income,REVENUE
Wiltshire, http://opendatacommunities.org/id/unitary-authority/wiltshire,22/10/2019,1902431596,369.76,Apex Prime Care Ltd ,148170,SO40,Community Services,West Care Packages,Adult Domiciliary Care Contribution,Income,REVENUE
Wiltshire, http://opendatacommunities.org/id/unitary-authority/wiltshire,15/10/2019,1902429121,11418,Appletree Nursery 1026 ,110163,SN11,Children & Education,Free Enttlmnt 3 & 4y,Childcare Free Entitlement Early Years,Supplies and Services,REVENUE
Wiltshire, http://opendatacommunities.org/id/unitary-authority/wiltshire,15/10/2019,1902429122,4189.5,Appletree Nursery 1026 ,110163,SN11,Children & Education,Free Entitlement 2 Y,Childcare Free Entitlement Early Years,Supplies and Services,REVENUE
Wiltshire, http://opendatacommunities.org/id/unitary-authority/wiltshire,28/10/2019,5107390057,1840.33,APS Group ,148025,SK3 ,Resources,Customer Services,Printing,Supplies and Services,REVENUE
Wiltshire, http://opendatacommunities.org/id/unitary-authority/wiltshire,28/10/2019,5107394089,1940,Aquatech Drainage Mr Chris Uden,135011,DT1 ,Wiltshire Council,Wiltshire Council,Property Maintenance,Premises Related,CAPITAL
Wiltshire, http://opendatacommunities.org/id/unitary-authority/wiltshire,16/10/2019,5107389098,1900,Arch Care Services Ltd ,110169,BS21,Community Services,MH AOWA West Localit,Supported Living,Third Party Payments,REVENUE
Wiltshire, http://opendatacommunities.org/id/unitary-authority/wiltshire,23/10/2019,5107392764,253.28,Argos Business Solutions ,113600,MK9 ,Community Services,Chippenham,Equipment Purchase,Supplies and Services,REVENUE
Wiltshire, http://opendatacommunities.org/id/unitary-authority/wiltshire,16/10/2019,5107386971,2859.36,Arliemoor Care Homes ,110174,EX22,Community Services,MH AOWA South Locali,Adult Residential Placements - Spot Purchase,Third Party Payments,REVENUE
Wiltshire, http://opendatacommunities.org/id/unitary-authority/wiltshire,16/10/2019,5107387084,2272,Arliemoor Care Homes ,110174,EX22,Community Services,MH AOWA West Localit,Adult Residential Placements - Spot Purchase,Third Party Payments,REVENUE
Wiltshire, http://opendatacommunities.org/id/unitary-authority/wiltshire,16/10/2019,5107387088,2175,Arliemoor Care Homes ,110174,EX22,Community Services,MH AOWA West Localit,Adult Domiciliary Care,Third Party Payments,REVENUE
Wiltshire, http://opendatacommunities.org/id/unitary-authority/wiltshire,10/10/2019,1902426245,345.73,Arrow Care Services Ltd ,146643,SN12,Community Services,West Care Packages,Adult Domiciliary Care,Third Party Payments,REVENUE
Wiltshire, http://opendatacommunities.org/id/unitary-authority/wiltshire,10/10/2019,1902426246,261.84,Arrow Care Services Ltd ,146643,SN12,Community Services,MH AOWA West Localit,Adult Domiciliary Care,Third Party Payments,REVENUE
Wiltshire, http://opendatacommunities.org/id/unitary-authority/wiltshire,10/10/2019,1902426247,327.3,Arrow Care Services Ltd ,146643,SN12,Community Services,MH AOWA West Localit,Adult Domiciliary Care,Third Party Payments,REVENUE
Wiltshire, http://opendatacommunities.org/id/unitary-authority/wiltshire,10/10/2019,1902426251,255.78,Arrow Care Services Ltd ,146643,SN12,Community Services,West Care Packages,Adult Domiciliary Care,Third Party Payments,REVENUE
Wiltshire, http://opendatacommunities.org/id/unitary-authority/wiltshire,10/10/2019,1902426252,263.4,Arrow Care Services Ltd ,146643,SN12,Community Services,West Care Packages,Adult Domiciliary Care,Third Party Payments,REVENUE
Wiltshire, http://opendatacommunities.org/id/unitary-authority/wiltshire,10/10/2019,1902426255,345.73,Arrow Care Services Ltd ,146643,SN12,Community Services,West Care Packages,Adult Domiciliary Care,Third Party Payments,REVENUE
Wiltshire, http://opendatacommunities.org/id/unitary-authority/wiltshire,10/10/2019,1902426256,261.64,Arrow Care Services Ltd ,146643,SN12,Community Services,MH AOWA West Localit,Adult Domiciliary Care,Third Party Payments,REVENUE
Wiltshire, http://opendatacommunities.org/id/unitary-authority/wiltshire,10/10/2019,1902426257,327.3,Arrow Care Services Ltd ,146643,SN12,Community Services,MH AOWA West Localit,Adult Domiciliary Care,Third Party Payments,REVENUE
Wiltshire, http://opendatacommunities.org/id/unitary-authority/wiltshire,10/10/2019,1902426259,309.12,Arrow Care Services Ltd ,146643,SN12,Community Services,West Care Packages,Adult Domiciliary Care,Third Party Payments,REVENUE
Wiltshire, http://opendatacommunities.org/id/unitary-authority/wiltshire,10/10/2019,1902426260,255.78,Arrow Care Services Ltd ,146643,SN12,Community Services,West Care Packages,Adult Domiciliary Care,Third Party Payments,REVENUE
Wiltshire, http://opendatacommunities.org/id/unitary-authority/wiltshire,10/10/2019,1902426261,263.4,Arrow Care Services Ltd ,146643,SN12,Community Services,West Care Packages,Adult Domiciliary Care,Third Party Payments,REVENUE
Wiltshire, http://opendatacommunities.org/id/unitary-authority/wiltshire,10/10/2019,1902426264,345.73,Arrow Care Services Ltd ,146643,SN12,Community Services,West Care Packages,Adult Domiciliary Care,Third Party Payments,REVENUE
Wiltshire, http://opendatacommunities.org/id/unitary-authority/wiltshire,10/10/2019,1902426266,261.84,Arrow Care Services Ltd ,146643,SN12,Community Services,MH AOWA West Localit,Adult Domiciliary Care,Third Party Payments,REVENUE
Wiltshire, http://opendatacommunities.org/id/unitary-authority/wiltshire,10/10/2019,1902426267,327.3,Arrow Care Services Ltd ,146643,SN12,Community Services,MH AOWA West Localit,Adult Domiciliary Care,Third Party Payments,REVENUE
Wiltshire, http://opendatacommunities.org/id/unitary-authority/wiltshire,10/10/2019,1902426269,309.12,Arrow Care Services Ltd ,146643,SN12,Community Services,West Care Packages,Adult Domiciliary Care,Third Party Payments,REVENUE
Wiltshire, http://opendatacommunities.org/id/unitary-authority/wiltshire,10/10/2019,1902426270,255.78,Arrow Care Services Ltd ,146643,SN12,Community Services,West Care Packages,Adult Domiciliary Care,Third Party Payments,REVENUE
Wiltshire, http://opendatacommunities.org/id/unitary-authority/wiltshire,10/10/2019,1902426276,345.73,Arrow Care Services Ltd ,146643,SN12,Community Services,West Care Packages,Adult Domiciliary Care,Third Party Payments,REVENUE
Wiltshire, http://opendatacommunities.org/id/unitary-authority/wiltshire,10/10/2019,1902426278,261.84,Arrow Care Services Ltd ,146643,SN12,Community Services,MH AOWA West Localit,Adult Domiciliary Care,Third Party Payments,REVENUE
Wiltshire, http://opendatacommunities.org/id/unitary-authority/wiltshire,10/10/2019,1902426279,305.48,Arrow Care Services Ltd ,146643,SN12,Community Services,MH AOWA West Localit,Adult Domiciliary Care,Third Party Payments,REVENUE
Wiltshire, http://opendatacommunities.org/id/unitary-authority/wiltshire,10/10/2019,1902426281,309.12,Arrow Care Services Ltd ,146643,SN12,Community Services,West Care Packages,Adult Domiciliary Care,Third Party Payments,REVENUE
Wiltshire, http://opendatacommunities.org/id/unitary-authority/wiltshire,10/10/2019,1902426282,255.78,Arrow Care Services Ltd ,146643,SN12,Community Services,West Care Packages,Adult Domiciliary Care,Third Party Payments,REVENUE
Wiltshire, http://opendatacommunities.org/id/unitary-authority/wiltshire,10/10/2019,1902426284,263.4,Arrow Care Services Ltd ,146643,SN12,Community Services,West Care Packages,Adult Domiciliary Care,Third Party Payments,REVENUE
Wiltshire, http://opendatacommunities.org/id/unitary-authority/wiltshire,17/10/2019,1902430732,1500,Arrow Private Hire ,100574,SN8 ,Neighbourhood & Planning,SEN Primary Transprt,Transport Contracts,Third Party Payments,REVENUE
Wiltshire, http://opendatacommunities.org/id/unitary-authority/wiltshire,10/10/2019,1902426830,378.8,Ash Care Services ,140706,SP2 ,Community Services,South Care Packages,Adult Domiciliary Care Contribution,Income,REVENUE
Wiltshire, http://opendatacommunities.org/id/unitary-authority/wiltshire,14/10/2019,1902427526,605.92,Ash Care Services ,140706,SP2 ,Community Services,South Care Packages,Adult Domiciliary Care Contribution,Income,REVENUE
Wiltshire, http://opendatacommunities.org/id/unitary-authority/wiltshire,14/10/2019,1902427527,423.2,Ash Care Services ,140706,SP2 ,Community Services,South Care Packages,Adult Domiciliary Care,Third Party Payments,REVENUE
Wiltshire, http://opendatacommunities.org/id/unitary-authority/wiltshire,14/10/2019,1902427529,476,Ash Care Services ,140706,SP2 ,Community Services,MH OP N&E Locality,Adult Domiciliary Care,Third Party Payments,REVENUE
Wiltshire, http://opendatacommunities.org/id/unitary-authority/wiltshire,14/10/2019,1902427531,460.36,Ash Care Services ,140706,SP2 ,Community Services,South Care Packages,Adult Domiciliary Care Contribution,Income,REVENUE
Wiltshire, http://opendatacommunities.org/id/unitary-authority/wiltshire,17/10/2019,1902430144,403.92,Ash Care Services ,140706,SP2 ,Community Services,South Care Packages,Adult Domiciliary Care Contribution,Income,REVENUE
Wiltshire, http://opendatacommunities.org/id/unitary-authority/wiltshire,16/10/2019,5107386955,3896.88,Ashness Care ,143773,N15 ,Community Services,MH AOWA N&E Locality,Adult Residential Placements - Spot Purchase,Third Party Payments,REVENUE
Wiltshire, http://opendatacommunities.org/id/unitary-authority/wiltshire,15/10/2019,1902429030,2822.4,Ashton Keynes Playgroup 249 ,110188,SN6 ,Children & Education,Free Enttlmnt 3 & 4y,Childcare Free Entitlement Early Years,Supplies and Services,REVENUE
Wiltshire, http://opendatacommunities.org/id/unitary-authority/wiltshire,16/10/2019,5107388922,1841.76,Ashton Manor Nursing Home ,139060,GU10,Community Services,South Care Packages,Adult Care Nursing Placements - Spot,Third Party Payments,REVENUE
Wiltshire, http://opendatacommunities.org/id/unitary-authority/wiltshire,07/10/2019,1902415060,6230.1,Askews & Holts Library Services Ltd ,101034,PR1 ,Community Services,Libraries,Books & Publications,Supplies and Services,REVENUE
Wiltshire, http://opendatacommunities.org/id/unitary-authority/wiltshire,09/10/2019,1902426018,560,Aspire Taxis ,101274,SP2 ,Neighbourhood & Planning,SEN 16+ Transport,Transport Contracts,Third Party Payments,REVENUE
Wiltshire, http://opendatacommunities.org/id/unitary-authority/wiltshire,09/10/2019,1902426023,2200,Aspire Taxis ,101274,SP2 ,Neighbourhood & Planning,Mainstream Primary,Transport Contracts,Third Party Payments,REVENUE
Wiltshire, http://opendatacommunities.org/id/unitary-authority/wiltshire,09/10/2019,1902426024,840,Aspire Taxis ,101274,SP2 ,Community Services,CTPLD Placements,Transport Contracts,Third Party Payments,REVENUE
Wiltshire, http://opendatacommunities.org/id/unitary-authority/wiltshire,09/10/2019,1902426025,1680,Aspire Taxis ,101274,SP2 ,Community Services,CTPLD Placements,Transport Contracts,Third Party Payments,REVENUE
Wiltshire, http://opendatacommunities.org/id/unitary-authority/wiltshire,09/10/2019,1902426026,289.26,Aspire Taxis ,101274,SP2 ,Neighbourhood & Planning,Mainstream Secondary,Transport Contracts,Third Party Payments,REVENUE
Wiltshire, http://opendatacommunities.org/id/unitary-authority/wiltshire,09/10/2019,1902426026,3210.74,Aspire Taxis ,101274,SP2 ,Neighbourhood & Planning,Mainstream Primary,Transport Contracts,Third Party Payments,REVENUE
Wiltshire, http://opendatacommunities.org/id/unitary-authority/wiltshire,09/10/2019,1902426027,1700,Aspire Taxis ,101274,SP2 ,Neighbourhood & Planning,Mainstream Primary,Transport Contracts,Third Party Payments,REVENUE
Wiltshire, http://opendatacommunities.org/id/unitary-authority/wiltshire,09/10/2019,1902426028,630,Aspire Taxis ,101274,SP2 ,Neighbourhood & Planning,Mainstream Primary,Transport Contracts,Third Party Payments,REVENUE
Wiltshire, http://opendatacommunities.org/id/unitary-authority/wiltshire,09/10/2019,1902426031,1290,Aspire Taxis ,101274,SP2 ,Neighbourhood & Planning,Mainstream Primary,Transport Contracts,Third Party Payments,REVENUE
Wiltshire, http://opendatacommunities.org/id/unitary-authority/wiltshire,09/10/2019,1902426032,390,Aspire Taxis ,101274,SP2 ,Community Services,CTPLD Placements,Transport Contracts,Third Party Payments,REVENUE
Wiltshire, http://opendatacommunities.org/id/unitary-authority/wiltshire,15/10/2019,1902428802,1140,Aspire Taxis ,101274,SP2 ,Neighbourhood & Planning,SEN Primary Transprt,Transport Contracts,Third Party Payments,REVENUE
Wiltshire, http://opendatacommunities.org/id/unitary-authority/wiltshire,15/10/2019,1902428803,855,Aspire Taxis ,101274,SP2 ,Neighbourhood & Planning,Mainstream Primary,Transport Contracts,Third Party Payments,REVENUE
Wiltshire, http://opendatacommunities.org/id/unitary-authority/wiltshire,15/10/2019,1902428806,878.4,Aspire Taxis ,101274,SP2 ,Neighbourhood & Planning,SEN Secondary Tspt,Transport Contracts,Third Party Payments,REVENUE
Wiltshire, http://opendatacommunities.org/id/unitary-authority/wiltshire,15/10/2019,1902428807,800,Aspire Taxis ,101274,SP2 ,Neighbourhood & Planning,Mainstream Secondary,Transport Contracts,Third Party Payments,REVENUE
Wiltshire, http://opendatacommunities.org/id/unitary-authority/wiltshire,15/10/2019,1902428808,472.5,Aspire Taxis ,101274,SP2 ,Community Services,CTPLD Placements,Transport Contracts,Third Party Payments,REVENUE
Wiltshire, http://opendatacommunities.org/id/unitary-authority/wiltshire,15/10/2019,1902428809,386.67,Aspire Taxis ,101274,SP2 ,Neighbourhood & Planning,Mainstream Secondary,Transport Contracts,Third Party Payments,REVENUE
Wiltshire, http://opendatacommunities.org/id/unitary-authority/wiltshire,15/10/2019,1902428809,773.33,Aspire Taxis ,101274,SP2 ,Neighbourhood & Planning,SEN Secondary Tspt,Transport Contracts,Third Party Payments,REVENUE
Wiltshire, http://opendatacommunities.org/id/unitary-authority/wiltshire,15/10/2019,1902428810,900,Aspire Taxis ,101274,SP2 ,Neighbourhood & Planning,SEN Primary Transprt,Transport Contracts,Third Party Payments,REVENUE
Wiltshire, http://opendatacommunities.org/id/unitary-authority/wiltshire,15/10/2019,1902428811,2027,Aspire Taxis ,101274,SP2 ,Neighbourhood & Planning,SEN Primary Transprt,Transport Contracts,Third Party Payments,REVENUE
Wiltshire, http://opendatacommunities.org/id/unitary-authority/wiltshire,15/10/2019,1902428812,845.5,Aspire Taxis ,101274,SP2 ,Neighbourhood & Planning,SEN Primary Transprt,Transport Contracts,Third Party Payments,REVENUE
Wiltshire, http://opendatacommunities.org/id/unitary-authority/wiltshire,15/10/2019,1902428812,845.5,Aspire Taxis ,101274,SP2 ,Neighbourhood & Planning,SEN Secondary Tspt,Transport Contracts,Third Party Payments,REVENUE
Wiltshire, http://opendatacommunities.org/id/unitary-authority/wiltshire,15/10/2019,1902428813,1311,Aspire Taxis ,101274,SP2 ,Neighbourhood & Planning,SEN Primary Transprt,Transport Contracts,Third Party Payments,REVENUE
Wiltshire, http://opendatacommunities.org/id/unitary-authority/wiltshire,24/10/2019,1902436867,853.1,Aspire Taxis ,101274,SP2 ,Neighbourhood & Planning,Mainstream Primary,Transport Contracts,Third Party Payments,REVENUE
Wiltshire, http://opendatacommunities.org/id/unitary-authority/wiltshire,24/10/2019,1902436868,430.67,Aspire Taxis ,101274,SP2 ,Neighbourhood & Planning,SEN Primary Transprt,Transport Contracts,Third Party Payments,REVENUE
Wiltshire, http://opendatacommunities.org/id/unitary-authority/wiltshire,24/10/2019,1902436868,861.33,Aspire Taxis ,101274,SP2 ,Neighbourhood & Planning,SEN Secondary Tspt,Transport Contracts,Third Party Payments,REVENUE
Wiltshire, http://opendatacommunities.org/id/unitary-authority/wiltshire,24/10/2019,1902436869,1443.24,Aspire Taxis ,101274,SP2 ,Neighbourhood & Planning,SEN Secondary Tspt,Transport Contracts,Third Party Payments,REVENUE
Wiltshire, http://opendatacommunities.org/id/unitary-authority/wiltshire,24/10/2019,1902436869,2164.86,Aspire Taxis ,101274,SP2 ,Neighbourhood & Planning,SEN Primary Transprt,Transport Contracts,Third Party Payments,REVENUE
Wiltshire, http://opendatacommunities.org/id/unitary-authority/wiltshire,24/10/2019,1902436870,779,Aspire Taxis ,101274,SP2 ,Neighbourhood & Planning,SEN Secondary Tspt,Transport Contracts,Third Party Payments,REVENUE
Wiltshire, http://opendatacommunities.org/id/unitary-authority/wiltshire,24/10/2019,1902436870,3116,Aspire Taxis ,101274,SP2 ,Neighbourhood & Planning,SEN Primary Transprt,Transport Contracts,Third Party Payments,REVENUE
Wiltshire, http://opendatacommunities.org/id/unitary-authority/wiltshire,24/10/2019,1902436871,1443.3,Aspire Taxis ,101274,SP2 ,Neighbourhood & Planning,SEN Secondary Tspt,Transport Contracts,Third Party Payments,REVENUE
Wiltshire, http://opendatacommunities.org/id/unitary-authority/wiltshire,24/10/2019,1902436872,1343,Aspire Taxis ,101274,SP2 ,Neighbourhood & Planning,SEN 16+ Transport,Transport Contracts,Third Party Payments,REVENUE
Wiltshire, http://opendatacommunities.org/id/unitary-authority/wiltshire,24/10/2019,1902436873,464,Aspire Taxis ,101274,SP2 ,Neighbourhood & Planning,SEN Primary Transprt,Transport Contracts,Third Party Payments,REVENUE
Wiltshire, http://opendatacommunities.org/id/unitary-authority/wiltshire,15/10/2019,5107389933,1855,Assessment Services Ltd ,144973,NG31,Children & Education,Adult Comm Learning,Consultants Fees,Supplies and Services,REVENUE
Wiltshire, http://opendatacommunities.org/id/unitary-authority/wiltshire,15/10/2019,5107389935,2226,Assessment Services Ltd ,144973,NG31,Children & Education,Adult Comm Learning,Consultants Fees,Supplies and Services,REVENUE
Wiltshire, http://opendatacommunities.org/id/unitary-authority/wiltshire,08/10/2019,5107386380,17140.59,Assoc Of Electoral Administrators ,113675,SR2 ,Resources,Parliamentary Electi,Consultants Fees,Supplies and Services,REVENUE
Wiltshire, http://opendatacommunities.org/id/unitary-authority/wiltshire,31/10/2019,5107386714,10588.89,Assoc Of Electoral Administrators ,113675,SR2 ,Resources,Parliamentary Electi,Consultants Fees,Supplies and Services,REVENUE
Wiltshire, http://opendatacommunities.org/id/unitary-authority/wiltshire,15/10/2019,1902429484,7121.45,Atelier Nursery Ltd ,145940,SN15,Children & Education,Free Enttlmnt 3 & 4y,Childcare Free Entitlement Early Years,Supplies and Services,REVENUE
Wiltshire, http://opendatacommunities.org/id/unitary-authority/wiltshire,15/10/2019,1902429485,828.59,Atelier Nursery Ltd ,145940,SN15,Children & Education,Free Entitlement 2 Y,Childcare Free Entitlement Early Years,Supplies and Services,REVENUE
Wiltshire, http://opendatacommunities.org/id/unitary-authority/wiltshire,16/10/2019,5107389164,5440,Atfield House Care Home ,148400,TW7 ,Community Services,South Care Packages,Adult Residential Placements - Spot Purchase,Third Party Payments,REVENUE
Wiltshire, http://opendatacommunities.org/id/unitary-authority/wiltshire,17/10/2019,1902430780,250,Atkins Ltd ,110197,KT18,Wiltshire Council,Wiltshire Council,Highways Contracts,Third Party Payments,CAPITAL
Wiltshire, http://opendatacommunities.org/id/unitary-authority/wiltshire,17/10/2019,1902430780,517.52,Atkins Ltd ,110197,KT18,Wiltshire Council,Wiltshire Council,Highways Contracts,Third Party Payments,CAPITAL
Wiltshire, http://opendatacommunities.org/id/unitary-authority/wiltshire,17/10/2019,1902430780,1003.94,Atkins Ltd ,110197,KT18,Wiltshire Council,Wiltshire Council,Highways Contracts,Third Party Payments,CAPITAL
Wiltshire, http://opendatacommunities.org/id/unitary-authority/wiltshire,17/10/2019,1902430780,1371.56,Atkins Ltd ,110197,KT18,Wiltshire Council,Wiltshire Council,Highways Contracts,Third Party Payments,CAPITAL
Wiltshire, http://opendatacommunities.org/id/unitary-authority/wiltshire,17/10/2019,1902430780,1465.43,Atkins Ltd ,110197,KT18,Wiltshire Council,Wiltshire Council,Highways Contracts,Third Party Payments,CAPITAL
Wiltshire, http://opendatacommunities.org/id/unitary-authority/wiltshire,17/10/2019,1902430780,1499.31,Atkins Ltd ,110197,KT18,Wiltshire Council,Wiltshire Council,Highways Contracts,Third Party Payments,CAPITAL
Wiltshire, http://opendatacommunities.org/id/unitary-authority/wiltshire,17/10/2019,1902430780,1629.13,Atkins Ltd ,110197,KT18,Wiltshire Council,Wiltshire Council,Highways Contracts,Third Party Payments,CAPITAL
Wiltshire, http://opendatacommunities.org/id/unitary-authority/wiltshire,17/10/2019,1902430780,1861.49,Atkins Ltd ,110197,KT18,Neighbourhood & Planning,Bridge Routine Mtc,Highways Contracts,Third Party Payments,REVENUE
Wiltshire, http://opendatacommunities.org/id/unitary-authority/wiltshire,17/10/2019,1902430780,1991.41,Atkins Ltd ,110197,KT18,Wiltshire Council,Wiltshire Council,Highways Contracts,Third Party Payments,CAPITAL
Wiltshire, http://opendatacommunities.org/id/unitary-authority/wiltshire,17/10/2019,1902430780,1992,Atkins Ltd ,110197,KT18,Neighbourhood & Planning,Wiltshire Local Plan,Highways Contracts,Third Party Payments,REVENUE
Wiltshire, http://opendatacommunities.org/id/unitary-authority/wiltshire,17/10/2019,1902430780,2979.36,Atkins Ltd ,110197,KT18,Wiltshire Council,Wiltshire Council,Highways Contracts,Third Party Payments,CAPITAL
Wiltshire, http://opendatacommunities.org/id/unitary-authority/wiltshire,17/10/2019,1902430780,3019.44,Atkins Ltd ,110197,KT18,Wiltshire Council,Wiltshire Council,Highways Contracts,Third Party Payments,CAPITAL
Wiltshire, http://opendatacommunities.org/id/unitary-authority/wiltshire,17/10/2019,1902430780,3247.86,Atkins Ltd ,110197,KT18,Wiltshire Council,Wiltshire Council,Highways Contracts,Third Party Payments,CAPITAL
Wiltshire, http://opendatacommunities.org/id/unitary-authority/wiltshire,17/10/2019,1902430780,4500,Atkins Ltd ,110197,KT18,Wiltshire Council,Wiltshire Council,Highways Contracts,Third Party Payments,CAPITAL
Wiltshire, http://opendatacommunities.org/id/unitary-authority/wiltshire,17/10/2019,1902430780,4552.57,Atkins Ltd ,110197,KT18,Wiltshire Council,Wiltshire Council,Highways Contracts,Third Party Payments,CAPITAL
Wiltshire, http://opendatacommunities.org/id/unitary-authority/wiltshire,17/10/2019,1902430780,5054.15,Atkins Ltd ,110197,KT18,Wiltshire Council,Wiltshire Council,Highways Contracts,Third Party Payments,CAPITAL
Wiltshire, http://opendatacommunities.org/id/unitary-authority/wiltshire,17/10/2019,1902430780,5091.38,Atkins Ltd ,110197,KT18,Wiltshire Council,Wiltshire Council,Highways Contracts,Third Party Payments,CAPITAL
Wiltshire, http://opendatacommunities.org/id/unitary-authority/wiltshire,17/10/2019,1902430780,5500,Atkins Ltd ,110197,KT18,Neighbourhood & Planning,Highways Asset Mgt,Highways Contracts,Third Party Payments,REVENUE
Wiltshire, http://opendatacommunities.org/id/unitary-authority/wiltshire,17/10/2019,1902430780,7745.4,Atkins Ltd ,110197,KT18,Neighbourhood & Planning,Highw Hedges & Trees,Highways Contracts,Third Party Payments,REVENUE
Wiltshire, http://opendatacommunities.org/id/unitary-authority/wiltshire,17/10/2019,1902430780,8767.87,Atkins Ltd ,110197,KT18,Wiltshire Council,Wiltshire Council,Highways Contracts,Third Party Payments,CAPITAL
Wiltshire, http://opendatacommunities.org/id/unitary-authority/wiltshire,17/10/2019,1902430780,10049.14,Atkins Ltd ,110197,KT18,Neighbourhood & Planning,Traffic Signal Mtc,Highways Contracts,Third Party Payments,REVENUE
Wiltshire, http://opendatacommunities.org/id/unitary-authority/wiltshire,17/10/2019,1902430780,13513,Atkins Ltd ,110197,KT18,Neighbourhood & Planning,Winter Maintenance,Highways Contracts,Third Party Payments,REVENUE
Wiltshire, http://opendatacommunities.org/id/unitary-authority/wiltshire,17/10/2019,1902430780,14591.72,Atkins Ltd ,110197,KT18,Wiltshire Council,Wiltshire Council,Highways Contracts,Third Party Payments,CAPITAL
Wiltshire, http://opendatacommunities.org/id/unitary-authority/wiltshire,17/10/2019,1902430780,15060.49,Atkins Ltd ,110197,KT18,Wiltshire Council,Wiltshire Council,Highways Contracts,Third Party Payments,CAPITAL
Wiltshire, http://opendatacommunities.org/id/unitary-authority/wiltshire,17/10/2019,1902430780,17304.6,Atkins Ltd ,110197,KT18,Neighbourhood & Planning,Transport Plan & DC,Highways Contracts,Third Party Payments,REVENUE
Wiltshire, http://opendatacommunities.org/id/unitary-authority/wiltshire,17/10/2019,1902430780,20409.62,Atkins Ltd ,110197,KT18,Neighbourhood & Planning,Street Lighting,Highways Contracts,Third Party Payments,REVENUE
Wiltshire, http://opendatacommunities.org/id/unitary-authority/wiltshire,17/10/2019,1902430780,21826.84,Atkins Ltd ,110197,KT18,Wiltshire Council,Wiltshire Council,Highways Contracts,Third Party Payments,CAPITAL
Wiltshire, http://opendatacommunities.org/id/unitary-authority/wiltshire,17/10/2019,1902430780,26149.26,Atkins Ltd ,110197,KT18,Wiltshire Council,Wiltshire Council,Highways Contracts,Third Party Payments,CAPITAL
Wiltshire, http://opendatacommunities.org/id/unitary-authority/wiltshire,17/10/2019,1902430780,28851.01,Atkins Ltd ,110197,KT18,Wiltshire Council,Wiltshire Council,Highways Contracts,Third Party Payments,CAPITAL
Wiltshire, http://opendatacommunities.org/id/unitary-authority/wiltshire,17/10/2019,1902430780,43827.93,Atkins Ltd ,110197,KT18,Wiltshire Council,Wiltshire Council,Highways Contracts,Third Party Payments,CAPITAL
Wiltshire, http://opendatacommunities.org/id/unitary-authority/wiltshire,17/10/2019,1902430780,65886.89,Atkins Ltd ,110197,KT18,Wiltshire Council,Wiltshire Council,Highways Contracts,Third Party Payments,CAPITAL
Wiltshire, http://opendatacommunities.org/id/unitary-authority/wiltshire,17/10/2019,1902430780,156689.35,Atkins Ltd ,110197,KT18,Wiltshire Council,Wiltshire Council,Highways Contracts,Third Party Payments,CAPITAL
Wiltshire, http://opendatacommunities.org/id/unitary-authority/wiltshire,10/10/2019,5107386721,552.9,Atkinson Lewis ,143942,SA5 ,Children & Education,HQ Social Care,Witness / Jurors' / Justice's Expenses,Supplies and Services,REVENUE
Wiltshire, http://opendatacommunities.org/id/unitary-authority/wiltshire,08/10/2019,1902425060,3514.05,Ats Euromaster Ltd ,113709,B6 5,Neighbourhood & Planning,Fleet,Vehicle Tyres,Transport Related,REVENUE
Wiltshire, http://opendatacommunities.org/id/unitary-authority/wiltshire,02/10/2019,5107385760,1300,Attenti Ltd ,149055,EC2M,Children & Education,Perf & Info Service,Consultants Fees,Supplies and Services,REVENUE
Wiltshire, http://opendatacommunities.org/id/unitary-authority/wiltshire,21/10/2019,1902431308,1069.25,Audley Care White Horse ,121958,SN8 ,Community Services,North Care Packages,Adult Domiciliary Care,Third Party Payments,REVENUE
Wiltshire, http://opendatacommunities.org/id/unitary-authority/wiltshire,21/10/2019,1902431309,1008.72,Audley Care White Horse ,121958,SN8 ,Community Services,West Care Packages,Adult Domiciliary Care,Third Party Payments,REVENUE
Wiltshire, http://opendatacommunities.org/id/unitary-authority/wiltshire,21/10/2019,1902431310,492,Audley Care White Horse ,121958,SN8 ,Community Services,West Care Packages,Adult Domiciliary Care,Third Party Payments,REVENUE
Wiltshire, http://opendatacommunities.org/id/unitary-authority/wiltshire,21/10/2019,1902431311,468.93,Audley Care White Horse ,121958,SN8 ,Community Services,North Care Packages,Adult Domiciliary Care,Third Party Payments,REVENUE
Wiltshire, http://opendatacommunities.org/id/unitary-authority/wiltshire,21/10/2019,1902431312,1040.16,Audley Care White Horse ,121958,SN8 ,Community Services,North Care Packages,Adult Domiciliary Care,Third Party Payments,REVENUE
Wiltshire, http://opendatacommunities.org/id/unitary-authority/wiltshire,21/10/2019,1902431313,1065.75,Audley Care White Horse ,121958,SN8 ,Community Services,North Care Packages,Adult Domiciliary Care,Third Party Payments,REVENUE
Wiltshire, http://opendatacommunities.org/id/unitary-authority/wiltshire,21/10/2019,1902431314,1309.35,Audley Care White Horse ,121958,SN8 ,Community Services,North Care Packages,Adult Domiciliary Care,Third Party Payments,REVENUE
Wiltshire, http://opendatacommunities.org/id/unitary-authority/wiltshire,21/10/2019,1902431315,1564.47,Audley Care White Horse ,121958,SN8 ,Community Services,South Care Packages,Adult Domiciliary Care,Third Party Payments,REVENUE
Wiltshire, http://opendatacommunities.org/id/unitary-authority/wiltshire,21/10/2019,1902431316,2063.95,Audley Care White Horse ,121958,SN8 ,Community Services,North Care Packages,Adult Domiciliary Care,Third Party Payments,REVENUE
Wiltshire, http://opendatacommunities.org/id/unitary-authority/wiltshire,21/10/2019,1902431317,1568.13,Audley Care White Horse ,121958,SN8 ,Community Services,North Care Packages,Adult Domiciliary Care,Third Party Payments,REVENUE
Wiltshire, http://opendatacommunities.org/id/unitary-authority/wiltshire,21/10/2019,1902431319,571.9,Audley Care White Horse ,121958,SN8 ,Community Services,West Care Packages,Adult Domiciliary Care,Third Party Payments,REVENUE
Wiltshire, http://opendatacommunities.org/id/unitary-authority/wiltshire,21/10/2019,1902431320,1492.05,Audley Care White Horse ,121958,SN8 ,Community Services,West Care Packages,Adult Domiciliary Care,Third Party Payments,REVENUE
Wiltshire, http://opendatacommunities.org/id/unitary-authority/wiltshire,21/10/2019,1902431322,353.82,Audley Care White Horse ,121958,SN8 ,Community Services,North Care Packages,Adult Domiciliary Care,Third Party Payments,REVENUE
Wiltshire, http://opendatacommunities.org/id/unitary-authority/wiltshire,21/10/2019,1902431324,1264.69,Audley Care White Horse ,121958,SN8 ,Community Services,West Care Packages,Adult Domiciliary Care,Third Party Payments,REVENUE
Wiltshire, http://opendatacommunities.org/id/unitary-authority/wiltshire,21/10/2019,1902431325,4334.05,Audley Care White Horse ,121958,SN8 ,Community Services,North Care Packages,Adult Domiciliary Care,Third Party Payments,REVENUE
Wiltshire, http://opendatacommunities.org/id/unitary-authority/wiltshire,21/10/2019,1902431326,456.75,Audley Care White Horse ,121958,SN8 ,Community Services,North Care Packages,Adult Domiciliary Care,Third Party Payments,REVENUE
Wiltshire, http://opendatacommunities.org/id/unitary-authority/wiltshire,21/10/2019,1902431327,304.5,Audley Care White Horse ,121958,SN8 ,Community Services,North Care Packages,Adult Domiciliary Care,Third Party Payments,REVENUE
Wiltshire, http://opendatacommunities.org/id/unitary-authority/wiltshire,21/10/2019,1902431328,571.9,Audley Care White Horse ,121958,SN8 ,Community Services,North Care Packages,Adult Domiciliary Care,Third Party Payments,REVENUE
Wiltshire, http://opendatacommunities.org/id/unitary-authority/wiltshire,21/10/2019,1902431329,406,Audley Care White Horse ,121958,SN8 ,Community Services,MH AOWA N&E Locality,Adult Domiciliary Care,Third Party Payments,REVENUE
Wiltshire, http://opendatacommunities.org/id/unitary-authority/wiltshire,21/10/2019,1902431330,3978.8,Audley Care White Horse ,121958,SN8 ,Community Services,North Care Packages,Adult Domiciliary Care,Third Party Payments,REVENUE
Wiltshire, http://opendatacommunities.org/id/unitary-authority/wiltshire,28/10/2019,1902438365,1566.6,Audley Care White Horse ,121958,SN8 ,Community Services,South Care Packages,Adult Domiciliary Care,Third Party Payments,REVENUE
Wiltshire, http://opendatacommunities.org/id/unitary-authority/wiltshire,28/10/2019,1902438381,503.37,Audley Care White Horse ,121958,SN8 ,Community Services,West Care Packages,Adult Domiciliary Care,Third Party Payments,REVENUE
Wiltshire, http://opendatacommunities.org/id/unitary-authority/wiltshire,28/10/2019,1902438382,1008.72,Audley Care White Horse ,121958,SN8 ,Community Services,West Care Packages,Adult Domiciliary Care,Third Party Payments,REVENUE
Wiltshire, http://opendatacommunities.org/id/unitary-authority/wiltshire,28/10/2019,1902438405,339.34,Audley Care White Horse ,121958,SN8 ,Community Services,North Care Packages,Adult Domiciliary Care Contribution,Income,REVENUE
Wiltshire, http://opendatacommunities.org/id/unitary-authority/wiltshire,28/10/2019,1902438406,429.25,Audley Care White Horse ,121958,SN8 ,Community Services,North Care Packages,Adult Domiciliary Care Contribution,Income,REVENUE
Wiltshire, http://opendatacommunities.org/id/unitary-authority/wiltshire,16/10/2019,5107388832,6801.2,Autism Care Wiltshire ,136507,SN25,Community Services,CTPLD Placements,Adult Residential Placements - Spot Purchase,Third Party Payments,REVENUE
